BODY NAME,,SERVICE AREA,EXPENSES TYPE,EXPENSE CODE,DATE,TRANSACTION NO.,AMOUNT, SUPPLIER NAME,SUPPLIER ID
EFDC,PH100,PRIVATE SECTOR HOUSING,GRANTS GENERAL,3720,04-Jul-17,24876,6119.83,S J BLACKBOURN,BLA001
EFDC,BAL01,EFDC BALANCE SHEET,SUNDRY DEBTORS (OTHER),Z208,04-Jul-17,24865,1100,RAINBOW ESTATES,156P
EFDC,BAL01,EFDC BALANCE SHEET,DEPOSITS - PAID,Z223,04-Jul-17,24865,1100,RAINBOW ESTATES,156P
EFDC,BAL01,EFDC BALANCE SHEET,HOUSING RENT REFUNDS,Z613,04-Jul-17,24878,575,MS D BEST,4633P
EFDC,PH100,PRIVATE SECTOR HOUSING,GRANTS GENERAL,3720,04-Jul-17,24868,1350,ACCESSIBLE SOLUTIONS LIMITED,ACC002
EFDC,BAL01,EFDC BALANCE SHEET,DEPOSITS - PAID,Z223,04-Jul-17,24881,600,CARIDON PROPERTY LIMITED,6866P
EFDC,BAL01,EFDC BALANCE SHEET,SUNDRY DEBTORS (OTHER),Z208,04-Jul-17,24882,800,CARIDON PROPERTY LIMITED,6866P
EFDC,BAL01,EFDC BALANCE SHEET,SUNDRY DEBTORS (OTHER),Z208,04-Jul-17,24881,600,CARIDON PROPERTY LIMITED,6866P
EFDC,BAL01,EFDC BALANCE SHEET,HOUSING RENT REFUNDS,Z613,04-Jul-17,24885,1120.25,MISS P J FAIRWEATHER,7016P
EFDC,BAL01,EFDC BALANCE SHEET,DEPOSITS - PAID,Z223,04-Jul-17,24858,1485,J W LETTINGS CLIENT PREMIUM,7002P
EFDC,BAL01,EFDC BALANCE SHEET,SUNDRY DEBTORS (OTHER),Z208,04-Jul-17,24858,990,J W LETTINGS CLIENT PREMIUM,7002P
EFDC,CH113,"MUSEUM, HERITAGE & CULTURE",EQUIPMENT - NEW,3010,04-Jul-17,24863,838.87,PAST HORIZONS,7005P
EFDC,BAL01,EFDC BALANCE SHEET,HOUSING RENT REFUNDS,Z613,04-Jul-17,24867,602.47,MRS C SKIP,7007P
EFDC,BAL01,EFDC BALANCE SHEET,SUNDRY DEBTORS (OTHER),Z208,04-Jul-17,24871,875,AARON TUSON,7010P
EFDC,BAL01,EFDC BALANCE SHEET,DEPOSITS - PAID,Z223,04-Jul-17,24871,875,AARON TUSON,7010P
EFDC,BAL01,EFDC BALANCE SHEET,AIMS,Z211,04-Jul-17,24864,687.5,MR PRATHAPAN RAGHAVAN,6151P
EFDC,CAPCM,COMMUNITIES CAPITAL,WORKS,E040,04-Jul-17,110021,71739.97,P A FINLAY & COMPANY LTD,FIN003
EFDC,CAPCM,COMMUNITIES CAPITAL,WORKS,E040,04-Jul-17,110021,94554.15,P A FINLAY & COMPANY LTD,FIN003
EFDC,CAPCM,COMMUNITIES CAPITAL,WORKS,E040,04-Jul-17,110021,122062.56,P A FINLAY & COMPANY LTD,FIN003
EFDC,CAPCM,COMMUNITIES CAPITAL,WORKS,E040,04-Jul-17,110021,6030.39,P A FINLAY & COMPANY LTD,FIN003
EFDC,EH160,OTHER ACTIVITIES,CLEANING,1630,05-Jul-17,110409,840,CORDELL SERVICES,COR002
EFDC,YB500,SUPERVISION/MANAGEMENT SPECIAL,GAS,1110,05-Jul-17,109480,851.41,CORONA ENERGY RETAIL 4 LTD,COR015
EFDC,YB500,SUPERVISION/MANAGEMENT SPECIAL,GAS,1110,05-Jul-17,109484,979.08,CORONA ENERGY RETAIL 4 LTD,COR015
EFDC,YB500,SUPERVISION/MANAGEMENT SPECIAL,GAS,1110,05-Jul-17,109487,595.25,CORONA ENERGY RETAIL 4 LTD,COR015
EFDC,YB500,SUPERVISION/MANAGEMENT SPECIAL,GAS,1110,05-Jul-17,109489,776.69,CORONA ENERGY RETAIL 4 LTD,COR015
EFDC,YB500,SUPERVISION/MANAGEMENT SPECIAL,GAS,1110,05-Jul-17,109490,721.75,CORONA ENERGY RETAIL 4 LTD,COR015
EFDC,YB500,SUPERVISION/MANAGEMENT SPECIAL,GAS,1110,05-Jul-17,109485,1014.77,CORONA ENERGY RETAIL 4 LTD,COR015
EFDC,35300,ENVIRONMENTAL OTHER,GAS,1110,05-Jul-17,109488,512.42,CORONA ENERGY RETAIL 4 LTD,COR015
EFDC,YB500,SUPERVISION/MANAGEMENT SPECIAL,GAS,1110,05-Jul-17,109481,613.03,CORONA ENERGY RETAIL 4 LTD,COR015
EFDC,YB620,SUPERVISION/MANAGEMENT SPECIAL,GAS,1110,05-Jul-17,109478,758.01,CORONA ENERGY RETAIL 4 LTD,COR015
EFDC,27050,ACCOMMODATION,GAS,1110,05-Jul-17,109479,867.95,CORONA ENERGY RETAIL 4 LTD,COR015
EFDC,RM100,RESPONSIVE & VOID REPAIRS,BUILDING MAINTENANCE,1010,05-Jul-17,109762,2021.57,EXTERIOR PLAS,EXT001
EFDC,RM100,RESPONSIVE & VOID REPAIRS,BUILDING MAINTENANCE,1010,05-Jul-17,109757,2812.35,EXTERIOR PLAS,EXT001
EFDC,40120,CORPORATE SUPPORT SERVICES,CONSULTANTS FEES,3490,05-Jul-17,109888,5846,B B & C FENCING,FEN003
EFDC,CAPCM,COMMUNITIES CAPITAL,WORKS,A040,05-Jul-17,110464,16159,FIELDWHITE SERVICES LTD,FIE003
EFDC,CAPCM,COMMUNITIES CAPITAL,WORKS,A040,05-Jul-17,110464,4251,FIELDWHITE SERVICES LTD,FIE003
EFDC,CAPCM,COMMUNITIES CAPITAL,WORKS,A040,05-Jul-17,110464,525,FIELDWHITE SERVICES LTD,FIE003
EFDC,RM100,RESPONSIVE & VOID REPAIRS,BUILDING MAINTENANCE,1010,05-Jul-17,109959,695,FIELDWHITE SERVICES LTD,FIE003
EFDC,RM300,PLANNED & CYCLICAL MAINTENANCE,BUILDING MAINTENANCE,1010,05-Jul-17,110464,2271,FIELDWHITE SERVICES LTD,FIE003
EFDC,RS301,NORTH WEALD CENTRE,EQUIPMENT - NEW,3010,05-Jul-17,108614,523.64,FLAME-PRO UK LIMITED,FLA002
EFDC,PP111,FORWARD PLANNING & ECONOMIC,PROFESSIONAL FEES,3420,05-Jul-17,108934,11916,FORTISMERE ASSOCIATES LTD,FOR016
EFDC,PP111,FORWARD PLANNING & ECONOMIC,PROFESSIONAL FEES,3420,05-Jul-17,108933,9858,FORTISMERE ASSOCIATES LTD,FOR016
EFDC,PH100,PRIVATE SECTOR HOUSING,OTHER MAINTENANCE,1050,05-Jul-17,109766,1250,ENERGY SAVING TRUST,ENE002
EFDC,26200,OTHER SUPPORT SERVICES (HR),FIXED PLANT MAINTENANCE,1020,05-Jul-17,109804,520,GATE & BARRIER SERVICES,GAT002
EFDC,78001,OTHER ACTIVITIES,MATERIALS,3080,05-Jul-17,109465,533,GBN SERVICES LTD,GBN002
EFDC,CAPCM,COMMUNITIES CAPITAL,WORKS,A040,05-Jul-17,110226,2035,RICHARD F GILL & ASSOCIATES,GIL005
EFDC,CAPCM,COMMUNITIES CAPITAL,WORKS,A040,05-Jul-17,110227,1845,RICHARD F GILL & ASSOCIATES,GIL005
EFDC,EH150,REGULATORY SERVICES,OTHER MISCELLANEOUS EXPENSES,3850,05-Jul-17,108911,1207,HARLOW OCCUPATIONAL HEALTH SERVICE LTD,HAR006
EFDC,EH150,REGULATORY SERVICES,OTHER MISCELLANEOUS EXPENSES,3850,05-Jul-17,108911,328.9,HARLOW OCCUPATIONAL HEALTH SERVICE LTD,HAR006
EFDC,32180,OTHER SUPPORT SERVICES (HR),AGENCY STAFF,0120,05-Jul-17,109737,539.77,HAYS SPECIALIST RECRUITMENT LTD,HAY011
EFDC,32220,OTHER SUPPORT SERVICES (HR),AGENCY STAFF,0120,05-Jul-17,109735,1118.88,HAYS SPECIALIST RECRUITMENT LTD,HAY011
EFDC,32180,OTHER SUPPORT SERVICES (HR),OTHER TRAVEL EXPENSES,2850,05-Jul-17,109737,4.8,HAYS SPECIALIST RECRUITMENT LTD,HAY011
EFDC,32220,OTHER SUPPORT SERVICES (HR),AGENCY STAFF,0120,05-Jul-17,109736,1548.08,HAYS SPECIALIST RECRUITMENT LTD,HAY011
EFDC,36650,OTHER ACTIVITIES,AGENCY STAFF,0120,05-Jul-17,109444,721.76,ADECCO UK LTD,ADE002
EFDC,YB620,SUPERVISION/MANAGEMENT SPECIAL,WATER CHARGES,1410,05-Jul-17,110412,1467.75,AFFINITY FOR BUSINESS LTD,AFF001
EFDC,UO120,LAND & PROPERTY,CONSULTANTS FEES,3490,05-Jul-17,109185,2920,MITIE SECURITY LTD,MIT004
EFDC,32030,OTHER SUPPORT SERVICES (HR),POSTAGE,3510,05-Jul-17,109823,1366.01,NEOPOST LTD,NEO003
EFDC,CAPRS,RESOURCES CAPITAL,CAPITAL SOFTWARE,K340,05-Jul-17,109371,1500,NORTHGATE PUBLIC SERVICES (UK) LTD,NOR018
EFDC,CAPRS,RESOURCES CAPITAL,CAPITAL SOFTWARE,K340,05-Jul-17,109370,1500,NORTHGATE PUBLIC SERVICES (UK) LTD,NOR018
EFDC,33080,OTHER ACTIVITIES,LICENCES,3870,05-Jul-17,109355,799.5,PHOENIX SOFTWARE LTD,PHO002
EFDC,35013,ENVIRONMENTAL OTHER,AGENCY STAFF,0120,05-Jul-17,109245,901.74,REED SPECIALIST RECRUITMENT LTD,REE002
EFDC,35013,ENVIRONMENTAL OTHER,AGENCY STAFF,0120,05-Jul-17,109243,909.65,REED SPECIALIST RECRUITMENT LTD,REE002
EFDC,35013,ENVIRONMENTAL OTHER,AGENCY STAFF,0120,05-Jul-17,109242,933.38,REED SPECIALIST RECRUITMENT LTD,REE002
EFDC,35013,ENVIRONMENTAL OTHER,AGENCY STAFF,0120,05-Jul-17,109450,885.92,REED SPECIALIST RECRUITMENT LTD,REE002
EFDC,YB120,SUPERVISION/MANAGEMENT SPECIAL,FUEL,2330,05-Jul-17,109901,258.42,SHELL U.K. OIL PRODUCTS LIMITED,SHE007
EFDC,EH155,ENVIRONMENTAL HEALTH,FUEL,2330,05-Jul-17,109884,48.14,SHELL U.K. OIL PRODUCTS LIMITED,SHE007
EFDC,EH155,ENVIRONMENTAL HEALTH,FUEL,2330,05-Jul-17,109901,111.16,SHELL U.K. OIL PRODUCTS LIMITED,SHE007
EFDC,78001,OTHER ACTIVITIES,FUEL,2330,05-Jul-17,109901,1564.7,SHELL U.K. OIL PRODUCTS LIMITED,SHE007
EFDC,78001,OTHER ACTIVITIES,FUEL,2330,05-Jul-17,109884,1435.38,SHELL U.K. OIL PRODUCTS LIMITED,SHE007
EFDC,33010,OTHER ACTIVITIES,SUBSCRIPTIONS,3730,05-Jul-17,109368,3009.6,SPIKES CAVELL & CO,SPI001
EFDC,CH110,"MUSEUM, HERITAGE & CULTURE",POSTAGE,3510,05-Jul-17,109382,0.3,ROYAL MAIL GROUP PLC,ROY015
EFDC,36200,OTHER ACTIVITIES,POSTAGE,3510,05-Jul-17,110252,210,ROYAL MAIL GROUP PLC,ROY015
EFDC,36200,OTHER ACTIVITIES,POSTAGE,3510,05-Jul-17,109382,183,ROYAL MAIL GROUP PLC,ROY015
EFDC,CH110,"MUSEUM, HERITAGE & CULTURE",POSTAGE,3510,05-Jul-17,110252,3.6,ROYAL MAIL GROUP PLC,ROY015
EFDC,37100,PLANNING OTHER,POSTAGE,3510,05-Jul-17,109382,144.9,ROYAL MAIL GROUP PLC,ROY015
EFDC,37100,PLANNING OTHER,POSTAGE,3510,05-Jul-17,110252,185.7,ROYAL MAIL GROUP PLC,ROY015
EFDC,34110,COMMUNITIES SUPPORT SERVICES,POSTAGE,3510,05-Jul-17,110252,0.3,ROYAL MAIL GROUP PLC,ROY015
EFDC,34110,COMMUNITIES SUPPORT SERVICES,POSTAGE,3510,05-Jul-17,109382,0.9,ROYAL MAIL GROUP PLC,ROY015
EFDC,35900,ENVIRONMENTAL OTHER,POSTAGE,3510,05-Jul-17,109382,34.2,ROYAL MAIL GROUP PLC,ROY015
EFDC,35900,ENVIRONMENTAL OTHER,POSTAGE,3510,05-Jul-17,110252,35.7,ROYAL MAIL GROUP PLC,ROY015
EFDC,35900,ENVIRONMENTAL OTHER,POSTAGE,3510,05-Jul-17,110252,98.4,ROYAL MAIL GROUP PLC,ROY015
EFDC,33055,OTHER ACTIVITIES,POSTAGE,3510,05-Jul-17,110252,258,ROYAL MAIL GROUP PLC,ROY015
EFDC,33055,OTHER ACTIVITIES,POSTAGE,3510,05-Jul-17,109382,163.8,ROYAL MAIL GROUP PLC,ROY015
EFDC,33075,OTHER ACTIVITIES,POSTAGE,3510,05-Jul-17,109382,1234.9,ROYAL MAIL GROUP PLC,ROY015
EFDC,33075,OTHER ACTIVITIES,POSTAGE,3510,05-Jul-17,109382,160.8,ROYAL MAIL GROUP PLC,ROY015
EFDC,33075,OTHER ACTIVITIES,POSTAGE,3510,05-Jul-17,110252,213.3,ROYAL MAIL GROUP PLC,ROY015
EFDC,33075,OTHER ACTIVITIES,POSTAGE,3510,05-Jul-17,110252,659.73,ROYAL MAIL GROUP PLC,ROY015
EFDC,RE100,ELECTIONS,POSTAGE,3510,05-Jul-17,109382,182.1,ROYAL MAIL GROUP PLC,ROY015
EFDC,EL100,ELECTIONS,POSTAGE,3510,05-Jul-17,109382,57.9,ROYAL MAIL GROUP PLC,ROY015
EFDC,32030,OTHER SUPPORT SERVICES (HR),POSTAGE,3510,05-Jul-17,109382,26.11,ROYAL MAIL GROUP PLC,ROY015
EFDC,32030,OTHER SUPPORT SERVICES (HR),POSTAGE,3510,05-Jul-17,110252,52.2,ROYAL MAIL GROUP PLC,ROY015
EFDC,RE100,ELECTIONS,POSTAGE,3510,05-Jul-17,110252,117,ROYAL MAIL GROUP PLC,ROY015
EFDC,YB500,SUPERVISION/MANAGEMENT SPECIAL,FURNITURE - NEW,3040,05-Jul-17,110301,1075,TUNSTALL HEALTHCARE (UK) LTD,TUN001
EFDC,YB200,SUPERVISION/MANAGEMENT SPECIAL,EQUIPMENT - NEW,3010,05-Jul-17,110298,1759.95,TUNSTALL HEALTHCARE (UK) LTD,TUN001
EFDC,TO100,LAND & PROPERTY,EQUIPMENT - MAINTENANCE,3030,05-Jul-17,109333,1561.5,TECALEMIT GARAGE EQUIPMENT CO LTD,TEC006
EFDC,CH103,"MUSEUM, HERITAGE & CULTURE",MATERIALS,3080,05-Jul-17,110038,1731.08,TERRY TEW SOUND & LIGHT,TER002
EFDC,EH112,LAND DRAINAGE/SEWERAGE,OTHER MAINTENANCE,1050,05-Jul-17,109432,1738.35,VEOLIA ES (UK) LTD,VER004
EFDC,EH112,LAND DRAINAGE/SEWERAGE,OTHER MAINTENANCE,1050,05-Jul-17,109431,3442.8,VEOLIA ES (UK) LTD,VER004
EFDC,25300,INTERNAL INSURANCE FUND,OTHER MISCELLANEOUS EXPENSES,3850,05-Jul-17,110041,5000,ZURICH MANAGEMENT SERVICES LTD,ZUR004
EFDC,CAPCM,COMMUNITIES CAPITAL,WORKS,A040,05-Jul-17,110465,30152.51,GRACELANDS COMPLETE MAINTENANCE SERVICES LTD,GRA007
EFDC,CAPCM,COMMUNITIES CAPITAL,WORKS,A040,05-Jul-17,110428,51489.75,GRACELANDS COMPLETE MAINTENANCE SERVICES LTD,GRA007
EFDC,CAPCM,COMMUNITIES CAPITAL,WORKS,A040,05-Jul-17,110427,27252.02,GRACELANDS COMPLETE MAINTENANCE SERVICES LTD,GRA007
EFDC,RM400,PLANNED & CYCLICAL MAINTENANCE,BUILDING MAINTENANCE,1010,05-Jul-17,110410,3733.33,PURDY CONTRACTS LTD,PUR002
EFDC,RM400,PLANNED & CYCLICAL MAINTENANCE,BUILDING MAINTENANCE,1010,05-Jul-17,110411,565,PURDY CONTRACTS LTD,PUR002
EFDC,CAPCM,COMMUNITIES CAPITAL,WORKS,A040,05-Jul-17,110466,125059.81,M & J SERVICES LTD,SER009
EFDC,YB620,SUPERVISION/MANAGEMENT SPECIAL,EQUIPMENT - NEW,3010,05-Jul-17,109202,539.93,CRANBROOK ELECTRICS,CRA001
EFDC,78001,OTHER ACTIVITIES,MATERIALS,3080,05-Jul-17,109204,2632.38,CRANBROOK ELECTRICS,CRA001
EFDC,36500,OTHER ACTIVITIES,AGENCY STAFF,0120,05-Jul-17,110083,850,BADENOCH & CLARK,BAD001
EFDC,CAPCM,COMMUNITIES CAPITAL,CONSTRUCTION,E030,05-Jul-17,110436,56778.06,TSG BUILDING SERVICES PLC,TSG001
EFDC,CAPCM,COMMUNITIES CAPITAL,CONSTRUCTION,E030,05-Jul-17,110437,99935.1,TSG BUILDING SERVICES PLC,TSG001
EFDC,CAPCM,COMMUNITIES CAPITAL,WORKS,A040,05-Jul-17,110414,5344.54,ARAN SERVICES LTD,ARA001
EFDC,YB110,SUPERVISION/MANAGEMENT SPECIAL,ELECTRICITY,1120,05-Jul-17,108982,6.01,EDF ENERGY,EDF001
EFDC,YB110,SUPERVISION/MANAGEMENT SPECIAL,ELECTRICITY,1120,05-Jul-17,108982,13.16,EDF ENERGY,EDF001
EFDC,YB200,SUPERVISION/MANAGEMENT SPECIAL,ELECTRICITY,1120,05-Jul-17,108982,8.75,EDF ENERGY,EDF001
EFDC,YB200,SUPERVISION/MANAGEMENT SPECIAL,ELECTRICITY,1120,05-Jul-17,108982,17.45,EDF ENERGY,EDF001
EFDC,YB200,SUPERVISION/MANAGEMENT SPECIAL,ELECTRICITY,1120,05-Jul-17,108982,31.33,EDF ENERGY,EDF001
EFDC,35009,ENVIRONMENTAL OTHER,ELECTRICITY,1120,05-Jul-17,108982,12.11,EDF ENERGY,EDF001
EFDC,35009,ENVIRONMENTAL OTHER,ELECTRICITY,1120,05-Jul-17,108982,11.44,EDF ENERGY,EDF001
EFDC,YB500,SUPERVISION/MANAGEMENT SPECIAL,ELECTRICITY,1120,05-Jul-17,108982,21.37,EDF ENERGY,EDF001
EFDC,YB500,SUPERVISION/MANAGEMENT SPECIAL,ELECTRICITY,1120,05-Jul-17,108982,29.94,EDF ENERGY,EDF001
EFDC,PS100,CAR PARKING,ELECTRICITY,1120,05-Jul-17,108982,387.65,EDF ENERGY,EDF001
EFDC,PS100,CAR PARKING,ELECTRICITY,1120,05-Jul-17,108982,10.83,EDF ENERGY,EDF001
EFDC,PS100,CAR PARKING,ELECTRICITY,1120,05-Jul-17,108982,61.41,EDF ENERGY,EDF001
EFDC,PS100,CAR PARKING,ELECTRICITY,1120,05-Jul-17,108982,93.82,EDF ENERGY,EDF001
EFDC,PS100,CAR PARKING,ELECTRICITY,1120,05-Jul-17,108982,113.15,EDF ENERGY,EDF001
EFDC,PS100,CAR PARKING,ELECTRICITY,1120,05-Jul-17,108982,4.49,EDF ENERGY,EDF001
EFDC,PS100,CAR PARKING,ELECTRICITY,1120,05-Jul-17,108982,16.47,EDF ENERGY,EDF001
EFDC,UO120,LAND & PROPERTY,CONSULTANTS FEES,3490,05-Jul-17,110423,6043.8,CROSBY LAND LTD,CRO003
EFDC,32220,OTHER SUPPORT SERVICES (HR),AGENCY STAFF,0120,05-Jul-17,109990,3634.99,CAPSTONE PROPERTY RECRUITMENT LTD,CAP001
EFDC,UO120,LAND & PROPERTY,AGENCY STAFF,0120,05-Jul-17,110272,1195.04,CAPSTONE PROPERTY RECRUITMENT LTD,CAP001
EFDC,RS400,"COMMUNITY, HEALTH & WELLBEING",EXCURSIONS & EVENTS,3374,05-Jul-17,109734,565,TRING COACHES,TRI002
EFDC,CAPNB,NEIGHBOURHOODS CAPITAL,PLANNING SUPERVISOR,E190,05-Jul-17,110282,1475,WYG MANAGEMENT SERVICES LTD,WYG002
EFDC,CAPCM,COMMUNITIES CAPITAL,WORKS,E040,05-Jul-17,110424,122062.56,P A FINLAY & COMPANY LTD,FIN003
EFDC,CAPCM,COMMUNITIES CAPITAL,WORKS,E040,05-Jul-17,110424,94554.15,P A FINLAY & COMPANY LTD,FIN003
EFDC,CAPCM,COMMUNITIES CAPITAL,WORKS,E040,05-Jul-17,110424,6030.39,P A FINLAY & COMPANY LTD,FIN003
EFDC,CAPCM,COMMUNITIES CAPITAL,WORKS,E040,05-Jul-17,110424,71739.97,P A FINLAY & COMPANY LTD,FIN003
EFDC,HL100,HOMELESSNESS,LEGAL EXPENSES,3680,05-Jul-17,110480,950,MR BEN DU FEU,FEU001
EFDC,CAPCM,COMMUNITIES CAPITAL,WORKS,E040,05-Jul-17,110433,302397.99,MULALLEY & CO LTD,MUL003
EFDC,32060,OTHER SUPPORT SERVICES (HR),CONSULTANTS FEES,3490,05-Jul-17,109340,525,MS ALISON LAMBERT,LAM004
EFDC,CH110,"MUSEUM, HERITAGE & CULTURE",RESALEABLE MATERIALS,3090,05-Jul-17,110020,320,ENORMOUS ART LTD,ENO001
EFDC,CH103,"MUSEUM, HERITAGE & CULTURE",RESALEABLE MATERIALS,3090,05-Jul-17,110020,192,ENORMOUS ART LTD,ENO001
EFDC,CH103,"MUSEUM, HERITAGE & CULTURE",PROFESSIONAL FEES,3420,05-Jul-17,109547,990,KEELY MILLS,MIL006
EFDC,43310,ENVIRONMENTAL OTHER,AGENCY STAFF,0120,05-Jul-17,109842,13274.7,OVE ARUP & PARTNERS LTD,OVE002
EFDC,27060,ACCOMMODATION,CLEANING,1630,05-Jul-17,93376,463.66,ATLAS CONTRACTORS LTD,ATL001
EFDC,27050,ACCOMMODATION,CLEANING,1630,05-Jul-17,93376,7425.37,ATLAS CONTRACTORS LTD,ATL001
EFDC,23140,ACCOMMODATION,CLEANSING CONTRACTORS,4320,05-Jul-17,93376,424.67,ATLAS CONTRACTORS LTD,ATL001
EFDC,23130,ACCOMMODATION,CLEANING,1630,05-Jul-17,93376,214.85,ATLAS CONTRACTORS LTD,ATL001
EFDC,CH110,"MUSEUM, HERITAGE & CULTURE",CLEANING,1630,05-Jul-17,93376,488.28,ATLAS CONTRACTORS LTD,ATL001
EFDC,23110,ACCOMMODATION,CLEANING,1630,05-Jul-17,93376,604.76,ATLAS CONTRACTORS LTD,ATL001
EFDC,23110,ACCOMMODATION,CLEANING,1630,05-Jul-17,93376,1251.51,ATLAS CONTRACTORS LTD,ATL001
EFDC,CAPNB,NEIGHBOURHOODS CAPITAL,WORKS,L040,05-Jul-17,110441,331185.82,WALKER CONSTRUCTION (UK) LTD,WAL009
EFDC,RM200,RESPONSIVE & VOID REPAIRS,BUILDING MAINTENANCE,1010,05-Jul-17,109993,4844.7,WICKES BUILDING SUPPLIES LTD,WIC004
EFDC,33080,OTHER ACTIVITIES,EQUIPMENT - HIRED,3020,05-Jul-17,106446,1363.29,XEROX FINANCE LTD,XER001
EFDC,PS100,CAR PARKING,OTHER MAINTENANCE,1050,05-Jul-17,109190,658.78,MURRILL CONSTRUCTION LTD,MUR004
EFDC,CAPNB,NEIGHBOURHOODS CAPITAL,WORKS - UTILITIES,L041,05-Jul-17,109199,1877,BT PAYPHONES,BTP001
EFDC,EH112,LAND DRAINAGE/SEWERAGE,PROFESSIONAL FEES,3420,05-Jul-17,109228,675,ESTS LTD,EST002
EFDC,CAPNB,NEIGHBOURHOODS CAPITAL,WORKS,E040,05-Jul-17,110432,946803.9,MCLAUGHLIN & HARVEY CONSTRUCTION LTD,MCL003
EFDC,BAL01,EFDC BALANCE SHEET,HOUSING RENT REFUNDS,Z613,07-Jul-17,24691,843.13,MR E ELLINGHAM,6959P
EFDC,PH100,PRIVATE SECTOR HOUSING,GRANTS GENERAL,3720,11-Jul-17,24953,2295,STANNAH LIFT SERVICES LTD,STA002
EFDC,BAL01,EFDC BALANCE SHEET,NDR REFUNDS,Z623,11-Jul-17,24955,855,CLUTTONS LLP CLIENT ACCOUNT - RECEIPTS,390P
EFDC,BAL01,EFDC BALANCE SHEET,NDR REFUNDS,Z623,11-Jul-17,24932,2158.53,ESSEX COUNTY COUNCIL,535P
EFDC,TO100,LAND & PROPERTY,LICENSES,2360,11-Jul-17,24951,1440,POST OFFICE LTD,5023P
EFDC,BAL01,EFDC BALANCE SHEET,NDR REFUNDS,Z623,11-Jul-17,24930,24182.5,THE FOREST SURGERY,7020P
EFDC,YB200,SUPERVISION/MANAGEMENT SPECIAL,REMOVAL EXPENSES,3830,11-Jul-17,24940,500,MR K L MCGUIRE,7025P
EFDC,YB200,SUPERVISION/MANAGEMENT SPECIAL,CONTRIBUTIONS,3740,11-Jul-17,24940,500,MR K L MCGUIRE,7025P
EFDC,YB200,SUPERVISION/MANAGEMENT SPECIAL,COMPENSATION PAYMENTS,3880,11-Jul-17,24940,1000,MR K L MCGUIRE,7025P
EFDC,BAL01,EFDC BALANCE SHEET,NDR REFUNDS,Z623,11-Jul-17,24943,53997.54,NHS ENGLAND CLIENT ACCOUNT,7027P
EFDC,BAL01,EFDC BALANCE SHEET,NDR REFUNDS,Z623,11-Jul-17,24942,32859.27,NHS ENGLAND CLIENT ACCOUNT,7027P
EFDC,BAL01,EFDC BALANCE SHEET,NDR REFUNDS,Z623,11-Jul-17,24946,335167.5,NHS PROPERTY SERVICES LTD,7028P
EFDC,BAL01,EFDC BALANCE SHEET,NDR REFUNDS,Z623,11-Jul-17,24944,215746.69,NHS PROPERTY SERVICES LTD,7028P
EFDC,ED100,FORWARD PLANNING & ECONOMIC,OTHER MISCELLANEOUS EXPENSES,3850,11-Jul-17,24950,964.18,ONGAR IN BLOOM,7029P
EFDC,BAL01,EFDC BALANCE SHEET,NDR REFUNDS,Z623,11-Jul-17,24952,1816.99,QUANTUM BUNDERS LTD,7030P
EFDC,32060,OTHER SUPPORT SERVICES (HR),CONSULTANTS FEES,3490,12-Jul-17,110334,875,MR R BANWELL,BAN001
EFDC,28030,OTHER SUPPORT SERVICES (HR),MATERIALS,3080,12-Jul-17,110655,-93.6,CARE VENDING SERVICES LTD,CAR017
EFDC,28030,OTHER SUPPORT SERVICES (HR),MATERIALS,3080,12-Jul-17,110655,688.76,CARE VENDING SERVICES LTD,CAR017
EFDC,33080,OTHER ACTIVITIES,EQUIPMENT - NEW,3010,12-Jul-17,109886,536.22,CCS MEDIA LTD,CCS002
EFDC,CM105,CORPORATE ACTIVITIES,SUBSCRIPTIONS,3730,12-Jul-17,110402,8700,EAST OF ENGLAND LOCAL GOVERNMENT ASSOCIATION,EAS001
EFDC,RM400,PLANNED & CYCLICAL MAINTENANCE,BUILDING MAINTENANCE,1010,12-Jul-17,110989,84.99,ESSEX LIFT SERVICES LTD,ESS032
EFDC,RM400,PLANNED & CYCLICAL MAINTENANCE,BUILDING MAINTENANCE,1010,12-Jul-17,110989,84.99,ESSEX LIFT SERVICES LTD,ESS032
EFDC,26200,OTHER SUPPORT SERVICES (HR),FIXED PLANT MAINTENANCE,1020,12-Jul-17,110989,81.66,ESSEX LIFT SERVICES LTD,ESS032
EFDC,26200,OTHER SUPPORT SERVICES (HR),FIXED PLANT MAINTENANCE,1020,12-Jul-17,110989,81.66,ESSEX LIFT SERVICES LTD,ESS032
EFDC,RM400,PLANNED & CYCLICAL MAINTENANCE,BUILDING MAINTENANCE,1010,12-Jul-17,110989,84.99,ESSEX LIFT SERVICES LTD,ESS032
EFDC,RM400,PLANNED & CYCLICAL MAINTENANCE,BUILDING MAINTENANCE,1010,12-Jul-17,110989,81.67,ESSEX LIFT SERVICES LTD,ESS032
EFDC,RM400,PLANNED & CYCLICAL MAINTENANCE,BUILDING MAINTENANCE,1010,12-Jul-17,110989,81.67,ESSEX LIFT SERVICES LTD,ESS032
EFDC,RM400,PLANNED & CYCLICAL MAINTENANCE,BUILDING MAINTENANCE,1010,12-Jul-17,110989,84.99,ESSEX LIFT SERVICES LTD,ESS032
EFDC,RM400,PLANNED & CYCLICAL MAINTENANCE,BUILDING MAINTENANCE,1010,12-Jul-17,110989,84.99,ESSEX LIFT SERVICES LTD,ESS032
EFDC,RM400,PLANNED & CYCLICAL MAINTENANCE,BUILDING MAINTENANCE,1010,12-Jul-17,110989,84.99,ESSEX LIFT SERVICES LTD,ESS032
EFDC,26200,OTHER SUPPORT SERVICES (HR),BUILDING MAINTENANCE,1010,12-Jul-17,110989,81.66,ESSEX LIFT SERVICES LTD,ESS032
EFDC,26200,OTHER SUPPORT SERVICES (HR),BUILDING MAINTENANCE,1010,12-Jul-17,110989,81.66,ESSEX LIFT SERVICES LTD,ESS032
EFDC,RM400,PLANNED & CYCLICAL MAINTENANCE,BUILDING MAINTENANCE,1010,12-Jul-17,110989,81.67,ESSEX LIFT SERVICES LTD,ESS032
EFDC,RM400,PLANNED & CYCLICAL MAINTENANCE,BUILDING MAINTENANCE,1010,12-Jul-17,110989,81.67,ESSEX LIFT SERVICES LTD,ESS032
EFDC,RM400,PLANNED & CYCLICAL MAINTENANCE,BUILDING MAINTENANCE,1010,12-Jul-17,110989,81.67,ESSEX LIFT SERVICES LTD,ESS032
EFDC,RM400,PLANNED & CYCLICAL MAINTENANCE,BUILDING MAINTENANCE,1010,12-Jul-17,110989,81.67,ESSEX LIFT SERVICES LTD,ESS032
EFDC,26200,OTHER SUPPORT SERVICES (HR),FIXED PLANT MAINTENANCE,1020,12-Jul-17,110989,81.67,ESSEX LIFT SERVICES LTD,ESS032
EFDC,RM400,PLANNED & CYCLICAL MAINTENANCE,BUILDING MAINTENANCE,1010,12-Jul-17,110989,84.99,ESSEX LIFT SERVICES LTD,ESS032
EFDC,26200,OTHER SUPPORT SERVICES (HR),BUILDING MAINTENANCE,1010,12-Jul-17,110989,81.66,ESSEX LIFT SERVICES LTD,ESS032
EFDC,RM400,PLANNED & CYCLICAL MAINTENANCE,BUILDING MAINTENANCE,1010,12-Jul-17,110989,81.67,ESSEX LIFT SERVICES LTD,ESS032
EFDC,RM400,PLANNED & CYCLICAL MAINTENANCE,BUILDING MAINTENANCE,1010,12-Jul-17,110989,81.76,ESSEX LIFT SERVICES LTD,ESS032
EFDC,RM400,PLANNED & CYCLICAL MAINTENANCE,BUILDING MAINTENANCE,1010,12-Jul-17,110989,84.99,ESSEX LIFT SERVICES LTD,ESS032
EFDC,RM400,PLANNED & CYCLICAL MAINTENANCE,BUILDING MAINTENANCE,1010,12-Jul-17,110989,84.99,ESSEX LIFT SERVICES LTD,ESS032
EFDC,26200,OTHER SUPPORT SERVICES (HR),FIXED PLANT MAINTENANCE,1020,12-Jul-17,110989,61.67,ESSEX LIFT SERVICES LTD,ESS032
EFDC,RM400,PLANNED & CYCLICAL MAINTENANCE,BUILDING MAINTENANCE,1010,12-Jul-17,110989,81.67,ESSEX LIFT SERVICES LTD,ESS032
EFDC,CAPCM,COMMUNITIES CAPITAL,WORKS,A040,12-Jul-17,111014,3093.69,EXTERIOR PLAS,EXT001
EFDC,CAPCM,COMMUNITIES CAPITAL,WORKS,A040,12-Jul-17,111014,28486.37,EXTERIOR PLAS,EXT001
EFDC,CAPCM,COMMUNITIES CAPITAL,WORKS,A040,12-Jul-17,111014,33277.67,EXTERIOR PLAS,EXT001
EFDC,RM100,RESPONSIVE & VOID REPAIRS,BUILDING MAINTENANCE,1010,12-Jul-17,109985,2454,FIELDWHITE SERVICES LTD,FIE003
EFDC,78001,OTHER ACTIVITIES,MATERIALS,3080,12-Jul-17,110001,765.7,GBN SERVICES LTD,GBN002
EFDC,32220,OTHER SUPPORT SERVICES (HR),AGENCY STAFF,0120,12-Jul-17,109915,1306.07,HAYS SPECIALIST RECRUITMENT LTD,HAY011
EFDC,32220,OTHER SUPPORT SERVICES (HR),AGENCY STAFF,0120,12-Jul-17,110005,1544.48,HAYS SPECIALIST RECRUITMENT LTD,HAY011
EFDC,32180,OTHER SUPPORT SERVICES (HR),AGENCY STAFF,0120,12-Jul-17,110004,809.63,HAYS SPECIALIST RECRUITMENT LTD,HAY011
EFDC,32180,OTHER SUPPORT SERVICES (HR),OTHER TRAVEL EXPENSES,2850,12-Jul-17,110004,12.63,HAYS SPECIALIST RECRUITMENT LTD,HAY011
EFDC,32220,OTHER SUPPORT SERVICES (HR),AGENCY STAFF,0120,12-Jul-17,110003,1118.88,HAYS SPECIALIST RECRUITMENT LTD,HAY011
EFDC,32220,OTHER SUPPORT SERVICES (HR),AGENCY STAFF,0120,12-Jul-17,110002,506.1,HAYS SPECIALIST RECRUITMENT LTD,HAY011
EFDC,36650,OTHER ACTIVITIES,AGENCY STAFF,0120,12-Jul-17,110322,923.3,ADECCO UK LTD,ADE002
EFDC,CAPCM,COMMUNITIES CAPITAL,WORKS,A040,12-Jul-17,109169,616.42,MARTIN LOCK & SAFE,MAR005
EFDC,YA140,SUPERVISION/MANAGEMENT GENERAL,EQUIPMENT - NEW,3010,12-Jul-17,109555,1389.67,PROBRAND LTD,PRO011
EFDC,33080,OTHER ACTIVITIES,EQUIPMENT - NEW,3010,12-Jul-17,109555,689.57,PROBRAND LTD,PRO011
EFDC,CY100,SAFER COMMUNITIES,EQUIPMENT - NEW,3010,12-Jul-17,109555,681.89,PROBRAND LTD,PRO011
EFDC,33080,OTHER ACTIVITIES,EQUIPMENT - NEW,3010,12-Jul-17,109555,104.17,PROBRAND LTD,PRO011
EFDC,34160,COMMUNITIES SUPPORT SERVICES,PUBLICITY,3360,12-Jul-17,109746,163.23,PROBRAND LTD,PRO011
EFDC,33080,OTHER ACTIVITIES,EQUIPMENT - NEW,3010,12-Jul-17,109746,38.56,PROBRAND LTD,PRO011
EFDC,42520,GOVERNANCE SUPPORT SERVICES,STATIONERY,3320,12-Jul-17,109555,68.12,PROBRAND LTD,PRO011
EFDC,33080,OTHER ACTIVITIES,EQUIPMENT - NEW,3010,12-Jul-17,109746,545.99,PROBRAND LTD,PRO011
EFDC,33080,OTHER ACTIVITIES,EQUIPMENT - NEW,3010,12-Jul-17,109555,133.24,PROBRAND LTD,PRO011
EFDC,35013,ENVIRONMENTAL OTHER,AGENCY STAFF,0120,12-Jul-17,110047,909.65,REED SPECIALIST RECRUITMENT LTD,REE002
EFDC,35013,ENVIRONMENTAL OTHER,AGENCY STAFF,0120,12-Jul-17,110362,893.83,REED SPECIALIST RECRUITMENT LTD,REE002
EFDC,RE100,ELECTIONS,EQUIPMENT - NEW,3010,12-Jul-17,110259,3918.8,SHAW & SONS LTD,SHA001
EFDC,36200,OTHER ACTIVITIES,RECRUITMENT EXPENSES,0320,12-Jul-17,108064,1211.44,TMP WORLDWIDE LTD,TMP001
EFDC,36200,OTHER ACTIVITIES,RECRUITMENT EXPENSES,0320,12-Jul-17,108027,1211.44,TMP WORLDWIDE LTD,TMP001
EFDC,33080,OTHER ACTIVITIES,COMPUTER - OTHER,3570,12-Jul-17,110625,3038.65,VODAFONE LIMITED,VOD002
EFDC,25300,INTERNAL INSURANCE FUND,OTHER MISCELLANEOUS EXPENSES,3850,12-Jul-17,111029,2750,ZURICH INSURANCE PLC,ZUR008
EFDC,RM100,RESPONSIVE & VOID REPAIRS,BUILDING MAINTENANCE,1010,12-Jul-17,110074,880,GRACELANDS COMPLETE MAINTENANCE SERVICES LTD,GRA007
EFDC,RM100,RESPONSIVE & VOID REPAIRS,BUILDING MAINTENANCE,1010,12-Jul-17,110320,896.17,GRACELANDS COMPLETE MAINTENANCE SERVICES LTD,GRA007
EFDC,RM100,RESPONSIVE & VOID REPAIRS,BUILDING MAINTENANCE,1010,12-Jul-17,109977,698.91,GRACELANDS COMPLETE MAINTENANCE SERVICES LTD,GRA007
EFDC,RM300,PLANNED & CYCLICAL MAINTENANCE,BUILDING MAINTENANCE,1010,12-Jul-17,111041,4359.64,GRACELANDS COMPLETE MAINTENANCE SERVICES LTD,GRA007
EFDC,CAPCM,COMMUNITIES CAPITAL,WORKS,A040,12-Jul-17,111041,37840.69,GRACELANDS COMPLETE MAINTENANCE SERVICES LTD,GRA007
EFDC,CAPCM,COMMUNITIES CAPITAL,WORKS,A040,12-Jul-17,111041,10411.54,GRACELANDS COMPLETE MAINTENANCE SERVICES LTD,GRA007
EFDC,CAPCM,COMMUNITIES CAPITAL,WORKS,A040,12-Jul-17,111041,1774.89,GRACELANDS COMPLETE MAINTENANCE SERVICES LTD,GRA007
EFDC,CAPCM,COMMUNITIES CAPITAL,WORKS,A040,12-Jul-17,111041,1517.89,GRACELANDS COMPLETE MAINTENANCE SERVICES LTD,GRA007
EFDC,33075,OTHER ACTIVITIES,AGENCY STAFF,0120,12-Jul-17,110740,531.6,MORGAN HUNT UK LTD,MOR001
EFDC,33075,OTHER ACTIVITIES,AGENCY STAFF,0120,12-Jul-17,110273,819.55,MORGAN HUNT UK LTD,MOR001
EFDC,33075,OTHER ACTIVITIES,AGENCY STAFF,0120,12-Jul-17,110456,814.01,MORGAN HUNT UK LTD,MOR001
EFDC,35300,ENVIRONMENTAL OTHER,AGENCY STAFF,0120,12-Jul-17,110276,1999.01,BERRY RECRUITMENT LTD,BER001
EFDC,35013,ENVIRONMENTAL OTHER,RECRUITMENT EXPENSES,0320,12-Jul-17,109947,595,CIWEM SERVICES LTD,CIW001
EFDC,35300,ENVIRONMENTAL OTHER,AGENCY STAFF,0120,12-Jul-17,110050,647.7,SEWELL STAFFING LTD,SEW001
EFDC,35300,ENVIRONMENTAL OTHER,AGENCY STAFF,0120,12-Jul-17,110372,647.7,SEWELL STAFFING LTD,SEW001
EFDC,33065,OTHER ACTIVITIES,PROFESSIONAL FEES,3420,12-Jul-17,110473,16168,BDO LLP,BDO001
EFDC,EI131,FORWARD PLANNING & ECONOMIC,PROFESSIONAL FEES,3420,12-Jul-17,109946,765,U VIEW DATA LIMITED,UVI001
EFDC,CY100,SAFER COMMUNITIES,CONTRIBUTIONS,3740,12-Jul-17,109992,525,POSITIVE MEDIA PROMOTIONS LTD,POS002
EFDC,CAPCM,COMMUNITIES CAPITAL,CONSTRUCTION,E030,12-Jul-17,111025,57666.29,TSG BUILDING SERVICES PLC,TSG001
EFDC,CAPCM,COMMUNITIES CAPITAL,CONSTRUCTION,E030,12-Jul-17,111027,80430.73,TSG BUILDING SERVICES PLC,TSG001
EFDC,CAPNB,NEIGHBOURHOODS CAPITAL,MANAGEMENT CONSULTANT WYG,L131,12-Jul-17,110358,2300,WYG ENVIRONMENT PLANNING TRANSPORT LTD,WYG001
EFDC,CAPCM,COMMUNITIES CAPITAL,VOIDS WORKS,A045,12-Jul-17,109824,878,WOODS BUILDING SERVICES LTD,WOO001
EFDC,32220,OTHER SUPPORT SERVICES (HR),AGENCY STAFF,0120,12-Jul-17,110447,4251.09,CAPSTONE PROPERTY RECRUITMENT LTD,CAP001
EFDC,UO120,LAND & PROPERTY,AGENCY STAFF,0120,12-Jul-17,110446,1195.04,CAPSTONE PROPERTY RECRUITMENT LTD,CAP001
EFDC,UO120,LAND & PROPERTY,AGENCY STAFF,0120,12-Jul-17,110669,1195.04,CAPSTONE PROPERTY RECRUITMENT LTD,CAP001
EFDC,33080,OTHER ACTIVITIES,EQUIPMENT - HIRED,3020,12-Jul-17,110702,2868,UKFAST.NET LTD,UKF001
EFDC,RS301,NORTH WEALD CENTRE,CONSULTANTS FEES,3490,12-Jul-17,109950,860,RDM ENVIRONMENTAL SOLUTIONS LLP,RDM001
EFDC,HL100,HOMELESSNESS,COMPENSATION PAYMENTS,3880,12-Jul-17,109903,910,MR BEN DU FEU,FEU001
EFDC,32180,OTHER SUPPORT SERVICES (HR),AGENCY STAFF,0120,12-Jul-17,110335,900,COMMUNITY RESOURCING LTD,COM011
EFDC,32180,OTHER SUPPORT SERVICES (HR),AGENCY STAFF,0120,12-Jul-17,110726,900,COMMUNITY RESOURCING LTD,COM011
EFDC,43310,ENVIRONMENTAL OTHER,EQUIPMENT - NEW,3010,12-Jul-17,110232,679.83,KINGSFIELD COMPUTER PRODUCTS LTD,KIN004
EFDC,33080,OTHER ACTIVITIES,EQUIPMENT - NEW,3010,12-Jul-17,109719,30,KINGSFIELD COMPUTER PRODUCTS LTD,KIN004
EFDC,33080,OTHER ACTIVITIES,EQUIPMENT - NEW,3010,12-Jul-17,109719,7.05,KINGSFIELD COMPUTER PRODUCTS LTD,KIN004
EFDC,33080,OTHER ACTIVITIES,EQUIPMENT - NEW,3010,12-Jul-17,109719,18.75,KINGSFIELD COMPUTER PRODUCTS LTD,KIN004
EFDC,32030,OTHER SUPPORT SERVICES (HR),EQUIPMENT - NEW,3010,12-Jul-17,109719,172.03,KINGSFIELD COMPUTER PRODUCTS LTD,KIN004
EFDC,35013,ENVIRONMENTAL OTHER,EQUIPMENT - NEW,3010,12-Jul-17,109719,18.75,KINGSFIELD COMPUTER PRODUCTS LTD,KIN004
EFDC,33080,OTHER ACTIVITIES,EQUIPMENT - NEW,3010,12-Jul-17,109719,1243.5,KINGSFIELD COMPUTER PRODUCTS LTD,KIN004
EFDC,33080,OTHER ACTIVITIES,EQUIPMENT - NEW,3010,12-Jul-17,109878,790.65,KINGSFIELD COMPUTER PRODUCTS LTD,KIN004
EFDC,RE100,ELECTIONS,EQUIPMENT - NEW,3010,12-Jul-17,109720,1656,KINGSFIELD COMPUTER PRODUCTS LTD,KIN004
EFDC,33080,OTHER ACTIVITIES,EQUIPMENT - NEW,3010,12-Jul-17,109719,503.78,KINGSFIELD COMPUTER PRODUCTS LTD,KIN004
EFDC,PS100,CAR PARKING,OTHER MAINTENANCE,1050,12-Jul-17,110062,2827.14,MURRILL CONSTRUCTION LTD,MUR004
EFDC,37600,PLANNING OTHER,AGENCY STAFF,0120,12-Jul-17,109840,2362.5,VIVID RESOURCING LTD,VIV002
EFDC,CAPRS,RESOURCES CAPITAL,CAPITAL SOFTWARE,K340,12-Jul-17,109944,3675,ALIGNED ASSETS LIMITED,ALI002
EFDC,YB200,SUPERVISION/MANAGEMENT SPECIAL,REMOVAL EXPENSES,3830,12-Jul-17,110789,1755.83,ROYDON MILL,ROY010
EFDC,CAPCM,COMMUNITIES CAPITAL,CONSTRUCTION,E030,12-Jul-17,111022,22726.34,STORM BUILDING LTD,STO007
EFDC,CAPCM,COMMUNITIES CAPITAL,CONSTRUCTION,E030,12-Jul-17,111010,15476.82,DENMARK AND WHITE LTD,DEN003
EFDC,CAPCM,COMMUNITIES CAPITAL,CONSTRUCTION,E030,12-Jul-17,111011,31529.1,DENMARK AND WHITE LTD,DEN003
EFDC,HI122,HIGHWAYS,TREE  MAINTENANCE,1070,12-Jul-17,111012,1790,KENDAL TREE SURGERY LTD,KEN004
EFDC,32180,OTHER SUPPORT SERVICES (HR),OTHER TRAVEL EXPENSES,2850,12-Jul-17,110453,24.48,HAYMARKET BUSINESS MEDIA,HAY001
EFDC,32180,OTHER SUPPORT SERVICES (HR),AGENCY STAFF,0120,12-Jul-17,110453,809.63,HAYMARKET BUSINESS MEDIA,HAY001
EFDC,BAL01,EFDC BALANCE SHEET,SALARIES - UNIONS,Z605,18-Jul-17,25035,1514.4,UNISON,UNI001
EFDC,32140,OTHER SUPPORT SERVICES (HR),COMMISSION,9320,18-Jul-17,25035,-37.86,UNISON,UNI001
EFDC,YB110,SUPERVISION/MANAGEMENT SPECIAL,ELECTRICITY,1120,19-Jul-17,111256,32.43,BRITISH GAS,BRI040
EFDC,YB110,SUPERVISION/MANAGEMENT SPECIAL,ELECTRICITY,1120,19-Jul-17,111256,12.88,BRITISH GAS,BRI040
EFDC,YB110,SUPERVISION/MANAGEMENT SPECIAL,ELECTRICITY,1120,19-Jul-17,111256,16.45,BRITISH GAS,BRI040
EFDC,YB110,SUPERVISION/MANAGEMENT SPECIAL,ELECTRICITY,1120,19-Jul-17,111256,11.87,BRITISH GAS,BRI040
EFDC,YB110,SUPERVISION/MANAGEMENT SPECIAL,ELECTRICITY,1120,19-Jul-17,111256,7.5,BRITISH GAS,BRI040
EFDC,YB110,SUPERVISION/MANAGEMENT SPECIAL,ELECTRICITY,1120,19-Jul-17,111256,7.54,BRITISH GAS,BRI040
EFDC,YB110,SUPERVISION/MANAGEMENT SPECIAL,ELECTRICITY,1120,19-Jul-17,111256,21.69,BRITISH GAS,BRI040
EFDC,YB110,SUPERVISION/MANAGEMENT SPECIAL,ELECTRICITY,1120,19-Jul-17,111256,12.77,BRITISH GAS,BRI040
EFDC,YB110,SUPERVISION/MANAGEMENT SPECIAL,ELECTRICITY,1120,19-Jul-17,111256,10.85,BRITISH GAS,BRI040
EFDC,YB110,SUPERVISION/MANAGEMENT SPECIAL,ELECTRICITY,1120,19-Jul-17,111256,26.56,BRITISH GAS,BRI040
EFDC,YB110,SUPERVISION/MANAGEMENT SPECIAL,ELECTRICITY,1120,19-Jul-17,111256,12.32,BRITISH GAS,BRI040
EFDC,YB110,SUPERVISION/MANAGEMENT SPECIAL,ELECTRICITY,1120,19-Jul-17,111256,11.6,BRITISH GAS,BRI040
EFDC,YB110,SUPERVISION/MANAGEMENT SPECIAL,ELECTRICITY,1120,19-Jul-17,111256,12.53,BRITISH GAS,BRI040
EFDC,YB110,SUPERVISION/MANAGEMENT SPECIAL,ELECTRICITY,1120,19-Jul-17,111256,9.14,BRITISH GAS,BRI040
EFDC,YB110,SUPERVISION/MANAGEMENT SPECIAL,ELECTRICITY,1120,19-Jul-17,111256,6.82,BRITISH GAS,BRI040
EFDC,YB110,SUPERVISION/MANAGEMENT SPECIAL,ELECTRICITY,1120,19-Jul-17,111256,6.33,BRITISH GAS,BRI040
EFDC,YB110,SUPERVISION/MANAGEMENT SPECIAL,ELECTRICITY,1120,19-Jul-17,111256,15.02,BRITISH GAS,BRI040
EFDC,YB110,SUPERVISION/MANAGEMENT SPECIAL,ELECTRICITY,1120,19-Jul-17,111256,16.76,BRITISH GAS,BRI040
EFDC,YB110,SUPERVISION/MANAGEMENT SPECIAL,ELECTRICITY,1120,19-Jul-17,111256,23.36,BRITISH GAS,BRI040
EFDC,YB110,SUPERVISION/MANAGEMENT SPECIAL,ELECTRICITY,1120,19-Jul-17,111256,6.82,BRITISH GAS,BRI040
EFDC,YB110,SUPERVISION/MANAGEMENT SPECIAL,ELECTRICITY,1120,19-Jul-17,111256,16.98,BRITISH GAS,BRI040
EFDC,YB110,SUPERVISION/MANAGEMENT SPECIAL,ELECTRICITY,1120,19-Jul-17,111256,20.15,BRITISH GAS,BRI040
EFDC,YB110,SUPERVISION/MANAGEMENT SPECIAL,ELECTRICITY,1120,19-Jul-17,111256,28.88,BRITISH GAS,BRI040
EFDC,YB110,SUPERVISION/MANAGEMENT SPECIAL,ELECTRICITY,1120,19-Jul-17,111256,6.82,BRITISH GAS,BRI040
EFDC,YB110,SUPERVISION/MANAGEMENT SPECIAL,ELECTRICITY,1120,19-Jul-17,111256,11.49,BRITISH GAS,BRI040
EFDC,YB110,SUPERVISION/MANAGEMENT SPECIAL,ELECTRICITY,1120,19-Jul-17,111256,6.82,BRITISH GAS,BRI040
EFDC,YB110,SUPERVISION/MANAGEMENT SPECIAL,ELECTRICITY,1120,19-Jul-17,111256,11.71,BRITISH GAS,BRI040
EFDC,YB110,SUPERVISION/MANAGEMENT SPECIAL,ELECTRICITY,1120,19-Jul-17,111256,6.82,BRITISH GAS,BRI040
EFDC,YB110,SUPERVISION/MANAGEMENT SPECIAL,ELECTRICITY,1120,19-Jul-17,111256,6.82,BRITISH GAS,BRI040
EFDC,YB110,SUPERVISION/MANAGEMENT SPECIAL,ELECTRICITY,1120,19-Jul-17,111256,26.02,BRITISH GAS,BRI040
EFDC,YB110,SUPERVISION/MANAGEMENT SPECIAL,ELECTRICITY,1120,19-Jul-17,111256,13.63,BRITISH GAS,BRI040
EFDC,YB110,SUPERVISION/MANAGEMENT SPECIAL,ELECTRICITY,1120,19-Jul-17,111256,24.03,BRITISH GAS,BRI040
EFDC,YB110,SUPERVISION/MANAGEMENT SPECIAL,ELECTRICITY,1120,19-Jul-17,111256,11.85,BRITISH GAS,BRI040
EFDC,YB110,SUPERVISION/MANAGEMENT SPECIAL,ELECTRICITY,1120,19-Jul-17,111256,12.88,BRITISH GAS,BRI040
EFDC,YB110,SUPERVISION/MANAGEMENT SPECIAL,ELECTRICITY,1120,19-Jul-17,111256,10.38,BRITISH GAS,BRI040
EFDC,YB110,SUPERVISION/MANAGEMENT SPECIAL,ELECTRICITY,1120,19-Jul-17,111256,12.32,BRITISH GAS,BRI040
EFDC,YB110,SUPERVISION/MANAGEMENT SPECIAL,ELECTRICITY,1120,19-Jul-17,111256,13.71,BRITISH GAS,BRI040
EFDC,YB110,SUPERVISION/MANAGEMENT SPECIAL,ELECTRICITY,1120,19-Jul-17,111256,11.88,BRITISH GAS,BRI040
EFDC,YB110,SUPERVISION/MANAGEMENT SPECIAL,ELECTRICITY,1120,19-Jul-17,111256,23.9,BRITISH GAS,BRI040
EFDC,YB110,SUPERVISION/MANAGEMENT SPECIAL,ELECTRICITY,1120,19-Jul-17,111256,14.33,BRITISH GAS,BRI040
EFDC,YB110,SUPERVISION/MANAGEMENT SPECIAL,ELECTRICITY,1120,19-Jul-17,111256,13.08,BRITISH GAS,BRI040
EFDC,YB110,SUPERVISION/MANAGEMENT SPECIAL,ELECTRICITY,1120,19-Jul-17,111256,12.63,BRITISH GAS,BRI040
EFDC,YB110,SUPERVISION/MANAGEMENT SPECIAL,ELECTRICITY,1120,19-Jul-17,111256,11.49,BRITISH GAS,BRI040
EFDC,YB110,SUPERVISION/MANAGEMENT SPECIAL,ELECTRICITY,1120,19-Jul-17,111256,11.43,BRITISH GAS,BRI040
EFDC,YB110,SUPERVISION/MANAGEMENT SPECIAL,ELECTRICITY,1120,19-Jul-17,111256,28.34,BRITISH GAS,BRI040
EFDC,YB110,SUPERVISION/MANAGEMENT SPECIAL,ELECTRICITY,1120,19-Jul-17,111256,11.63,BRITISH GAS,BRI040
EFDC,YB110,SUPERVISION/MANAGEMENT SPECIAL,ELECTRICITY,1120,19-Jul-17,111256,17.93,BRITISH GAS,BRI040
EFDC,YB110,SUPERVISION/MANAGEMENT SPECIAL,ELECTRICITY,1120,19-Jul-17,111256,10.58,BRITISH GAS,BRI040
EFDC,YB110,SUPERVISION/MANAGEMENT SPECIAL,ELECTRICITY,1120,19-Jul-17,111256,10.25,BRITISH GAS,BRI040
EFDC,YB110,SUPERVISION/MANAGEMENT SPECIAL,ELECTRICITY,1120,19-Jul-17,111256,8.17,BRITISH GAS,BRI040
EFDC,YB110,SUPERVISION/MANAGEMENT SPECIAL,ELECTRICITY,1120,19-Jul-17,111256,8.9,BRITISH GAS,BRI040
EFDC,YB110,SUPERVISION/MANAGEMENT SPECIAL,ELECTRICITY,1120,19-Jul-17,111256,41.57,BRITISH GAS,BRI040
EFDC,YB110,SUPERVISION/MANAGEMENT SPECIAL,ELECTRICITY,1120,19-Jul-17,111256,9.17,BRITISH GAS,BRI040
EFDC,YB110,SUPERVISION/MANAGEMENT SPECIAL,ELECTRICITY,1120,19-Jul-17,111256,10.92,BRITISH GAS,BRI040
EFDC,YB110,SUPERVISION/MANAGEMENT SPECIAL,ELECTRICITY,1120,19-Jul-17,111256,15.84,BRITISH GAS,BRI040
EFDC,YB110,SUPERVISION/MANAGEMENT SPECIAL,ELECTRICITY,1120,19-Jul-17,111256,14.61,BRITISH GAS,BRI040
EFDC,YB110,SUPERVISION/MANAGEMENT SPECIAL,ELECTRICITY,1120,19-Jul-17,111256,16.44,BRITISH GAS,BRI040
EFDC,YB110,SUPERVISION/MANAGEMENT SPECIAL,ELECTRICITY,1120,19-Jul-17,111256,21.35,BRITISH GAS,BRI040
EFDC,YB110,SUPERVISION/MANAGEMENT SPECIAL,ELECTRICITY,1120,19-Jul-17,111256,29.09,BRITISH GAS,BRI040
EFDC,YB110,SUPERVISION/MANAGEMENT SPECIAL,ELECTRICITY,1120,19-Jul-17,111256,14.03,BRITISH GAS,BRI040
EFDC,YB110,SUPERVISION/MANAGEMENT SPECIAL,ELECTRICITY,1120,19-Jul-17,111256,41.44,BRITISH GAS,BRI040
EFDC,YB110,SUPERVISION/MANAGEMENT SPECIAL,ELECTRICITY,1120,19-Jul-17,111256,7.22,BRITISH GAS,BRI040
EFDC,YB110,SUPERVISION/MANAGEMENT SPECIAL,ELECTRICITY,1120,19-Jul-17,111256,19.79,BRITISH GAS,BRI040
EFDC,YB110,SUPERVISION/MANAGEMENT SPECIAL,ELECTRICITY,1120,19-Jul-17,111256,13.11,BRITISH GAS,BRI040
EFDC,YB110,SUPERVISION/MANAGEMENT SPECIAL,ELECTRICITY,1120,19-Jul-17,111256,24.98,BRITISH GAS,BRI040
EFDC,YB110,SUPERVISION/MANAGEMENT SPECIAL,ELECTRICITY,1120,19-Jul-17,111256,12.64,BRITISH GAS,BRI040
EFDC,YB110,SUPERVISION/MANAGEMENT SPECIAL,ELECTRICITY,1120,19-Jul-17,111256,21.35,BRITISH GAS,BRI040
EFDC,YB110,SUPERVISION/MANAGEMENT SPECIAL,ELECTRICITY,1120,19-Jul-17,111256,13.29,BRITISH GAS,BRI040
EFDC,YB110,SUPERVISION/MANAGEMENT SPECIAL,ELECTRICITY,1120,19-Jul-17,111256,12.57,BRITISH GAS,BRI040
EFDC,YB110,SUPERVISION/MANAGEMENT SPECIAL,ELECTRICITY,1120,19-Jul-17,111256,14.46,BRITISH GAS,BRI040
EFDC,YB110,SUPERVISION/MANAGEMENT SPECIAL,ELECTRICITY,1120,19-Jul-17,111256,12.39,BRITISH GAS,BRI040
EFDC,YB110,SUPERVISION/MANAGEMENT SPECIAL,ELECTRICITY,1120,19-Jul-17,111256,13.68,BRITISH GAS,BRI040
EFDC,YB110,SUPERVISION/MANAGEMENT SPECIAL,ELECTRICITY,1120,19-Jul-17,111256,6.82,BRITISH GAS,BRI040
EFDC,YB110,SUPERVISION/MANAGEMENT SPECIAL,ELECTRICITY,1120,19-Jul-17,111256,36.58,BRITISH GAS,BRI040
EFDC,YB110,SUPERVISION/MANAGEMENT SPECIAL,ELECTRICITY,1120,19-Jul-17,111256,15.41,BRITISH GAS,BRI040
EFDC,YB110,SUPERVISION/MANAGEMENT SPECIAL,ELECTRICITY,1120,19-Jul-17,111256,10.52,BRITISH GAS,BRI040
EFDC,YB110,SUPERVISION/MANAGEMENT SPECIAL,ELECTRICITY,1120,19-Jul-17,111256,12.08,BRITISH GAS,BRI040
EFDC,YB110,SUPERVISION/MANAGEMENT SPECIAL,ELECTRICITY,1120,19-Jul-17,111256,14.78,BRITISH GAS,BRI040
EFDC,YB110,SUPERVISION/MANAGEMENT SPECIAL,ELECTRICITY,1120,19-Jul-17,111256,12.28,BRITISH GAS,BRI040
EFDC,YB110,SUPERVISION/MANAGEMENT SPECIAL,ELECTRICITY,1120,19-Jul-17,111256,14.28,BRITISH GAS,BRI040
EFDC,YB110,SUPERVISION/MANAGEMENT SPECIAL,ELECTRICITY,1120,19-Jul-17,111256,6.82,BRITISH GAS,BRI040
EFDC,YB110,SUPERVISION/MANAGEMENT SPECIAL,ELECTRICITY,1120,19-Jul-17,111256,16.01,BRITISH GAS,BRI040
EFDC,YB110,SUPERVISION/MANAGEMENT SPECIAL,ELECTRICITY,1120,19-Jul-17,111256,6.82,BRITISH GAS,BRI040
EFDC,YB110,SUPERVISION/MANAGEMENT SPECIAL,ELECTRICITY,1120,19-Jul-17,111256,6.82,BRITISH GAS,BRI040
EFDC,YB110,SUPERVISION/MANAGEMENT SPECIAL,ELECTRICITY,1120,19-Jul-17,111256,6.33,BRITISH GAS,BRI040
EFDC,YB110,SUPERVISION/MANAGEMENT SPECIAL,ELECTRICITY,1120,19-Jul-17,111256,23.67,BRITISH GAS,BRI040
EFDC,YB110,SUPERVISION/MANAGEMENT SPECIAL,ELECTRICITY,1120,19-Jul-17,111256,17.29,BRITISH GAS,BRI040
EFDC,YB110,SUPERVISION/MANAGEMENT SPECIAL,ELECTRICITY,1120,19-Jul-17,111256,22.07,BRITISH GAS,BRI040
EFDC,YB110,SUPERVISION/MANAGEMENT SPECIAL,ELECTRICITY,1120,19-Jul-17,111256,11.42,BRITISH GAS,BRI040
EFDC,YB110,SUPERVISION/MANAGEMENT SPECIAL,ELECTRICITY,1120,19-Jul-17,111256,12.13,BRITISH GAS,BRI040
EFDC,YB110,SUPERVISION/MANAGEMENT SPECIAL,ELECTRICITY,1120,19-Jul-17,111256,23.78,BRITISH GAS,BRI040
EFDC,YB110,SUPERVISION/MANAGEMENT SPECIAL,ELECTRICITY,1120,19-Jul-17,111256,9.82,BRITISH GAS,BRI040
EFDC,YB110,SUPERVISION/MANAGEMENT SPECIAL,ELECTRICITY,1120,19-Jul-17,111256,10.66,BRITISH GAS,BRI040
EFDC,YB110,SUPERVISION/MANAGEMENT SPECIAL,ELECTRICITY,1120,19-Jul-17,111256,8.69,BRITISH GAS,BRI040
EFDC,YB110,SUPERVISION/MANAGEMENT SPECIAL,ELECTRICITY,1120,19-Jul-17,111256,6.82,BRITISH GAS,BRI040
EFDC,YB110,SUPERVISION/MANAGEMENT SPECIAL,ELECTRICITY,1120,19-Jul-17,111256,12.6,BRITISH GAS,BRI040
EFDC,YB110,SUPERVISION/MANAGEMENT SPECIAL,ELECTRICITY,1120,19-Jul-17,111256,15.3,BRITISH GAS,BRI040
EFDC,YB110,SUPERVISION/MANAGEMENT SPECIAL,ELECTRICITY,1120,19-Jul-17,111256,11.14,BRITISH GAS,BRI040
EFDC,YB110,SUPERVISION/MANAGEMENT SPECIAL,ELECTRICITY,1120,19-Jul-17,111256,10.52,BRITISH GAS,BRI040
EFDC,YB110,SUPERVISION/MANAGEMENT SPECIAL,ELECTRICITY,1120,19-Jul-17,111256,10.89,BRITISH GAS,BRI040
EFDC,YB110,SUPERVISION/MANAGEMENT SPECIAL,ELECTRICITY,1120,19-Jul-17,111256,13.7,BRITISH GAS,BRI040
EFDC,YB110,SUPERVISION/MANAGEMENT SPECIAL,ELECTRICITY,1120,19-Jul-17,111256,11.97,BRITISH GAS,BRI040
EFDC,YB110,SUPERVISION/MANAGEMENT SPECIAL,ELECTRICITY,1120,19-Jul-17,111256,10.68,BRITISH GAS,BRI040
EFDC,YB110,SUPERVISION/MANAGEMENT SPECIAL,ELECTRICITY,1120,19-Jul-17,111256,36.08,BRITISH GAS,BRI040
EFDC,YB110,SUPERVISION/MANAGEMENT SPECIAL,ELECTRICITY,1120,19-Jul-17,111256,11.97,BRITISH GAS,BRI040
EFDC,YB110,SUPERVISION/MANAGEMENT SPECIAL,ELECTRICITY,1120,19-Jul-17,111256,13.84,BRITISH GAS,BRI040
EFDC,YB110,SUPERVISION/MANAGEMENT SPECIAL,ELECTRICITY,1120,19-Jul-17,111256,9.76,BRITISH GAS,BRI040
EFDC,YB110,SUPERVISION/MANAGEMENT SPECIAL,ELECTRICITY,1120,19-Jul-17,111256,11.18,BRITISH GAS,BRI040
EFDC,YB110,SUPERVISION/MANAGEMENT SPECIAL,ELECTRICITY,1120,19-Jul-17,111256,13.81,BRITISH GAS,BRI040
EFDC,YB110,SUPERVISION/MANAGEMENT SPECIAL,ELECTRICITY,1120,19-Jul-17,111256,11.59,BRITISH GAS,BRI040
EFDC,YB110,SUPERVISION/MANAGEMENT SPECIAL,ELECTRICITY,1120,19-Jul-17,111256,28.6,BRITISH GAS,BRI040
EFDC,YB110,SUPERVISION/MANAGEMENT SPECIAL,ELECTRICITY,1120,19-Jul-17,111256,42.19,BRITISH GAS,BRI040
EFDC,YB110,SUPERVISION/MANAGEMENT SPECIAL,ELECTRICITY,1120,19-Jul-17,111256,7.54,BRITISH GAS,BRI040
EFDC,YB110,SUPERVISION/MANAGEMENT SPECIAL,ELECTRICITY,1120,19-Jul-17,111256,7.19,BRITISH GAS,BRI040
EFDC,YB110,SUPERVISION/MANAGEMENT SPECIAL,ELECTRICITY,1120,19-Jul-17,111256,6.82,BRITISH GAS,BRI040
EFDC,YB110,SUPERVISION/MANAGEMENT SPECIAL,ELECTRICITY,1120,19-Jul-17,111256,22.6,BRITISH GAS,BRI040
EFDC,YB110,SUPERVISION/MANAGEMENT SPECIAL,ELECTRICITY,1120,19-Jul-17,111256,24.74,BRITISH GAS,BRI040
EFDC,YB110,SUPERVISION/MANAGEMENT SPECIAL,ELECTRICITY,1120,19-Jul-17,111256,7.92,BRITISH GAS,BRI040
EFDC,YB110,SUPERVISION/MANAGEMENT SPECIAL,ELECTRICITY,1120,19-Jul-17,111256,17.25,BRITISH GAS,BRI040
EFDC,YB110,SUPERVISION/MANAGEMENT SPECIAL,ELECTRICITY,1120,19-Jul-17,111256,7.78,BRITISH GAS,BRI040
EFDC,YB110,SUPERVISION/MANAGEMENT SPECIAL,ELECTRICITY,1120,19-Jul-17,111256,11.66,BRITISH GAS,BRI040
EFDC,YB110,SUPERVISION/MANAGEMENT SPECIAL,ELECTRICITY,1120,19-Jul-17,111256,82.38,BRITISH GAS,BRI040
EFDC,YB110,SUPERVISION/MANAGEMENT SPECIAL,ELECTRICITY,1120,19-Jul-17,111256,12.04,BRITISH GAS,BRI040
EFDC,YB110,SUPERVISION/MANAGEMENT SPECIAL,ELECTRICITY,1120,19-Jul-17,111256,47.63,BRITISH GAS,BRI040
EFDC,YB110,SUPERVISION/MANAGEMENT SPECIAL,ELECTRICITY,1120,19-Jul-17,111256,25.94,BRITISH GAS,BRI040
EFDC,YB110,SUPERVISION/MANAGEMENT SPECIAL,ELECTRICITY,1120,19-Jul-17,111256,71.8,BRITISH GAS,BRI040
EFDC,YB110,SUPERVISION/MANAGEMENT SPECIAL,ELECTRICITY,1120,19-Jul-17,111256,6.82,BRITISH GAS,BRI040
EFDC,YB110,SUPERVISION/MANAGEMENT SPECIAL,ELECTRICITY,1120,19-Jul-17,111256,7.58,BRITISH GAS,BRI040
EFDC,YB110,SUPERVISION/MANAGEMENT SPECIAL,ELECTRICITY,1120,19-Jul-17,111256,16.09,BRITISH GAS,BRI040
EFDC,YB110,SUPERVISION/MANAGEMENT SPECIAL,ELECTRICITY,1120,19-Jul-17,111256,19.43,BRITISH GAS,BRI040
EFDC,YB110,SUPERVISION/MANAGEMENT SPECIAL,ELECTRICITY,1120,19-Jul-17,111256,17.66,BRITISH GAS,BRI040
EFDC,YB110,SUPERVISION/MANAGEMENT SPECIAL,ELECTRICITY,1120,19-Jul-17,111256,29.23,BRITISH GAS,BRI040
EFDC,YB110,SUPERVISION/MANAGEMENT SPECIAL,ELECTRICITY,1120,19-Jul-17,111256,19.51,BRITISH GAS,BRI040
EFDC,YB110,SUPERVISION/MANAGEMENT SPECIAL,ELECTRICITY,1120,19-Jul-17,111256,24.79,BRITISH GAS,BRI040
EFDC,YB110,SUPERVISION/MANAGEMENT SPECIAL,ELECTRICITY,1120,19-Jul-17,111256,18.55,BRITISH GAS,BRI040
EFDC,YB110,SUPERVISION/MANAGEMENT SPECIAL,ELECTRICITY,1120,19-Jul-17,111256,28.24,BRITISH GAS,BRI040
EFDC,YB110,SUPERVISION/MANAGEMENT SPECIAL,ELECTRICITY,1120,19-Jul-17,111256,11.31,BRITISH GAS,BRI040
EFDC,YB110,SUPERVISION/MANAGEMENT SPECIAL,ELECTRICITY,1120,19-Jul-17,111256,15.63,BRITISH GAS,BRI040
EFDC,YB200,SUPERVISION/MANAGEMENT SPECIAL,ELECTRICITY,1120,19-Jul-17,111256,8.27,BRITISH GAS,BRI040
EFDC,YB140,SUPERVISION/MANAGEMENT SPECIAL,ELECTRICITY,1120,19-Jul-17,111256,24.08,BRITISH GAS,BRI040
EFDC,YB140,SUPERVISION/MANAGEMENT SPECIAL,ELECTRICITY,1120,19-Jul-17,111256,12.52,BRITISH GAS,BRI040
EFDC,YB140,SUPERVISION/MANAGEMENT SPECIAL,ELECTRICITY,1120,19-Jul-17,111256,23.78,BRITISH GAS,BRI040
EFDC,YB140,SUPERVISION/MANAGEMENT SPECIAL,ELECTRICITY,1120,19-Jul-17,111256,23.64,BRITISH GAS,BRI040
EFDC,YB140,SUPERVISION/MANAGEMENT SPECIAL,ELECTRICITY,1120,19-Jul-17,111256,16.65,BRITISH GAS,BRI040
EFDC,YB140,SUPERVISION/MANAGEMENT SPECIAL,ELECTRICITY,1120,19-Jul-17,111256,23.3,BRITISH GAS,BRI040
EFDC,YB300,SUPERVISION/MANAGEMENT SPECIAL,ELECTRICITY,1120,19-Jul-17,111256,30.47,BRITISH GAS,BRI040
EFDC,EH112,LAND DRAINAGE/SEWERAGE,OTHER MAINTENANCE,1050,19-Jul-17,111256,151.27,BRITISH GAS,BRI040
EFDC,YB140,SUPERVISION/MANAGEMENT SPECIAL,ELECTRICITY,1120,19-Jul-17,111256,18.91,BRITISH GAS,BRI040
EFDC,YB110,SUPERVISION/MANAGEMENT SPECIAL,ELECTRICITY,1120,19-Jul-17,111256,17.85,BRITISH GAS,BRI040
EFDC,YB140,SUPERVISION/MANAGEMENT SPECIAL,ELECTRICITY,1120,19-Jul-17,111256,13.6,BRITISH GAS,BRI040
EFDC,YB140,SUPERVISION/MANAGEMENT SPECIAL,ELECTRICITY,1120,19-Jul-17,111256,26.67,BRITISH GAS,BRI040
EFDC,YB140,SUPERVISION/MANAGEMENT SPECIAL,ELECTRICITY,1120,19-Jul-17,111256,23.25,BRITISH GAS,BRI040
EFDC,YB140,SUPERVISION/MANAGEMENT SPECIAL,ELECTRICITY,1120,19-Jul-17,111256,16.76,BRITISH GAS,BRI040
EFDC,YB140,SUPERVISION/MANAGEMENT SPECIAL,ELECTRICITY,1120,19-Jul-17,111256,36.35,BRITISH GAS,BRI040
EFDC,YB140,SUPERVISION/MANAGEMENT SPECIAL,ELECTRICITY,1120,19-Jul-17,111256,18.63,BRITISH GAS,BRI040
EFDC,YB140,SUPERVISION/MANAGEMENT SPECIAL,ELECTRICITY,1120,19-Jul-17,111256,19.62,BRITISH GAS,BRI040
EFDC,YB140,SUPERVISION/MANAGEMENT SPECIAL,ELECTRICITY,1120,19-Jul-17,111256,16.21,BRITISH GAS,BRI040
EFDC,YB110,SUPERVISION/MANAGEMENT SPECIAL,ELECTRICITY,1120,19-Jul-17,111256,13.46,BRITISH GAS,BRI040
EFDC,YB110,SUPERVISION/MANAGEMENT SPECIAL,ELECTRICITY,1120,19-Jul-17,111256,24.5,BRITISH GAS,BRI040
EFDC,YB110,SUPERVISION/MANAGEMENT SPECIAL,ELECTRICITY,1120,19-Jul-17,111256,10.98,BRITISH GAS,BRI040
EFDC,YB110,SUPERVISION/MANAGEMENT SPECIAL,ELECTRICITY,1120,19-Jul-17,111256,11.56,BRITISH GAS,BRI040
EFDC,YB110,SUPERVISION/MANAGEMENT SPECIAL,ELECTRICITY,1120,19-Jul-17,111256,13.25,BRITISH GAS,BRI040
EFDC,YB110,SUPERVISION/MANAGEMENT SPECIAL,ELECTRICITY,1120,19-Jul-17,111256,13.06,BRITISH GAS,BRI040
EFDC,YB110,SUPERVISION/MANAGEMENT SPECIAL,ELECTRICITY,1120,19-Jul-17,111256,11.91,BRITISH GAS,BRI040
EFDC,YB110,SUPERVISION/MANAGEMENT SPECIAL,ELECTRICITY,1120,19-Jul-17,111256,14.53,BRITISH GAS,BRI040
EFDC,YB110,SUPERVISION/MANAGEMENT SPECIAL,ELECTRICITY,1120,19-Jul-17,111256,13.06,BRITISH GAS,BRI040
EFDC,YB110,SUPERVISION/MANAGEMENT SPECIAL,ELECTRICITY,1120,19-Jul-17,111256,16.45,BRITISH GAS,BRI040
EFDC,YB110,SUPERVISION/MANAGEMENT SPECIAL,ELECTRICITY,1120,19-Jul-17,111256,11.58,BRITISH GAS,BRI040
EFDC,YB110,SUPERVISION/MANAGEMENT SPECIAL,ELECTRICITY,1120,19-Jul-17,111256,11.32,BRITISH GAS,BRI040
EFDC,YB110,SUPERVISION/MANAGEMENT SPECIAL,ELECTRICITY,1120,19-Jul-17,111256,9.88,BRITISH GAS,BRI040
EFDC,YB110,SUPERVISION/MANAGEMENT SPECIAL,ELECTRICITY,1120,19-Jul-17,111256,8.24,BRITISH GAS,BRI040
EFDC,YB110,SUPERVISION/MANAGEMENT SPECIAL,ELECTRICITY,1120,19-Jul-17,111256,14.29,BRITISH GAS,BRI040
EFDC,YB110,SUPERVISION/MANAGEMENT SPECIAL,ELECTRICITY,1120,19-Jul-17,111256,11.52,BRITISH GAS,BRI040
EFDC,YB110,SUPERVISION/MANAGEMENT SPECIAL,ELECTRICITY,1120,19-Jul-17,111256,39.33,BRITISH GAS,BRI040
EFDC,YB110,SUPERVISION/MANAGEMENT SPECIAL,ELECTRICITY,1120,19-Jul-17,111256,6.33,BRITISH GAS,BRI040
EFDC,YB110,SUPERVISION/MANAGEMENT SPECIAL,ELECTRICITY,1120,19-Jul-17,111256,38.64,BRITISH GAS,BRI040
EFDC,YB110,SUPERVISION/MANAGEMENT SPECIAL,ELECTRICITY,1120,19-Jul-17,111256,19.32,BRITISH GAS,BRI040
EFDC,YB110,SUPERVISION/MANAGEMENT SPECIAL,ELECTRICITY,1120,19-Jul-17,111256,11.4,BRITISH GAS,BRI040
EFDC,YB110,SUPERVISION/MANAGEMENT SPECIAL,ELECTRICITY,1120,19-Jul-17,111256,12.08,BRITISH GAS,BRI040
EFDC,YB110,SUPERVISION/MANAGEMENT SPECIAL,ELECTRICITY,1120,19-Jul-17,111256,11.65,BRITISH GAS,BRI040
EFDC,YB110,SUPERVISION/MANAGEMENT SPECIAL,ELECTRICITY,1120,19-Jul-17,111256,114.94,BRITISH GAS,BRI040
EFDC,YB110,SUPERVISION/MANAGEMENT SPECIAL,ELECTRICITY,1120,19-Jul-17,111256,10.88,BRITISH GAS,BRI040
EFDC,YB110,SUPERVISION/MANAGEMENT SPECIAL,ELECTRICITY,1120,19-Jul-17,111256,38.79,BRITISH GAS,BRI040
EFDC,YB110,SUPERVISION/MANAGEMENT SPECIAL,ELECTRICITY,1120,19-Jul-17,111256,14.8,BRITISH GAS,BRI040
EFDC,YB110,SUPERVISION/MANAGEMENT SPECIAL,ELECTRICITY,1120,19-Jul-17,111256,10.18,BRITISH GAS,BRI040
EFDC,YB110,SUPERVISION/MANAGEMENT SPECIAL,ELECTRICITY,1120,19-Jul-17,111256,11.79,BRITISH GAS,BRI040
EFDC,YB110,SUPERVISION/MANAGEMENT SPECIAL,ELECTRICITY,1120,19-Jul-17,111256,19.09,BRITISH GAS,BRI040
EFDC,YB110,SUPERVISION/MANAGEMENT SPECIAL,ELECTRICITY,1120,19-Jul-17,111256,11.03,BRITISH GAS,BRI040
EFDC,YB110,SUPERVISION/MANAGEMENT SPECIAL,ELECTRICITY,1120,19-Jul-17,111256,15.03,BRITISH GAS,BRI040
EFDC,YB110,SUPERVISION/MANAGEMENT SPECIAL,ELECTRICITY,1120,19-Jul-17,111256,11.04,BRITISH GAS,BRI040
EFDC,YB110,SUPERVISION/MANAGEMENT SPECIAL,ELECTRICITY,1120,19-Jul-17,111256,11742.43,BRITISH GAS,BRI040
EFDC,YB110,SUPERVISION/MANAGEMENT SPECIAL,ELECTRICITY,1120,19-Jul-17,111256,-75.28,BRITISH GAS,BRI040
EFDC,YB110,SUPERVISION/MANAGEMENT SPECIAL,ELECTRICITY,1120,19-Jul-17,111256,12.24,BRITISH GAS,BRI040
EFDC,YB110,SUPERVISION/MANAGEMENT SPECIAL,ELECTRICITY,1120,19-Jul-17,111256,13.22,BRITISH GAS,BRI040
EFDC,YB110,SUPERVISION/MANAGEMENT SPECIAL,ELECTRICITY,1120,19-Jul-17,111256,12.58,BRITISH GAS,BRI040
EFDC,YB110,SUPERVISION/MANAGEMENT SPECIAL,ELECTRICITY,1120,19-Jul-17,111256,12.25,BRITISH GAS,BRI040
EFDC,YB110,SUPERVISION/MANAGEMENT SPECIAL,ELECTRICITY,1120,19-Jul-17,111256,573.43,BRITISH GAS,BRI040
EFDC,YB110,SUPERVISION/MANAGEMENT SPECIAL,ELECTRICITY,1120,19-Jul-17,111256,11.31,BRITISH GAS,BRI040
EFDC,YB110,SUPERVISION/MANAGEMENT SPECIAL,ELECTRICITY,1120,19-Jul-17,111256,33.8,BRITISH GAS,BRI040
EFDC,YB110,SUPERVISION/MANAGEMENT SPECIAL,ELECTRICITY,1120,19-Jul-17,111256,35.43,BRITISH GAS,BRI040
EFDC,YB110,SUPERVISION/MANAGEMENT SPECIAL,ELECTRICITY,1120,19-Jul-17,111256,-90.39,BRITISH GAS,BRI040
EFDC,YB110,SUPERVISION/MANAGEMENT SPECIAL,ELECTRICITY,1120,19-Jul-17,111256,21.3,BRITISH GAS,BRI040
EFDC,YB110,SUPERVISION/MANAGEMENT SPECIAL,ELECTRICITY,1120,19-Jul-17,111256,14.47,BRITISH GAS,BRI040
EFDC,YB110,SUPERVISION/MANAGEMENT SPECIAL,ELECTRICITY,1120,19-Jul-17,111256,15.67,BRITISH GAS,BRI040
EFDC,YB110,SUPERVISION/MANAGEMENT SPECIAL,ELECTRICITY,1120,19-Jul-17,111256,10.41,BRITISH GAS,BRI040
EFDC,YB110,SUPERVISION/MANAGEMENT SPECIAL,ELECTRICITY,1120,19-Jul-17,111256,8.31,BRITISH GAS,BRI040
EFDC,YB110,SUPERVISION/MANAGEMENT SPECIAL,ELECTRICITY,1120,19-Jul-17,111256,12.99,BRITISH GAS,BRI040
EFDC,YB110,SUPERVISION/MANAGEMENT SPECIAL,ELECTRICITY,1120,19-Jul-17,111256,10.29,BRITISH GAS,BRI040
EFDC,YB110,SUPERVISION/MANAGEMENT SPECIAL,ELECTRICITY,1120,19-Jul-17,111256,11.09,BRITISH GAS,BRI040
EFDC,YB110,SUPERVISION/MANAGEMENT SPECIAL,ELECTRICITY,1120,19-Jul-17,111256,13.53,BRITISH GAS,BRI040
EFDC,YB110,SUPERVISION/MANAGEMENT SPECIAL,ELECTRICITY,1120,19-Jul-17,111256,12.93,BRITISH GAS,BRI040
EFDC,YB110,SUPERVISION/MANAGEMENT SPECIAL,ELECTRICITY,1120,19-Jul-17,111256,10.51,BRITISH GAS,BRI040
EFDC,YB110,SUPERVISION/MANAGEMENT SPECIAL,ELECTRICITY,1120,19-Jul-17,111256,100.8,BRITISH GAS,BRI040
EFDC,YB110,SUPERVISION/MANAGEMENT SPECIAL,ELECTRICITY,1120,19-Jul-17,111256,11.09,BRITISH GAS,BRI040
EFDC,YB110,SUPERVISION/MANAGEMENT SPECIAL,ELECTRICITY,1120,19-Jul-17,111256,12.54,BRITISH GAS,BRI040
EFDC,YB110,SUPERVISION/MANAGEMENT SPECIAL,ELECTRICITY,1120,19-Jul-17,111256,13.46,BRITISH GAS,BRI040
EFDC,YB110,SUPERVISION/MANAGEMENT SPECIAL,ELECTRICITY,1120,19-Jul-17,111256,10.71,BRITISH GAS,BRI040
EFDC,YB110,SUPERVISION/MANAGEMENT SPECIAL,ELECTRICITY,1120,19-Jul-17,111256,15.52,BRITISH GAS,BRI040
EFDC,YB110,SUPERVISION/MANAGEMENT SPECIAL,ELECTRICITY,1120,19-Jul-17,111256,16.92,BRITISH GAS,BRI040
EFDC,YB110,SUPERVISION/MANAGEMENT SPECIAL,ELECTRICITY,1120,19-Jul-17,111256,12.05,BRITISH GAS,BRI040
EFDC,YB110,SUPERVISION/MANAGEMENT SPECIAL,ELECTRICITY,1120,19-Jul-17,111256,10.98,BRITISH GAS,BRI040
EFDC,YB110,SUPERVISION/MANAGEMENT SPECIAL,ELECTRICITY,1120,19-Jul-17,111256,11.13,BRITISH GAS,BRI040
EFDC,YB110,SUPERVISION/MANAGEMENT SPECIAL,ELECTRICITY,1120,19-Jul-17,111256,8.65,BRITISH GAS,BRI040
EFDC,YB110,SUPERVISION/MANAGEMENT SPECIAL,ELECTRICITY,1120,19-Jul-17,111256,24.23,BRITISH GAS,BRI040
EFDC,YB110,SUPERVISION/MANAGEMENT SPECIAL,ELECTRICITY,1120,19-Jul-17,111256,13.74,BRITISH GAS,BRI040
EFDC,YB110,SUPERVISION/MANAGEMENT SPECIAL,ELECTRICITY,1120,19-Jul-17,111256,10.24,BRITISH GAS,BRI040
EFDC,YB110,SUPERVISION/MANAGEMENT SPECIAL,ELECTRICITY,1120,19-Jul-17,111256,10.72,BRITISH GAS,BRI040
EFDC,YB110,SUPERVISION/MANAGEMENT SPECIAL,ELECTRICITY,1120,19-Jul-17,111256,10.6,BRITISH GAS,BRI040
EFDC,YB110,SUPERVISION/MANAGEMENT SPECIAL,ELECTRICITY,1120,19-Jul-17,111256,10.26,BRITISH GAS,BRI040
EFDC,YB110,SUPERVISION/MANAGEMENT SPECIAL,ELECTRICITY,1120,19-Jul-17,111256,12.93,BRITISH GAS,BRI040
EFDC,YB110,SUPERVISION/MANAGEMENT SPECIAL,ELECTRICITY,1120,19-Jul-17,111256,13.37,BRITISH GAS,BRI040
EFDC,YB110,SUPERVISION/MANAGEMENT SPECIAL,ELECTRICITY,1120,19-Jul-17,111256,11.36,BRITISH GAS,BRI040
EFDC,YB110,SUPERVISION/MANAGEMENT SPECIAL,ELECTRICITY,1120,19-Jul-17,111256,16.84,BRITISH GAS,BRI040
EFDC,YB110,SUPERVISION/MANAGEMENT SPECIAL,ELECTRICITY,1120,19-Jul-17,111256,15.77,BRITISH GAS,BRI040
EFDC,YB110,SUPERVISION/MANAGEMENT SPECIAL,ELECTRICITY,1120,19-Jul-17,111256,10.04,BRITISH GAS,BRI040
EFDC,YB110,SUPERVISION/MANAGEMENT SPECIAL,ELECTRICITY,1120,19-Jul-17,111256,9.18,BRITISH GAS,BRI040
EFDC,YB110,SUPERVISION/MANAGEMENT SPECIAL,ELECTRICITY,1120,19-Jul-17,111256,15.05,BRITISH GAS,BRI040
EFDC,YB110,SUPERVISION/MANAGEMENT SPECIAL,ELECTRICITY,1120,19-Jul-17,111256,11.2,BRITISH GAS,BRI040
EFDC,YB110,SUPERVISION/MANAGEMENT SPECIAL,ELECTRICITY,1120,19-Jul-17,111256,39.31,BRITISH GAS,BRI040
EFDC,YB110,SUPERVISION/MANAGEMENT SPECIAL,ELECTRICITY,1120,19-Jul-17,111256,13.79,BRITISH GAS,BRI040
EFDC,YB110,SUPERVISION/MANAGEMENT SPECIAL,ELECTRICITY,1120,19-Jul-17,111256,12.17,BRITISH GAS,BRI040
EFDC,YB110,SUPERVISION/MANAGEMENT SPECIAL,ELECTRICITY,1120,19-Jul-17,111256,12.52,BRITISH GAS,BRI040
EFDC,YB110,SUPERVISION/MANAGEMENT SPECIAL,ELECTRICITY,1120,19-Jul-17,111256,20,BRITISH GAS,BRI040
EFDC,YB110,SUPERVISION/MANAGEMENT SPECIAL,ELECTRICITY,1120,19-Jul-17,111256,24.12,BRITISH GAS,BRI040
EFDC,YB110,SUPERVISION/MANAGEMENT SPECIAL,ELECTRICITY,1120,19-Jul-17,111256,10.38,BRITISH GAS,BRI040
EFDC,YB110,SUPERVISION/MANAGEMENT SPECIAL,ELECTRICITY,1120,19-Jul-17,111256,22.11,BRITISH GAS,BRI040
EFDC,YB110,SUPERVISION/MANAGEMENT SPECIAL,ELECTRICITY,1120,19-Jul-17,111256,77.17,BRITISH GAS,BRI040
EFDC,YB110,SUPERVISION/MANAGEMENT SPECIAL,ELECTRICITY,1120,19-Jul-17,111256,24.78,BRITISH GAS,BRI040
EFDC,YB110,SUPERVISION/MANAGEMENT SPECIAL,ELECTRICITY,1120,19-Jul-17,111256,28.71,BRITISH GAS,BRI040
EFDC,YB110,SUPERVISION/MANAGEMENT SPECIAL,ELECTRICITY,1120,19-Jul-17,111256,9.18,BRITISH GAS,BRI040
EFDC,YB110,SUPERVISION/MANAGEMENT SPECIAL,ELECTRICITY,1120,19-Jul-17,111256,10.89,BRITISH GAS,BRI040
EFDC,YB110,SUPERVISION/MANAGEMENT SPECIAL,ELECTRICITY,1120,19-Jul-17,111256,12.82,BRITISH GAS,BRI040
EFDC,YB110,SUPERVISION/MANAGEMENT SPECIAL,ELECTRICITY,1120,19-Jul-17,111256,11.74,BRITISH GAS,BRI040
EFDC,YB110,SUPERVISION/MANAGEMENT SPECIAL,ELECTRICITY,1120,19-Jul-17,111256,23.83,BRITISH GAS,BRI040
EFDC,YB110,SUPERVISION/MANAGEMENT SPECIAL,ELECTRICITY,1120,19-Jul-17,111256,10.05,BRITISH GAS,BRI040
EFDC,YB110,SUPERVISION/MANAGEMENT SPECIAL,ELECTRICITY,1120,19-Jul-17,111256,41.39,BRITISH GAS,BRI040
EFDC,YB110,SUPERVISION/MANAGEMENT SPECIAL,ELECTRICITY,1120,19-Jul-17,111256,6.6,BRITISH GAS,BRI040
EFDC,YB110,SUPERVISION/MANAGEMENT SPECIAL,ELECTRICITY,1120,19-Jul-17,111256,12.81,BRITISH GAS,BRI040
EFDC,YB110,SUPERVISION/MANAGEMENT SPECIAL,ELECTRICITY,1120,19-Jul-17,111256,17.26,BRITISH GAS,BRI040
EFDC,YB110,SUPERVISION/MANAGEMENT SPECIAL,ELECTRICITY,1120,19-Jul-17,111256,11.03,BRITISH GAS,BRI040
EFDC,YB110,SUPERVISION/MANAGEMENT SPECIAL,ELECTRICITY,1120,19-Jul-17,111256,22.64,BRITISH GAS,BRI040
EFDC,YB110,SUPERVISION/MANAGEMENT SPECIAL,ELECTRICITY,1120,19-Jul-17,111256,20.17,BRITISH GAS,BRI040
EFDC,YB110,SUPERVISION/MANAGEMENT SPECIAL,ELECTRICITY,1120,19-Jul-17,111256,-840.02,BRITISH GAS,BRI040
EFDC,YB110,SUPERVISION/MANAGEMENT SPECIAL,ELECTRICITY,1120,19-Jul-17,111256,26.08,BRITISH GAS,BRI040
EFDC,YB110,SUPERVISION/MANAGEMENT SPECIAL,ELECTRICITY,1120,19-Jul-17,111256,7.06,BRITISH GAS,BRI040
EFDC,YB110,SUPERVISION/MANAGEMENT SPECIAL,ELECTRICITY,1120,19-Jul-17,111256,11.7,BRITISH GAS,BRI040
EFDC,YB110,SUPERVISION/MANAGEMENT SPECIAL,ELECTRICITY,1120,19-Jul-17,111256,109.81,BRITISH GAS,BRI040
EFDC,YB110,SUPERVISION/MANAGEMENT SPECIAL,ELECTRICITY,1120,19-Jul-17,111256,20.31,BRITISH GAS,BRI040
EFDC,YB110,SUPERVISION/MANAGEMENT SPECIAL,ELECTRICITY,1120,19-Jul-17,111256,11.61,BRITISH GAS,BRI040
EFDC,YB110,SUPERVISION/MANAGEMENT SPECIAL,ELECTRICITY,1120,19-Jul-17,111256,26.71,BRITISH GAS,BRI040
EFDC,YB110,SUPERVISION/MANAGEMENT SPECIAL,ELECTRICITY,1120,19-Jul-17,111256,12.57,BRITISH GAS,BRI040
EFDC,YB110,SUPERVISION/MANAGEMENT SPECIAL,ELECTRICITY,1120,19-Jul-17,111256,26.16,BRITISH GAS,BRI040
EFDC,YB110,SUPERVISION/MANAGEMENT SPECIAL,ELECTRICITY,1120,19-Jul-17,111256,28.13,BRITISH GAS,BRI040
EFDC,YB110,SUPERVISION/MANAGEMENT SPECIAL,ELECTRICITY,1120,19-Jul-17,111256,-64.23,BRITISH GAS,BRI040
EFDC,YB110,SUPERVISION/MANAGEMENT SPECIAL,ELECTRICITY,1120,19-Jul-17,111256,-66.51,BRITISH GAS,BRI040
EFDC,YB110,SUPERVISION/MANAGEMENT SPECIAL,ELECTRICITY,1120,19-Jul-17,111256,-63.77,BRITISH GAS,BRI040
EFDC,YB110,SUPERVISION/MANAGEMENT SPECIAL,ELECTRICITY,1120,19-Jul-17,111256,21.14,BRITISH GAS,BRI040
EFDC,YB110,SUPERVISION/MANAGEMENT SPECIAL,ELECTRICITY,1120,19-Jul-17,111256,11.9,BRITISH GAS,BRI040
EFDC,YB110,SUPERVISION/MANAGEMENT SPECIAL,ELECTRICITY,1120,19-Jul-17,111256,12.22,BRITISH GAS,BRI040
EFDC,YB110,SUPERVISION/MANAGEMENT SPECIAL,ELECTRICITY,1120,19-Jul-17,111256,62.36,BRITISH GAS,BRI040
EFDC,YB110,SUPERVISION/MANAGEMENT SPECIAL,ELECTRICITY,1120,19-Jul-17,111256,9.8,BRITISH GAS,BRI040
EFDC,YB110,SUPERVISION/MANAGEMENT SPECIAL,ELECTRICITY,1120,19-Jul-17,111256,15.72,BRITISH GAS,BRI040
EFDC,YB110,SUPERVISION/MANAGEMENT SPECIAL,ELECTRICITY,1120,19-Jul-17,111256,17.64,BRITISH GAS,BRI040
EFDC,YB110,SUPERVISION/MANAGEMENT SPECIAL,ELECTRICITY,1120,19-Jul-17,111256,19.5,BRITISH GAS,BRI040
EFDC,YB110,SUPERVISION/MANAGEMENT SPECIAL,ELECTRICITY,1120,19-Jul-17,111256,17.62,BRITISH GAS,BRI040
EFDC,YB110,SUPERVISION/MANAGEMENT SPECIAL,ELECTRICITY,1120,19-Jul-17,111256,205.01,BRITISH GAS,BRI040
EFDC,YB110,SUPERVISION/MANAGEMENT SPECIAL,ELECTRICITY,1120,19-Jul-17,111256,11.24,BRITISH GAS,BRI040
EFDC,YB110,SUPERVISION/MANAGEMENT SPECIAL,ELECTRICITY,1120,19-Jul-17,111256,-18.07,BRITISH GAS,BRI040
EFDC,YB110,SUPERVISION/MANAGEMENT SPECIAL,ELECTRICITY,1120,19-Jul-17,111256,6.55,BRITISH GAS,BRI040
EFDC,YB110,SUPERVISION/MANAGEMENT SPECIAL,ELECTRICITY,1120,19-Jul-17,111256,32.05,BRITISH GAS,BRI040
EFDC,YB110,SUPERVISION/MANAGEMENT SPECIAL,ELECTRICITY,1120,19-Jul-17,111256,-12.11,BRITISH GAS,BRI040
EFDC,YB110,SUPERVISION/MANAGEMENT SPECIAL,ELECTRICITY,1120,19-Jul-17,111256,-10.26,BRITISH GAS,BRI040
EFDC,YB110,SUPERVISION/MANAGEMENT SPECIAL,ELECTRICITY,1120,19-Jul-17,111256,-11.76,BRITISH GAS,BRI040
EFDC,YB110,SUPERVISION/MANAGEMENT SPECIAL,ELECTRICITY,1120,19-Jul-17,111256,-11.7,BRITISH GAS,BRI040
EFDC,YB110,SUPERVISION/MANAGEMENT SPECIAL,ELECTRICITY,1120,19-Jul-17,111256,7.19,BRITISH GAS,BRI040
EFDC,YB110,SUPERVISION/MANAGEMENT SPECIAL,ELECTRICITY,1120,19-Jul-17,111256,-7.19,BRITISH GAS,BRI040
EFDC,YB110,SUPERVISION/MANAGEMENT SPECIAL,ELECTRICITY,1120,19-Jul-17,111256,-3.49,BRITISH GAS,BRI040
EFDC,YB110,SUPERVISION/MANAGEMENT SPECIAL,ELECTRICITY,1120,19-Jul-17,111256,-6.99,BRITISH GAS,BRI040
EFDC,YB110,SUPERVISION/MANAGEMENT SPECIAL,ELECTRICITY,1120,19-Jul-17,111256,-6.55,BRITISH GAS,BRI040
EFDC,YB110,SUPERVISION/MANAGEMENT SPECIAL,ELECTRICITY,1120,19-Jul-17,111256,-36.2,BRITISH GAS,BRI040
EFDC,YB110,SUPERVISION/MANAGEMENT SPECIAL,ELECTRICITY,1120,19-Jul-17,111256,42.64,BRITISH GAS,BRI040
EFDC,YB110,SUPERVISION/MANAGEMENT SPECIAL,ELECTRICITY,1120,19-Jul-17,111256,-12.03,BRITISH GAS,BRI040
EFDC,YB110,SUPERVISION/MANAGEMENT SPECIAL,ELECTRICITY,1120,19-Jul-17,111256,12.11,BRITISH GAS,BRI040
EFDC,YB110,SUPERVISION/MANAGEMENT SPECIAL,ELECTRICITY,1120,19-Jul-17,111256,12.45,BRITISH GAS,BRI040
EFDC,YB110,SUPERVISION/MANAGEMENT SPECIAL,ELECTRICITY,1120,19-Jul-17,111256,6.99,BRITISH GAS,BRI040
EFDC,YB110,SUPERVISION/MANAGEMENT SPECIAL,ELECTRICITY,1120,19-Jul-17,111256,3.49,BRITISH GAS,BRI040
EFDC,YB110,SUPERVISION/MANAGEMENT SPECIAL,ELECTRICITY,1120,19-Jul-17,111256,10.26,BRITISH GAS,BRI040
EFDC,YB110,SUPERVISION/MANAGEMENT SPECIAL,ELECTRICITY,1120,19-Jul-17,111256,11.76,BRITISH GAS,BRI040
EFDC,YB110,SUPERVISION/MANAGEMENT SPECIAL,ELECTRICITY,1120,19-Jul-17,111256,12.03,BRITISH GAS,BRI040
EFDC,YB110,SUPERVISION/MANAGEMENT SPECIAL,ELECTRICITY,1120,19-Jul-17,111256,11.7,BRITISH GAS,BRI040
EFDC,YB110,SUPERVISION/MANAGEMENT SPECIAL,ELECTRICITY,1120,19-Jul-17,111256,18.07,BRITISH GAS,BRI040
EFDC,YB110,SUPERVISION/MANAGEMENT SPECIAL,ELECTRICITY,1120,19-Jul-17,111256,12.05,BRITISH GAS,BRI040
EFDC,YB110,SUPERVISION/MANAGEMENT SPECIAL,ELECTRICITY,1120,19-Jul-17,111256,8.72,BRITISH GAS,BRI040
EFDC,YB110,SUPERVISION/MANAGEMENT SPECIAL,ELECTRICITY,1120,19-Jul-17,111256,11.64,BRITISH GAS,BRI040
EFDC,YB110,SUPERVISION/MANAGEMENT SPECIAL,ELECTRICITY,1120,19-Jul-17,111256,12.24,BRITISH GAS,BRI040
EFDC,YB110,SUPERVISION/MANAGEMENT SPECIAL,ELECTRICITY,1120,19-Jul-17,111256,12.92,BRITISH GAS,BRI040
EFDC,YB110,SUPERVISION/MANAGEMENT SPECIAL,ELECTRICITY,1120,19-Jul-17,111256,14.3,BRITISH GAS,BRI040
EFDC,YB110,SUPERVISION/MANAGEMENT SPECIAL,ELECTRICITY,1120,19-Jul-17,111256,13.03,BRITISH GAS,BRI040
EFDC,YB110,SUPERVISION/MANAGEMENT SPECIAL,ELECTRICITY,1120,19-Jul-17,111256,12.99,BRITISH GAS,BRI040
EFDC,YB110,SUPERVISION/MANAGEMENT SPECIAL,ELECTRICITY,1120,19-Jul-17,111256,11.94,BRITISH GAS,BRI040
EFDC,YB110,SUPERVISION/MANAGEMENT SPECIAL,ELECTRICITY,1120,19-Jul-17,111256,15.49,BRITISH GAS,BRI040
EFDC,YB110,SUPERVISION/MANAGEMENT SPECIAL,ELECTRICITY,1120,19-Jul-17,111256,11.61,BRITISH GAS,BRI040
EFDC,YB110,SUPERVISION/MANAGEMENT SPECIAL,ELECTRICITY,1120,19-Jul-17,111256,13.01,BRITISH GAS,BRI040
EFDC,YB110,SUPERVISION/MANAGEMENT SPECIAL,ELECTRICITY,1120,19-Jul-17,111256,12.22,BRITISH GAS,BRI040
EFDC,YB110,SUPERVISION/MANAGEMENT SPECIAL,ELECTRICITY,1120,19-Jul-17,111256,11.35,BRITISH GAS,BRI040
EFDC,YB110,SUPERVISION/MANAGEMENT SPECIAL,ELECTRICITY,1120,19-Jul-17,111256,10.96,BRITISH GAS,BRI040
EFDC,YB110,SUPERVISION/MANAGEMENT SPECIAL,ELECTRICITY,1120,19-Jul-17,111256,12.99,BRITISH GAS,BRI040
EFDC,YB110,SUPERVISION/MANAGEMENT SPECIAL,ELECTRICITY,1120,19-Jul-17,111256,13.84,BRITISH GAS,BRI040
EFDC,YB110,SUPERVISION/MANAGEMENT SPECIAL,ELECTRICITY,1120,19-Jul-17,111256,12.16,BRITISH GAS,BRI040
EFDC,YB110,SUPERVISION/MANAGEMENT SPECIAL,ELECTRICITY,1120,19-Jul-17,111256,6.54,BRITISH GAS,BRI040
EFDC,YB110,SUPERVISION/MANAGEMENT SPECIAL,ELECTRICITY,1120,19-Jul-17,111256,12.57,BRITISH GAS,BRI040
EFDC,YB110,SUPERVISION/MANAGEMENT SPECIAL,ELECTRICITY,1120,19-Jul-17,111256,8.82,BRITISH GAS,BRI040
EFDC,YB110,SUPERVISION/MANAGEMENT SPECIAL,ELECTRICITY,1120,19-Jul-17,111256,14.36,BRITISH GAS,BRI040
EFDC,YB110,SUPERVISION/MANAGEMENT SPECIAL,ELECTRICITY,1120,19-Jul-17,111256,18.49,BRITISH GAS,BRI040
EFDC,YB110,SUPERVISION/MANAGEMENT SPECIAL,ELECTRICITY,1120,19-Jul-17,111256,11.63,BRITISH GAS,BRI040
EFDC,YB110,SUPERVISION/MANAGEMENT SPECIAL,ELECTRICITY,1120,19-Jul-17,111256,9.73,BRITISH GAS,BRI040
EFDC,YB110,SUPERVISION/MANAGEMENT SPECIAL,ELECTRICITY,1120,19-Jul-17,111256,12.18,BRITISH GAS,BRI040
EFDC,YB110,SUPERVISION/MANAGEMENT SPECIAL,ELECTRICITY,1120,19-Jul-17,111256,7.06,BRITISH GAS,BRI040
EFDC,YB110,SUPERVISION/MANAGEMENT SPECIAL,ELECTRICITY,1120,19-Jul-17,111256,12.54,BRITISH GAS,BRI040
EFDC,YB110,SUPERVISION/MANAGEMENT SPECIAL,ELECTRICITY,1120,19-Jul-17,111256,12.88,BRITISH GAS,BRI040
EFDC,YB110,SUPERVISION/MANAGEMENT SPECIAL,ELECTRICITY,1120,19-Jul-17,111256,12.05,BRITISH GAS,BRI040
EFDC,YB110,SUPERVISION/MANAGEMENT SPECIAL,ELECTRICITY,1120,19-Jul-17,111256,11.76,BRITISH GAS,BRI040
EFDC,YB110,SUPERVISION/MANAGEMENT SPECIAL,ELECTRICITY,1120,19-Jul-17,111256,8.82,BRITISH GAS,BRI040
EFDC,YB110,SUPERVISION/MANAGEMENT SPECIAL,ELECTRICITY,1120,19-Jul-17,111256,11.91,BRITISH GAS,BRI040
EFDC,YB110,SUPERVISION/MANAGEMENT SPECIAL,ELECTRICITY,1120,19-Jul-17,111256,17.62,BRITISH GAS,BRI040
EFDC,YB110,SUPERVISION/MANAGEMENT SPECIAL,ELECTRICITY,1120,19-Jul-17,111256,13.19,BRITISH GAS,BRI040
EFDC,YB110,SUPERVISION/MANAGEMENT SPECIAL,ELECTRICITY,1120,19-Jul-17,111256,18.03,BRITISH GAS,BRI040
EFDC,YB110,SUPERVISION/MANAGEMENT SPECIAL,ELECTRICITY,1120,19-Jul-17,111256,18.14,BRITISH GAS,BRI040
EFDC,YB110,SUPERVISION/MANAGEMENT SPECIAL,ELECTRICITY,1120,19-Jul-17,111256,9.97,BRITISH GAS,BRI040
EFDC,YB110,SUPERVISION/MANAGEMENT SPECIAL,ELECTRICITY,1120,19-Jul-17,111256,10.04,BRITISH GAS,BRI040
EFDC,YB110,SUPERVISION/MANAGEMENT SPECIAL,ELECTRICITY,1120,19-Jul-17,111256,12.12,BRITISH GAS,BRI040
EFDC,YB110,SUPERVISION/MANAGEMENT SPECIAL,ELECTRICITY,1120,19-Jul-17,111256,12.98,BRITISH GAS,BRI040
EFDC,YB110,SUPERVISION/MANAGEMENT SPECIAL,ELECTRICITY,1120,19-Jul-17,111256,15.26,BRITISH GAS,BRI040
EFDC,YB110,SUPERVISION/MANAGEMENT SPECIAL,ELECTRICITY,1120,19-Jul-17,111256,16.02,BRITISH GAS,BRI040
EFDC,YB110,SUPERVISION/MANAGEMENT SPECIAL,ELECTRICITY,1120,19-Jul-17,111256,40.78,BRITISH GAS,BRI040
EFDC,YB110,SUPERVISION/MANAGEMENT SPECIAL,ELECTRICITY,1120,19-Jul-17,111256,12.01,BRITISH GAS,BRI040
EFDC,YB110,SUPERVISION/MANAGEMENT SPECIAL,ELECTRICITY,1120,19-Jul-17,111256,14.19,BRITISH GAS,BRI040
EFDC,YB110,SUPERVISION/MANAGEMENT SPECIAL,ELECTRICITY,1120,19-Jul-17,111256,11.53,BRITISH GAS,BRI040
EFDC,YB110,SUPERVISION/MANAGEMENT SPECIAL,ELECTRICITY,1120,19-Jul-17,111256,10.66,BRITISH GAS,BRI040
EFDC,YB110,SUPERVISION/MANAGEMENT SPECIAL,ELECTRICITY,1120,19-Jul-17,111256,205.98,BRITISH GAS,BRI040
EFDC,YB110,SUPERVISION/MANAGEMENT SPECIAL,ELECTRICITY,1120,19-Jul-17,111256,8.72,BRITISH GAS,BRI040
EFDC,YB110,SUPERVISION/MANAGEMENT SPECIAL,ELECTRICITY,1120,19-Jul-17,111256,11.73,BRITISH GAS,BRI040
EFDC,YB110,SUPERVISION/MANAGEMENT SPECIAL,ELECTRICITY,1120,19-Jul-17,111256,12.18,BRITISH GAS,BRI040
EFDC,YB110,SUPERVISION/MANAGEMENT SPECIAL,ELECTRICITY,1120,19-Jul-17,111256,10.04,BRITISH GAS,BRI040
EFDC,YB110,SUPERVISION/MANAGEMENT SPECIAL,ELECTRICITY,1120,19-Jul-17,111256,21.53,BRITISH GAS,BRI040
EFDC,YB110,SUPERVISION/MANAGEMENT SPECIAL,ELECTRICITY,1120,19-Jul-17,111256,37.83,BRITISH GAS,BRI040
EFDC,YB110,SUPERVISION/MANAGEMENT SPECIAL,ELECTRICITY,1120,19-Jul-17,111256,13.19,BRITISH GAS,BRI040
EFDC,YB110,SUPERVISION/MANAGEMENT SPECIAL,ELECTRICITY,1120,19-Jul-17,111256,21.96,BRITISH GAS,BRI040
EFDC,YB110,SUPERVISION/MANAGEMENT SPECIAL,ELECTRICITY,1120,19-Jul-17,111256,13.43,BRITISH GAS,BRI040
EFDC,YB110,SUPERVISION/MANAGEMENT SPECIAL,ELECTRICITY,1120,19-Jul-17,111256,13.01,BRITISH GAS,BRI040
EFDC,YB110,SUPERVISION/MANAGEMENT SPECIAL,ELECTRICITY,1120,19-Jul-17,111256,14.36,BRITISH GAS,BRI040
EFDC,YB110,SUPERVISION/MANAGEMENT SPECIAL,ELECTRICITY,1120,19-Jul-17,111256,12.91,BRITISH GAS,BRI040
EFDC,YB110,SUPERVISION/MANAGEMENT SPECIAL,ELECTRICITY,1120,19-Jul-17,111256,14.26,BRITISH GAS,BRI040
EFDC,YB110,SUPERVISION/MANAGEMENT SPECIAL,ELECTRICITY,1120,19-Jul-17,111256,14.05,BRITISH GAS,BRI040
EFDC,YB110,SUPERVISION/MANAGEMENT SPECIAL,ELECTRICITY,1120,19-Jul-17,111256,15.3,BRITISH GAS,BRI040
EFDC,YB110,SUPERVISION/MANAGEMENT SPECIAL,ELECTRICITY,1120,19-Jul-17,111256,17.56,BRITISH GAS,BRI040
EFDC,YB110,SUPERVISION/MANAGEMENT SPECIAL,ELECTRICITY,1120,19-Jul-17,111256,11.66,BRITISH GAS,BRI040
EFDC,YB110,SUPERVISION/MANAGEMENT SPECIAL,ELECTRICITY,1120,19-Jul-17,111256,9.24,BRITISH GAS,BRI040
EFDC,YB110,SUPERVISION/MANAGEMENT SPECIAL,ELECTRICITY,1120,19-Jul-17,111256,6.33,BRITISH GAS,BRI040
EFDC,YB110,SUPERVISION/MANAGEMENT SPECIAL,ELECTRICITY,1120,19-Jul-17,111256,11.21,BRITISH GAS,BRI040
EFDC,YB110,SUPERVISION/MANAGEMENT SPECIAL,ELECTRICITY,1120,19-Jul-17,111256,32.84,BRITISH GAS,BRI040
EFDC,YB110,SUPERVISION/MANAGEMENT SPECIAL,ELECTRICITY,1120,19-Jul-17,111256,8.73,BRITISH GAS,BRI040
EFDC,YB110,SUPERVISION/MANAGEMENT SPECIAL,ELECTRICITY,1120,19-Jul-17,111256,8.82,BRITISH GAS,BRI040
EFDC,YB110,SUPERVISION/MANAGEMENT SPECIAL,ELECTRICITY,1120,19-Jul-17,111256,22.4,BRITISH GAS,BRI040
EFDC,YB110,SUPERVISION/MANAGEMENT SPECIAL,ELECTRICITY,1120,19-Jul-17,111256,6.83,BRITISH GAS,BRI040
EFDC,YB110,SUPERVISION/MANAGEMENT SPECIAL,ELECTRICITY,1120,19-Jul-17,111256,16.09,BRITISH GAS,BRI040
EFDC,YB110,SUPERVISION/MANAGEMENT SPECIAL,ELECTRICITY,1120,19-Jul-17,111256,21.49,BRITISH GAS,BRI040
EFDC,YB110,SUPERVISION/MANAGEMENT SPECIAL,ELECTRICITY,1120,19-Jul-17,111256,13.46,BRITISH GAS,BRI040
EFDC,YB110,SUPERVISION/MANAGEMENT SPECIAL,ELECTRICITY,1120,19-Jul-17,111256,41.7,BRITISH GAS,BRI040
EFDC,YB110,SUPERVISION/MANAGEMENT SPECIAL,ELECTRICITY,1120,19-Jul-17,111256,20.02,BRITISH GAS,BRI040
EFDC,YB110,SUPERVISION/MANAGEMENT SPECIAL,ELECTRICITY,1120,19-Jul-17,111256,6.82,BRITISH GAS,BRI040
EFDC,YB110,SUPERVISION/MANAGEMENT SPECIAL,ELECTRICITY,1120,19-Jul-17,111256,13.53,BRITISH GAS,BRI040
EFDC,YB110,SUPERVISION/MANAGEMENT SPECIAL,ELECTRICITY,1120,19-Jul-17,111256,14.94,BRITISH GAS,BRI040
EFDC,YB110,SUPERVISION/MANAGEMENT SPECIAL,ELECTRICITY,1120,19-Jul-17,111256,10.62,BRITISH GAS,BRI040
EFDC,YB110,SUPERVISION/MANAGEMENT SPECIAL,ELECTRICITY,1120,19-Jul-17,111256,12.73,BRITISH GAS,BRI040
EFDC,YB110,SUPERVISION/MANAGEMENT SPECIAL,ELECTRICITY,1120,19-Jul-17,111256,12.12,BRITISH GAS,BRI040
EFDC,YB110,SUPERVISION/MANAGEMENT SPECIAL,ELECTRICITY,1120,19-Jul-17,111256,13.49,BRITISH GAS,BRI040
EFDC,YB110,SUPERVISION/MANAGEMENT SPECIAL,ELECTRICITY,1120,19-Jul-17,111256,13.15,BRITISH GAS,BRI040
EFDC,YB110,SUPERVISION/MANAGEMENT SPECIAL,ELECTRICITY,1120,19-Jul-17,111256,13.27,BRITISH GAS,BRI040
EFDC,YB110,SUPERVISION/MANAGEMENT SPECIAL,ELECTRICITY,1120,19-Jul-17,111256,14.26,BRITISH GAS,BRI040
EFDC,YB110,SUPERVISION/MANAGEMENT SPECIAL,ELECTRICITY,1120,19-Jul-17,111256,-12.8,BRITISH GAS,BRI040
EFDC,YB110,SUPERVISION/MANAGEMENT SPECIAL,ELECTRICITY,1120,19-Jul-17,111256,-163.48,BRITISH GAS,BRI040
EFDC,YB110,SUPERVISION/MANAGEMENT SPECIAL,ELECTRICITY,1120,19-Jul-17,111256,-54.92,BRITISH GAS,BRI040
EFDC,YB110,SUPERVISION/MANAGEMENT SPECIAL,ELECTRICITY,1120,19-Jul-17,111256,7.3,BRITISH GAS,BRI040
EFDC,YB110,SUPERVISION/MANAGEMENT SPECIAL,ELECTRICITY,1120,19-Jul-17,111256,9.58,BRITISH GAS,BRI040
EFDC,YB110,SUPERVISION/MANAGEMENT SPECIAL,ELECTRICITY,1120,19-Jul-17,111256,29.14,BRITISH GAS,BRI040
EFDC,YB110,SUPERVISION/MANAGEMENT SPECIAL,ELECTRICITY,1120,19-Jul-17,111256,13.21,BRITISH GAS,BRI040
EFDC,YB110,SUPERVISION/MANAGEMENT SPECIAL,ELECTRICITY,1120,19-Jul-17,111256,21.94,BRITISH GAS,BRI040
EFDC,YB110,SUPERVISION/MANAGEMENT SPECIAL,ELECTRICITY,1120,19-Jul-17,111256,14.4,BRITISH GAS,BRI040
EFDC,YB110,SUPERVISION/MANAGEMENT SPECIAL,ELECTRICITY,1120,19-Jul-17,111256,12.32,BRITISH GAS,BRI040
EFDC,YB110,SUPERVISION/MANAGEMENT SPECIAL,ELECTRICITY,1120,19-Jul-17,111256,11.26,BRITISH GAS,BRI040
EFDC,YB110,SUPERVISION/MANAGEMENT SPECIAL,ELECTRICITY,1120,19-Jul-17,111256,11.51,BRITISH GAS,BRI040
EFDC,YB110,SUPERVISION/MANAGEMENT SPECIAL,ELECTRICITY,1120,19-Jul-17,111256,11.87,BRITISH GAS,BRI040
EFDC,YB110,SUPERVISION/MANAGEMENT SPECIAL,ELECTRICITY,1120,19-Jul-17,111256,12.54,BRITISH GAS,BRI040
EFDC,YB110,SUPERVISION/MANAGEMENT SPECIAL,ELECTRICITY,1120,19-Jul-17,111256,19.69,BRITISH GAS,BRI040
EFDC,YB110,SUPERVISION/MANAGEMENT SPECIAL,ELECTRICITY,1120,19-Jul-17,111256,13.22,BRITISH GAS,BRI040
EFDC,YB110,SUPERVISION/MANAGEMENT SPECIAL,ELECTRICITY,1120,19-Jul-17,111256,17.55,BRITISH GAS,BRI040
EFDC,YB110,SUPERVISION/MANAGEMENT SPECIAL,ELECTRICITY,1120,19-Jul-17,111256,12.16,BRITISH GAS,BRI040
EFDC,YB110,SUPERVISION/MANAGEMENT SPECIAL,ELECTRICITY,1120,19-Jul-17,111256,9.76,BRITISH GAS,BRI040
EFDC,YB110,SUPERVISION/MANAGEMENT SPECIAL,ELECTRICITY,1120,19-Jul-17,111256,12.32,BRITISH GAS,BRI040
EFDC,YB110,SUPERVISION/MANAGEMENT SPECIAL,ELECTRICITY,1120,19-Jul-17,111256,9.76,BRITISH GAS,BRI040
EFDC,YB110,SUPERVISION/MANAGEMENT SPECIAL,ELECTRICITY,1120,19-Jul-17,111256,10.1,BRITISH GAS,BRI040
EFDC,YB110,SUPERVISION/MANAGEMENT SPECIAL,ELECTRICITY,1120,19-Jul-17,111256,11.09,BRITISH GAS,BRI040
EFDC,YB110,SUPERVISION/MANAGEMENT SPECIAL,ELECTRICITY,1120,19-Jul-17,111256,88.92,BRITISH GAS,BRI040
EFDC,YB110,SUPERVISION/MANAGEMENT SPECIAL,ELECTRICITY,1120,19-Jul-17,111256,38.26,BRITISH GAS,BRI040
EFDC,YB110,SUPERVISION/MANAGEMENT SPECIAL,ELECTRICITY,1120,19-Jul-17,111256,68.15,BRITISH GAS,BRI040
EFDC,YB110,SUPERVISION/MANAGEMENT SPECIAL,ELECTRICITY,1120,19-Jul-17,111256,75.73,BRITISH GAS,BRI040
EFDC,YB110,SUPERVISION/MANAGEMENT SPECIAL,ELECTRICITY,1120,19-Jul-17,111256,6.67,BRITISH GAS,BRI040
EFDC,YB110,SUPERVISION/MANAGEMENT SPECIAL,ELECTRICITY,1120,19-Jul-17,111256,13.22,BRITISH GAS,BRI040
EFDC,YB110,SUPERVISION/MANAGEMENT SPECIAL,ELECTRICITY,1120,19-Jul-17,111256,108.86,BRITISH GAS,BRI040
EFDC,YB110,SUPERVISION/MANAGEMENT SPECIAL,ELECTRICITY,1120,19-Jul-17,111256,12.28,BRITISH GAS,BRI040
EFDC,YB110,SUPERVISION/MANAGEMENT SPECIAL,ELECTRICITY,1120,19-Jul-17,111256,25.37,BRITISH GAS,BRI040
EFDC,YB110,SUPERVISION/MANAGEMENT SPECIAL,ELECTRICITY,1120,19-Jul-17,111256,14.15,BRITISH GAS,BRI040
EFDC,YB110,SUPERVISION/MANAGEMENT SPECIAL,ELECTRICITY,1120,19-Jul-17,111256,14.88,BRITISH GAS,BRI040
EFDC,YB110,SUPERVISION/MANAGEMENT SPECIAL,ELECTRICITY,1120,19-Jul-17,111256,80.09,BRITISH GAS,BRI040
EFDC,YB110,SUPERVISION/MANAGEMENT SPECIAL,ELECTRICITY,1120,19-Jul-17,111256,77.5,BRITISH GAS,BRI040
EFDC,YB110,SUPERVISION/MANAGEMENT SPECIAL,ELECTRICITY,1120,19-Jul-17,111256,7.96,BRITISH GAS,BRI040
EFDC,YB110,SUPERVISION/MANAGEMENT SPECIAL,ELECTRICITY,1120,19-Jul-17,111256,7.96,BRITISH GAS,BRI040
EFDC,YB110,SUPERVISION/MANAGEMENT SPECIAL,ELECTRICITY,1120,19-Jul-17,111256,10.64,BRITISH GAS,BRI040
EFDC,YB110,SUPERVISION/MANAGEMENT SPECIAL,ELECTRICITY,1120,19-Jul-17,111256,14.26,BRITISH GAS,BRI040
EFDC,YB500,SUPERVISION/MANAGEMENT SPECIAL,ELECTRICITY,1120,19-Jul-17,111256,7.26,BRITISH GAS,BRI040
EFDC,YB500,SUPERVISION/MANAGEMENT SPECIAL,ELECTRICITY,1120,19-Jul-17,111256,169.84,BRITISH GAS,BRI040
EFDC,YB500,SUPERVISION/MANAGEMENT SPECIAL,ELECTRICITY,1120,19-Jul-17,111256,26.76,BRITISH GAS,BRI040
EFDC,YB500,SUPERVISION/MANAGEMENT SPECIAL,ELECTRICITY,1120,19-Jul-17,111256,8.01,BRITISH GAS,BRI040
EFDC,YB500,SUPERVISION/MANAGEMENT SPECIAL,ELECTRICITY,1120,19-Jul-17,111256,12.77,BRITISH GAS,BRI040
EFDC,YB500,SUPERVISION/MANAGEMENT SPECIAL,ELECTRICITY,1120,19-Jul-17,111256,267.67,BRITISH GAS,BRI040
EFDC,YB500,SUPERVISION/MANAGEMENT SPECIAL,ELECTRICITY,1120,19-Jul-17,111256,393.33,BRITISH GAS,BRI040
EFDC,YB500,SUPERVISION/MANAGEMENT SPECIAL,ELECTRICITY,1120,19-Jul-17,111256,7.3,BRITISH GAS,BRI040
EFDC,YB500,SUPERVISION/MANAGEMENT SPECIAL,ELECTRICITY,1120,19-Jul-17,111256,623.51,BRITISH GAS,BRI040
EFDC,YB500,SUPERVISION/MANAGEMENT SPECIAL,ELECTRICITY,1120,19-Jul-17,111256,558.3,BRITISH GAS,BRI040
EFDC,YB500,SUPERVISION/MANAGEMENT SPECIAL,ELECTRICITY,1120,19-Jul-17,111256,128.1,BRITISH GAS,BRI040
EFDC,YB500,SUPERVISION/MANAGEMENT SPECIAL,ELECTRICITY,1120,19-Jul-17,111256,166.32,BRITISH GAS,BRI040
EFDC,YB500,SUPERVISION/MANAGEMENT SPECIAL,ELECTRICITY,1120,19-Jul-17,111256,5.69,BRITISH GAS,BRI040
EFDC,YB500,SUPERVISION/MANAGEMENT SPECIAL,ELECTRICITY,1120,19-Jul-17,111256,203.93,BRITISH GAS,BRI040
EFDC,YB500,SUPERVISION/MANAGEMENT SPECIAL,ELECTRICITY,1120,19-Jul-17,111256,187.17,BRITISH GAS,BRI040
EFDC,YB500,SUPERVISION/MANAGEMENT SPECIAL,ELECTRICITY,1120,19-Jul-17,111256,10.67,BRITISH GAS,BRI040
EFDC,YB500,SUPERVISION/MANAGEMENT SPECIAL,ELECTRICITY,1120,19-Jul-17,111256,10.59,BRITISH GAS,BRI040
EFDC,YB500,SUPERVISION/MANAGEMENT SPECIAL,ELECTRICITY,1120,19-Jul-17,111256,10.04,BRITISH GAS,BRI040
EFDC,YB500,SUPERVISION/MANAGEMENT SPECIAL,ELECTRICITY,1120,19-Jul-17,111256,25.35,BRITISH GAS,BRI040
EFDC,YB500,SUPERVISION/MANAGEMENT SPECIAL,ELECTRICITY,1120,19-Jul-17,111256,8.29,BRITISH GAS,BRI040
EFDC,YB500,SUPERVISION/MANAGEMENT SPECIAL,ELECTRICITY,1120,19-Jul-17,111256,10.89,BRITISH GAS,BRI040
EFDC,YB500,SUPERVISION/MANAGEMENT SPECIAL,ELECTRICITY,1120,19-Jul-17,111256,16.75,BRITISH GAS,BRI040
EFDC,YB500,SUPERVISION/MANAGEMENT SPECIAL,ELECTRICITY,1120,19-Jul-17,111256,16.92,BRITISH GAS,BRI040
EFDC,YB500,SUPERVISION/MANAGEMENT SPECIAL,ELECTRICITY,1120,19-Jul-17,111256,17.25,BRITISH GAS,BRI040
EFDC,YB500,SUPERVISION/MANAGEMENT SPECIAL,ELECTRICITY,1120,19-Jul-17,111256,11.86,BRITISH GAS,BRI040
EFDC,YB500,SUPERVISION/MANAGEMENT SPECIAL,ELECTRICITY,1120,19-Jul-17,111256,7.55,BRITISH GAS,BRI040
EFDC,YB500,SUPERVISION/MANAGEMENT SPECIAL,ELECTRICITY,1120,19-Jul-17,111256,190.51,BRITISH GAS,BRI040
EFDC,YB500,SUPERVISION/MANAGEMENT SPECIAL,ELECTRICITY,1120,19-Jul-17,111256,83.11,BRITISH GAS,BRI040
EFDC,YB500,SUPERVISION/MANAGEMENT SPECIAL,ELECTRICITY,1120,19-Jul-17,111256,-85.61,BRITISH GAS,BRI040
EFDC,YB500,SUPERVISION/MANAGEMENT SPECIAL,ELECTRICITY,1120,19-Jul-17,111256,24.43,BRITISH GAS,BRI040
EFDC,YB500,SUPERVISION/MANAGEMENT SPECIAL,ELECTRICITY,1120,19-Jul-17,111256,44.33,BRITISH GAS,BRI040
EFDC,YB500,SUPERVISION/MANAGEMENT SPECIAL,ELECTRICITY,1120,19-Jul-17,111256,35.17,BRITISH GAS,BRI040
EFDC,FD100,LAND DRAINAGE/SEWERAGE,ELECTRICITY,1120,19-Jul-17,111256,1831.21,BRITISH GAS,BRI040
EFDC,RS301,NORTH WEALD CENTRE,ELECTRICITY,1120,19-Jul-17,111256,12.63,BRITISH GAS,BRI040
EFDC,RS302,NORTH WEALD CENTRE,ELECTRICITY,1120,19-Jul-17,111256,8.01,BRITISH GAS,BRI040
EFDC,TI190,LAND & PROPERTY,ELECTRICITY,1120,19-Jul-17,111256,343.24,BRITISH GAS,BRI040
EFDC,UO130,LAND & PROPERTY,ELECTRICITY,1120,19-Jul-17,111256,3.41,BRITISH GAS,BRI040
EFDC,UO130,LAND & PROPERTY,ELECTRICITY,1120,19-Jul-17,111256,41.95,BRITISH GAS,BRI040
EFDC,UO130,LAND & PROPERTY,ELECTRICITY,1120,19-Jul-17,111256,14.8,BRITISH GAS,BRI040
EFDC,UO130,LAND & PROPERTY,ELECTRICITY,1120,19-Jul-17,111256,36.44,BRITISH GAS,BRI040
EFDC,35300,ENVIRONMENTAL OTHER,ELECTRICITY,1120,19-Jul-17,111256,118.53,BRITISH GAS,BRI040
EFDC,CH110,"MUSEUM, HERITAGE & CULTURE",ELECTRICITY,1120,19-Jul-17,111256,288.62,BRITISH GAS,BRI040
EFDC,FD100,LAND DRAINAGE/SEWERAGE,ELECTRICITY,1120,19-Jul-17,111256,24.82,BRITISH GAS,BRI040
EFDC,EH160,OTHER ACTIVITIES,ELECTRICITY,1120,19-Jul-17,111256,34.29,BRITISH GAS,BRI040
EFDC,EH160,OTHER ACTIVITIES,ELECTRICITY,1120,19-Jul-17,111256,58.04,BRITISH GAS,BRI040
EFDC,EH160,OTHER ACTIVITIES,ELECTRICITY,1120,19-Jul-17,111256,26.6,BRITISH GAS,BRI040
EFDC,EH160,OTHER ACTIVITIES,ELECTRICITY,1120,19-Jul-17,111256,47.77,BRITISH GAS,BRI040
EFDC,EH160,OTHER ACTIVITIES,ELECTRICITY,1120,19-Jul-17,111256,6.33,BRITISH GAS,BRI040
EFDC,UO130,LAND & PROPERTY,ELECTRICITY,1120,19-Jul-17,111256,10.44,BRITISH GAS,BRI040
EFDC,27150,"COMMUNITY, HEALTH & WELLBEING",ELECTRICITY,1120,19-Jul-17,111256,632.48,BRITISH GAS,BRI040
EFDC,YB350,SUPERVISION/MANAGEMENT SPECIAL,ELECTRICITY,1120,19-Jul-17,111256,281.56,BRITISH GAS,BRI040
EFDC,YB620,SUPERVISION/MANAGEMENT SPECIAL,ELECTRICITY,1120,19-Jul-17,111256,1507.06,BRITISH GAS,BRI040
EFDC,27110,ACCOMMODATION,ELECTRICITY,1120,19-Jul-17,111256,62.61,BRITISH GAS,BRI040
EFDC,27110,ACCOMMODATION,ELECTRICITY,1120,19-Jul-17,111256,36.86,BRITISH GAS,BRI040
EFDC,23130,ACCOMMODATION,ELECTRICITY,1120,19-Jul-17,111256,91.83,BRITISH GAS,BRI040
EFDC,23140,ACCOMMODATION,ELECTRICITY,1120,19-Jul-17,111256,356.09,BRITISH GAS,BRI040
EFDC,23140,ACCOMMODATION,ELECTRICITY,1120,19-Jul-17,111256,395.03,BRITISH GAS,BRI040
EFDC,27110,ACCOMMODATION,ELECTRICITY,1120,19-Jul-17,111256,63.55,BRITISH GAS,BRI040
EFDC,YB520,SUPERVISION/MANAGEMENT SPECIAL,ELECTRICITY,1120,19-Jul-17,111256,201.76,BRITISH GAS,BRI040
EFDC,YB520,SUPERVISION/MANAGEMENT SPECIAL,ELECTRICITY,1120,19-Jul-17,111256,61.48,BRITISH GAS,BRI040
EFDC,YB520,SUPERVISION/MANAGEMENT SPECIAL,ELECTRICITY,1120,19-Jul-17,111256,141.14,BRITISH GAS,BRI040
EFDC,32200,OTHER SUPPORT SERVICES (HR),EQUIPMENT - HIRED,3020,19-Jul-17,109805,6810.49,CANON (UK) LTD,CAN004
EFDC,LT120,LOCAL TAXATION,EQUIPMENT - NEW,3010,19-Jul-17,110729,2768,CAPITA BUSINESS SERVICES LTD,CAP004
EFDC,33080,OTHER ACTIVITIES,ANNUAL SUPPORT /  LICENSES,3872,19-Jul-17,110729,2000,CAPITA BUSINESS SERVICES LTD,CAP004
EFDC,LT120,LOCAL TAXATION,EQUIPMENT - NEW,3010,19-Jul-17,110729,733.81,CAPITA BUSINESS SERVICES LTD,CAP004
EFDC,78001,OTHER ACTIVITIES,MATERIALS,3080,19-Jul-17,110277,533.58,THE BECK COMPANY LTD,BEC001
EFDC,BAL01,EFDC BALANCE SHEET,SAINSBURYS CAR PARKS,Z627,19-Jul-17,111367,106175.12,CB RICHARD ELLIS LTD PORTFOLIO MANAGEMENT,CBR001
EFDC,BAL01,EFDC BALANCE SHEET,SAINSBURYS CAR PARKS,Z627,19-Jul-17,111367,17662.05,CB RICHARD ELLIS LTD PORTFOLIO MANAGEMENT,CBR001
EFDC,BAL01,EFDC BALANCE SHEET,BUSY BEES,Z606,19-Jul-17,111428,2703.8,COMPUTERSHARE VOUCHER SERVICES,BUS009
EFDC,32120,OTHER SUPPORT SERVICES (HR),EMPLOYEES - OTHER PAYMENTS,0191,19-Jul-17,111428,175.75,COMPUTERSHARE VOUCHER SERVICES,BUS009
EFDC,CAPRS,RESOURCES CAPITAL,CAPITAL SOFTWARE,K340,19-Jul-17,110469,2007.26,BYTES SOFTWARE SERVICES LTD,BYT001
EFDC,CAPRS,RESOURCES CAPITAL,CAPITAL SOFTWARE,K340,19-Jul-17,110833,3665.1,BYTES SOFTWARE SERVICES LTD,BYT001
EFDC,33020,OTHER ACTIVITIES,BANKING AND CASH COLLECTION,3440,19-Jul-17,110672,362.92,CONTRACT SECURITY SERVICES LTD,CON033
EFDC,33020,OTHER ACTIVITIES,BANKING AND CASH COLLECTION,3440,19-Jul-17,110672,725.83,CONTRACT SECURITY SERVICES LTD,CON033
EFDC,YB620,SUPERVISION/MANAGEMENT SPECIAL,BANKING AND CASH COLLECTION,3440,19-Jul-17,110672,72.58,CONTRACT SECURITY SERVICES LTD,CON033
EFDC,EH160,OTHER ACTIVITIES,BANKING AND CASH COLLECTION,3440,19-Jul-17,110672,80.4,CONTRACT SECURITY SERVICES LTD,CON033
EFDC,CH110,"MUSEUM, HERITAGE & CULTURE",BANKING AND CASH COLLECTION,3440,19-Jul-17,110672,36.29,CONTRACT SECURITY SERVICES LTD,CON033
EFDC,TO100,LAND & PROPERTY,BANKING AND CASH COLLECTION,3440,19-Jul-17,110672,72.58,CONTRACT SECURITY SERVICES LTD,CON033
EFDC,34110,COMMUNITIES SUPPORT SERVICES,BANKING AND CASH COLLECTION,3440,19-Jul-17,110672,72.59,CONTRACT SECURITY SERVICES LTD,CON033
EFDC,RM400,PLANNED & CYCLICAL MAINTENANCE,BUILDING MAINTENANCE,1010,19-Jul-17,111468,186,ESSEX LIFT SERVICES LTD,ESS032
EFDC,RM400,PLANNED & CYCLICAL MAINTENANCE,BUILDING MAINTENANCE,1010,19-Jul-17,111468,221.2,ESSEX LIFT SERVICES LTD,ESS032
EFDC,RM400,PLANNED & CYCLICAL MAINTENANCE,BUILDING MAINTENANCE,1010,19-Jul-17,111468,221.2,ESSEX LIFT SERVICES LTD,ESS032
EFDC,RM100,RESPONSIVE & VOID REPAIRS,BUILDING MAINTENANCE,1010,19-Jul-17,110228,1465.62,EXTERIOR PLAS,EXT001
EFDC,RM100,RESPONSIVE & VOID REPAIRS,BUILDING MAINTENANCE,1010,19-Jul-17,110230,1663.54,EXTERIOR PLAS,EXT001
EFDC,RM100,RESPONSIVE & VOID REPAIRS,BUILDING MAINTENANCE,1010,19-Jul-17,110229,1333.94,EXTERIOR PLAS,EXT001
EFDC,UO130,LAND & PROPERTY,PREMISES,1030,19-Jul-17,110721,2765,B B & C FENCING,FEN003
EFDC,RM100,RESPONSIVE & VOID REPAIRS,BUILDING MAINTENANCE,1010,19-Jul-17,110640,1160,FIELDWHITE SERVICES LTD,FIE003
EFDC,RM100,RESPONSIVE & VOID REPAIRS,BUILDING MAINTENANCE,1010,19-Jul-17,110630,540,FIELDWHITE SERVICES LTD,FIE003
EFDC,CAPCM,COMMUNITIES CAPITAL,WORKS,A040,19-Jul-17,110287,5411,RICHARD F GILL & ASSOCIATES,GIL005
EFDC,32120,OTHER SUPPORT SERVICES (HR),EMPLOYEES - OTHER PAYMENTS,0191,19-Jul-17,110909,2108,HARLOW OCCUPATIONAL HEALTH SERVICE LTD,HAR006
EFDC,32120,OTHER SUPPORT SERVICES (HR),EMPLOYEES - OTHER PAYMENTS,0191,19-Jul-17,110909,341.6,HARLOW OCCUPATIONAL HEALTH SERVICE LTD,HAR006
EFDC,32220,OTHER SUPPORT SERVICES (HR),AGENCY STAFF,0120,19-Jul-17,110310,1544.48,HAYS SPECIALIST RECRUITMENT LTD,HAY011
EFDC,32220,OTHER SUPPORT SERVICES (HR),AGENCY STAFF,0120,19-Jul-17,110309,1118.88,HAYS SPECIALIST RECRUITMENT LTD,HAY011
EFDC,32220,OTHER SUPPORT SERVICES (HR),AGENCY STAFF,0120,19-Jul-17,110724,506.1,HAYS SPECIALIST RECRUITMENT LTD,HAY011
EFDC,32180,OTHER SUPPORT SERVICES (HR),AGENCY STAFF,0120,19-Jul-17,110307,809.63,HAYS SPECIALIST RECRUITMENT LTD,HAY011
EFDC,32180,OTHER SUPPORT SERVICES (HR),AGENCY STAFF,0120,19-Jul-17,110397,4524.45,HAYS SPECIALIST RECRUITMENT LTD,HAY011
EFDC,36650,OTHER ACTIVITIES,AGENCY STAFF,0120,19-Jul-17,110712,870.54,ADECCO UK LTD,ADE002
EFDC,YA300,SUPERVISION/MANAGEMENT GENERAL,BANKING AND CASH COLLECTION,3440,19-Jul-17,110732,603.93,ALLPAY.NET.LIMITED,ALL010
EFDC,YA300,SUPERVISION/MANAGEMENT GENERAL,BANKING AND CASH COLLECTION,3440,19-Jul-17,110731,1744.95,ALLPAY.NET.LIMITED,ALL010
EFDC,RS403,"COMMUNITY, HEALTH & WELLBEING",PRINTING - EXTERNAL,3390,19-Jul-17,110221,640,MARTIN DANNELL & CO LTD,MAR031
EFDC,32121,OTHER SUPPORT SERVICES (HR),RECRUITMENT EXPENSES,0320,19-Jul-17,110388,720,NEWSQUEST MEDIA GROUP,NEW002
EFDC,YB400,SUPERVISION/MANAGEMENT SPECIAL,TREE  MAINTENANCE,1070,19-Jul-17,110067,2110,PRINCIPAL TREES LTD,PRI017
EFDC,35013,ENVIRONMENTAL OTHER,AGENCY STAFF,0120,19-Jul-17,111215,893.83,REED SPECIALIST RECRUITMENT LTD,REE002
EFDC,35013,ENVIRONMENTAL OTHER,AGENCY STAFF,0120,19-Jul-17,110664,893.83,REED SPECIALIST RECRUITMENT LTD,REE002
EFDC,RS301,NORTH WEALD CENTRE,FUEL,2330,19-Jul-17,110752,587.01,SHELL U.K. OIL PRODUCTS LIMITED,SHE007
EFDC,HI124,HIGHWAYS,OTHER MAINTENANCE,1050,19-Jul-17,110049,832,SIGNWAY SUPPLIES (DATCHET) LTD,SIG009
EFDC,37100,PLANNING OTHER,POSTAGE,3510,19-Jul-17,111281,116.1,ROYAL MAIL GROUP PLC,ROY015
EFDC,37100,PLANNING OTHER,POSTAGE,3510,19-Jul-17,110857,189.6,ROYAL MAIL GROUP PLC,ROY015
EFDC,37100,PLANNING OTHER,POSTAGE,3510,19-Jul-17,110901,144.9,ROYAL MAIL GROUP PLC,ROY015
EFDC,34110,COMMUNITIES SUPPORT SERVICES,POSTAGE,3510,19-Jul-17,109887,2.4,ROYAL MAIL GROUP PLC,ROY015
EFDC,EL100,ELECTIONS,POSTAGE,3510,19-Jul-17,109887,6.6,ROYAL MAIL GROUP PLC,ROY015
EFDC,EL100,ELECTIONS,POSTAGE,3510,19-Jul-17,111330,1831.24,ROYAL MAIL GROUP PLC,ROY015
EFDC,CH110,"MUSEUM, HERITAGE & CULTURE",POSTAGE,3510,19-Jul-17,109887,0.3,ROYAL MAIL GROUP PLC,ROY015
EFDC,CH110,"MUSEUM, HERITAGE & CULTURE",POSTAGE,3510,19-Jul-17,110901,0.9,ROYAL MAIL GROUP PLC,ROY015
EFDC,35900,ENVIRONMENTAL OTHER,POSTAGE,3510,19-Jul-17,111281,172.5,ROYAL MAIL GROUP PLC,ROY015
EFDC,35900,ENVIRONMENTAL OTHER,POSTAGE,3510,19-Jul-17,110857,221.1,ROYAL MAIL GROUP PLC,ROY015
EFDC,35900,ENVIRONMENTAL OTHER,POSTAGE,3510,19-Jul-17,110901,160.5,ROYAL MAIL GROUP PLC,ROY015
EFDC,35900,ENVIRONMENTAL OTHER,POSTAGE,3510,19-Jul-17,109887,33.3,ROYAL MAIL GROUP PLC,ROY015
EFDC,36200,OTHER ACTIVITIES,POSTAGE,3510,19-Jul-17,109887,208.5,ROYAL MAIL GROUP PLC,ROY015
EFDC,36200,OTHER ACTIVITIES,POSTAGE,3510,19-Jul-17,109887,1445.02,ROYAL MAIL GROUP PLC,ROY015
EFDC,36200,OTHER ACTIVITIES,POSTAGE,3510,19-Jul-17,110901,177,ROYAL MAIL GROUP PLC,ROY015
EFDC,36200,OTHER ACTIVITIES,POSTAGE,3510,19-Jul-17,110857,158.4,ROYAL MAIL GROUP PLC,ROY015
EFDC,36200,OTHER ACTIVITIES,POSTAGE,3510,19-Jul-17,111281,109.5,ROYAL MAIL GROUP PLC,ROY015
EFDC,35900,ENVIRONMENTAL OTHER,POSTAGE,3510,19-Jul-17,109887,46.8,ROYAL MAIL GROUP PLC,ROY015
EFDC,33075,OTHER ACTIVITIES,POSTAGE,3510,19-Jul-17,111281,231,ROYAL MAIL GROUP PLC,ROY015
EFDC,33055,OTHER ACTIVITIES,POSTAGE,3510,19-Jul-17,111281,201.9,ROYAL MAIL GROUP PLC,ROY015
EFDC,33055,OTHER ACTIVITIES,POSTAGE,3510,19-Jul-17,110857,257.4,ROYAL MAIL GROUP PLC,ROY015
EFDC,33055,OTHER ACTIVITIES,POSTAGE,3510,19-Jul-17,110901,225,ROYAL MAIL GROUP PLC,ROY015
EFDC,33055,OTHER ACTIVITIES,POSTAGE,3510,19-Jul-17,109887,215.7,ROYAL MAIL GROUP PLC,ROY015
EFDC,33075,OTHER ACTIVITIES,POSTAGE,3510,19-Jul-17,109887,608.46,ROYAL MAIL GROUP PLC,ROY015
EFDC,33075,OTHER ACTIVITIES,POSTAGE,3510,19-Jul-17,110901,612.83,ROYAL MAIL GROUP PLC,ROY015
EFDC,33075,OTHER ACTIVITIES,POSTAGE,3510,19-Jul-17,110857,552.62,ROYAL MAIL GROUP PLC,ROY015
EFDC,33075,OTHER ACTIVITIES,POSTAGE,3510,19-Jul-17,110857,801.41,ROYAL MAIL GROUP PLC,ROY015
EFDC,33075,OTHER ACTIVITIES,POSTAGE,3510,19-Jul-17,111281,108,ROYAL MAIL GROUP PLC,ROY015
EFDC,RE100,ELECTIONS,POSTAGE,3510,19-Jul-17,111281,29.1,ROYAL MAIL GROUP PLC,ROY015
EFDC,RE100,ELECTIONS,POSTAGE,3510,19-Jul-17,110857,88.5,ROYAL MAIL GROUP PLC,ROY015
EFDC,RE100,ELECTIONS,POSTAGE,3510,19-Jul-17,110901,68.1,ROYAL MAIL GROUP PLC,ROY015
EFDC,32030,OTHER SUPPORT SERVICES (HR),POSTAGE,3510,19-Jul-17,110901,45.3,ROYAL MAIL GROUP PLC,ROY015
EFDC,32030,OTHER SUPPORT SERVICES (HR),POSTAGE,3510,19-Jul-17,109887,22.2,ROYAL MAIL GROUP PLC,ROY015
EFDC,32030,OTHER SUPPORT SERVICES (HR),POSTAGE,3510,19-Jul-17,110857,24,ROYAL MAIL GROUP PLC,ROY015
EFDC,32030,OTHER SUPPORT SERVICES (HR),POSTAGE,3510,19-Jul-17,111281,32.1,ROYAL MAIL GROUP PLC,ROY015
EFDC,37100,PLANNING OTHER,POSTAGE,3510,19-Jul-17,109887,136.2,ROYAL MAIL GROUP PLC,ROY015
EFDC,34110,COMMUNITIES SUPPORT SERVICES,POSTAGE,3510,19-Jul-17,110901,7.5,ROYAL MAIL GROUP PLC,ROY015
EFDC,34110,COMMUNITIES SUPPORT SERVICES,POSTAGE,3510,19-Jul-17,110857,2.1,ROYAL MAIL GROUP PLC,ROY015
EFDC,34110,COMMUNITIES SUPPORT SERVICES,POSTAGE,3510,19-Jul-17,111281,14.4,ROYAL MAIL GROUP PLC,ROY015
EFDC,78001,OTHER ACTIVITIES,MATERIALS,3080,19-Jul-17,109845,920.89,UK TELEMATICS LTD,TRA026
EFDC,EH150,REGULATORY SERVICES,EQUIPMENT - NEW,3010,19-Jul-17,109943,1703.73,VIP-SYSTEM LIMITED,VIP001
EFDC,DR150,MEMBER ACTIVITIES,MEMBERS COURSES & CONFERENCES,3632,19-Jul-17,110043,800,TIM YOUNG,YOU004
EFDC,26200,OTHER SUPPORT SERVICES (HR),FIXED PLANT MAINTENANCE,1020,19-Jul-17,110404,1359,ALLIED MECHANICAL SERVICES LTD,ALL002
EFDC,26200,OTHER SUPPORT SERVICES (HR),BUILDING MAINTENANCE,1010,19-Jul-17,110408,530,CONTACT ROLLER SHUTTERS LTD,CON006
EFDC,CAPCM,COMMUNITIES CAPITAL,VOIDS WORKS,A045,19-Jul-17,110486,33071.69,GRACELANDS COMPLETE MAINTENANCE SERVICES LTD,GRA007
EFDC,CAPCM,COMMUNITIES CAPITAL,VOIDS WORKS,A045,19-Jul-17,110487,27804.95,GRACELANDS COMPLETE MAINTENANCE SERVICES LTD,GRA007
EFDC,CAPCM,COMMUNITIES CAPITAL,VOIDS WORKS,A045,19-Jul-17,110488,1908.89,GRACELANDS COMPLETE MAINTENANCE SERVICES LTD,GRA007
EFDC,RM100,RESPONSIVE & VOID REPAIRS,BUILDING MAINTENANCE,1010,19-Jul-17,110911,920.89,GRACELANDS COMPLETE MAINTENANCE SERVICES LTD,GRA007
EFDC,RM200,RESPONSIVE & VOID REPAIRS,BUILDING MAINTENANCE,1010,19-Jul-17,110311,738.73,GRACELANDS COMPLETE MAINTENANCE SERVICES LTD,GRA007
EFDC,RM100,RESPONSIVE & VOID REPAIRS,BUILDING MAINTENANCE,1010,19-Jul-17,109976,515.54,GRACELANDS COMPLETE MAINTENANCE SERVICES LTD,GRA007
EFDC,RM100,RESPONSIVE & VOID REPAIRS,BUILDING MAINTENANCE,1010,19-Jul-17,110078,657.19,GRACELANDS COMPLETE MAINTENANCE SERVICES LTD,GRA007
EFDC,RM100,RESPONSIVE & VOID REPAIRS,BUILDING MAINTENANCE,1010,19-Jul-17,110080,720,GRACELANDS COMPLETE MAINTENANCE SERVICES LTD,GRA007
EFDC,RM100,RESPONSIVE & VOID REPAIRS,BUILDING MAINTENANCE,1010,19-Jul-17,110744,800,GRACELANDS COMPLETE MAINTENANCE SERVICES LTD,GRA007
EFDC,RM100,RESPONSIVE & VOID REPAIRS,BUILDING MAINTENANCE,1010,19-Jul-17,110765,720,GRACELANDS COMPLETE MAINTENANCE SERVICES LTD,GRA007
EFDC,CAPCM,COMMUNITIES CAPITAL,WORKS,A040,19-Jul-17,110487,2184.58,GRACELANDS COMPLETE MAINTENANCE SERVICES LTD,GRA007
EFDC,CAPCM,COMMUNITIES CAPITAL,WORKS,A040,19-Jul-17,110486,2079.55,GRACELANDS COMPLETE MAINTENANCE SERVICES LTD,GRA007
EFDC,RM100,RESPONSIVE & VOID REPAIRS,BUILDING MAINTENANCE,1010,19-Jul-17,110379,1098.16,M & J SERVICES LTD,SER009
EFDC,78001,OTHER ACTIVITIES,MATERIALS,3080,19-Jul-17,110367,850.66,CRANBROOK ELECTRICS,CRA001
EFDC,GD100,VOLUNTARY SECTOR SUPPORT,GRANTS GENERAL,3720,19-Jul-17,111434,190,EPPING FOREST DISTRICT CITIZEN ADVICE BUREAU,EPP036
EFDC,GD140,VOLUNTARY SECTOR SUPPORT,GRANTS TO VOLUNTARY ORGS,3710,19-Jul-17,111434,560,EPPING FOREST DISTRICT CITIZEN ADVICE BUREAU,EPP036
EFDC,EI131,FORWARD PLANNING & ECONOMIC,GRANTS GENERAL,3720,19-Jul-17,110319,7664.71,ESSEX WILDLIFE TRUST LTD,ESS025
EFDC,BAL01,EFDC BALANCE SHEET,N/WAY HOUSE STAKEHOLDER PARTNE,Z632,19-Jul-17,111459,3126.86,TUSKERDIRECT LTD,TUS002
EFDC,BAL01,EFDC BALANCE SHEET,TUSKER CAR SCHEME,Z631,19-Jul-17,111459,1397.32,TUSKERDIRECT LTD,TUS002
EFDC,BAL01,EFDC BALANCE SHEET,TUSKER CAR SCHEME,Z631,19-Jul-17,111459,-1980.31,TUSKERDIRECT LTD,TUS002
EFDC,BAL01,EFDC BALANCE SHEET,TUSKER CAR SCHEME,Z631,19-Jul-17,111459,3960.61,TUSKERDIRECT LTD,TUS002
EFDC,RS301,NORTH WEALD CENTRE,EQUIPMENT - NEW,3010,19-Jul-17,111451,1558.8,NORTH WEALD FIRE RESCUE,NOR001
EFDC,CH110,"MUSEUM, HERITAGE & CULTURE",RENTS / HIRE OF HALL,1210,19-Jul-17,110006,1100,GRANGEWOOD INVESTMENTS LTD,GRA006
EFDC,23110,ACCOMMODATION,ELECTRICITY,1120,19-Jul-17,111262,992.34,EDF ENERGY,EDF001
EFDC,UO120,LAND & PROPERTY,AGENCY STAFF,0120,19-Jul-17,111209,1195.04,CAPSTONE PROPERTY RECRUITMENT LTD,CAP001
EFDC,YB400,SUPERVISION/MANAGEMENT SPECIAL,TREE  MAINTENANCE,1070,19-Jul-17,111183,2000,CROWN TREE SERVICES,CRO004
EFDC,CAPNB,NEIGHBOURHOODS CAPITAL,QUANTITY SURVEYORS FEES,E170,19-Jul-17,110764,1500,RIDGE AND PARTNERS LLP,RID002
EFDC,CAPNB,NEIGHBOURHOODS CAPITAL,QUANTITY SURVEYORS FEES,E170,19-Jul-17,110745,1000,RIDGE AND PARTNERS LLP,RID002
EFDC,CAPNB,NEIGHBOURHOODS CAPITAL,QUANTITY SURVEYORS FEES,E170,19-Jul-17,106723,1045,RIDGE AND PARTNERS LLP,RID002
EFDC,CAPNB,NEIGHBOURHOODS CAPITAL,PLANNING SUPERVISOR,E190,19-Jul-17,111192,10399,WYG MANAGEMENT SERVICES LTD,WYG002
EFDC,LA100,LAA POOLED FUNDS,LAA EXPENDITURE,Y100,19-Jul-17,111443,1800,MR JOHN GILBERT,GIL001
EFDC,CAPCM,COMMUNITIES CAPITAL,WORKS,E040,19-Jul-17,111435,117975.93,P A FINLAY & COMPANY LTD,FIN003
EFDC,CAPCM,COMMUNITIES CAPITAL,WORKS,E040,19-Jul-17,111435,74129.22,P A FINLAY & COMPANY LTD,FIN003
EFDC,CAPCM,COMMUNITIES CAPITAL,WORKS,E040,19-Jul-17,111435,74858.07,P A FINLAY & COMPANY LTD,FIN003
EFDC,32030,OTHER SUPPORT SERVICES (HR),EQUIPMENT - NEW,3010,19-Jul-17,109962,109.58,CDW LTD,CDW001
EFDC,32030,OTHER SUPPORT SERVICES (HR),EQUIPMENT - NEW,3010,19-Jul-17,109962,22.54,CDW LTD,CDW001
EFDC,YA140,SUPERVISION/MANAGEMENT GENERAL,EQUIPMENT - NEW,3010,19-Jul-17,109961,452.64,CDW LTD,CDW001
EFDC,CH103,"MUSEUM, HERITAGE & CULTURE",EQUIPMENT - NEW,3010,19-Jul-17,109962,1.46,CDW LTD,CDW001
EFDC,CH110,"MUSEUM, HERITAGE & CULTURE",EQUIPMENT - NEW,3010,19-Jul-17,109961,113.16,CDW LTD,CDW001
EFDC,32030,OTHER SUPPORT SERVICES (HR),EQUIPMENT - NEW,3010,19-Jul-17,109962,22.54,CDW LTD,CDW001
EFDC,32030,OTHER SUPPORT SERVICES (HR),EQUIPMENT - NEW,3010,19-Jul-17,109961,226.32,CDW LTD,CDW001
EFDC,CH103,"MUSEUM, HERITAGE & CULTURE",EQUIPMENT - NEW,3010,19-Jul-17,109962,730.88,CDW LTD,CDW001
EFDC,43310,ENVIRONMENTAL OTHER,AGENCY STAFF,0120,19-Jul-17,111252,13573.55,OVE ARUP & PARTNERS LTD,OVE002
EFDC,23110,ACCOMMODATION,CLEANING,1630,19-Jul-17,110274,1327.17,ATLAS CONTRACTORS LTD,ATL001
EFDC,23110,ACCOMMODATION,CLEANING,1630,19-Jul-17,110274,62.12,ATLAS CONTRACTORS LTD,ATL001
EFDC,23110,ACCOMMODATION,CLEANING,1630,19-Jul-17,108175,1327.17,ATLAS CONTRACTORS LTD,ATL001
EFDC,CH110,"MUSEUM, HERITAGE & CULTURE",CLEANING,1630,19-Jul-17,110274,517.79,ATLAS CONTRACTORS LTD,ATL001
EFDC,27050,ACCOMMODATION,CLEANING,1630,19-Jul-17,110274,7874.2,ATLAS CONTRACTORS LTD,ATL001
EFDC,23130,ACCOMMODATION,CLEANING,1630,19-Jul-17,108175,227.84,ATLAS CONTRACTORS LTD,ATL001
EFDC,27060,ACCOMMODATION,CLEANING,1630,19-Jul-17,108175,414.58,ATLAS CONTRACTORS LTD,ATL001
EFDC,27060,ACCOMMODATION,CLEANING,1630,19-Jul-17,110274,414.58,ATLAS CONTRACTORS LTD,ATL001
EFDC,23110,ACCOMMODATION,CLEANING,1630,19-Jul-17,108175,62.12,ATLAS CONTRACTORS LTD,ATL001
EFDC,CH110,"MUSEUM, HERITAGE & CULTURE",CLEANING,1630,19-Jul-17,108175,517.79,ATLAS CONTRACTORS LTD,ATL001
EFDC,23140,ACCOMMODATION,CLEANING,1630,19-Jul-17,108175,450.34,ATLAS CONTRACTORS LTD,ATL001
EFDC,27050,ACCOMMODATION,CLEANING,1630,19-Jul-17,108175,7874.2,ATLAS CONTRACTORS LTD,ATL001
EFDC,23140,ACCOMMODATION,CLEANING,1630,19-Jul-17,110274,450.34,ATLAS CONTRACTORS LTD,ATL001
EFDC,23130,ACCOMMODATION,CLEANING,1630,19-Jul-17,110274,227.84,ATLAS CONTRACTORS LTD,ATL001
EFDC,CH103,"MUSEUM, HERITAGE & CULTURE",PRINTING - EXTERNAL,3390,19-Jul-17,110475,1845,PANTHER PRINT & DESIGN LTD,PAN001
EFDC,RS250,LEISURE FACILITIES,OTHER CONTRACTORS,4340,19-Jul-17,111453,16325.33,PLACES FOR PEOPLE LEISURE MANAGEMENT LTD,PLA005
EFDC,RS120,LEISURE FACILITIES,OTHER CONTRACTORS,4340,19-Jul-17,111453,1264.83,PLACES FOR PEOPLE LEISURE MANAGEMENT LTD,PLA005
EFDC,RS100,LEISURE FACILITIES,OTHER CONTRACTORS,4340,19-Jul-17,111453,-26394.5,PLACES FOR PEOPLE LEISURE MANAGEMENT LTD,PLA005
EFDC,RS200,LEISURE FACILITIES,OTHER CONTRACTORS,4340,19-Jul-17,111453,39069.94,PLACES FOR PEOPLE LEISURE MANAGEMENT LTD,PLA005
EFDC,37600,PLANNING OTHER,AGENCY STAFF,0120,19-Jul-17,109956,1312.5,VIVID RESOURCING LTD,VIV002
EFDC,CAPNB,NEIGHBOURHOODS CAPITAL,LETTINGS AGENT,E132,19-Jul-17,110026,29625,HARVEY SPACK FIELD,HAR444
EFDC,27050,ACCOMMODATION,CONSULTANTS FEES,3490,19-Jul-17,110064,1395,LAWRENCE WEBSTER FORREST,LAW006
EFDC,YA100,SUPERVISION/MANAGEMENT GENERAL,PUBLICITY,3360,19-Jul-17,109942,9273.75,THE HOUSING OMBUDSMAN,HOU010
EFDC,RS400,"COMMUNITY, HEALTH & WELLBEING",ACTIVITIES,3372,25-Jul-17,25123,3000,THE RED BALLOON FAMILY FOUNDATION,3537P
EFDC,GD100,VOLUNTARY SECTOR SUPPORT,GRANTS TO VOLUNTARY ORGS,3710,25-Jul-17,25098,1700,ABOVE & BEYOND,6702P
EFDC,YB110,SUPERVISION/MANAGEMENT SPECIAL,ELECTRICITY,1120,26-Jul-17,111259,14.95,BRITISH GAS,BRI040
EFDC,YB110,SUPERVISION/MANAGEMENT SPECIAL,ELECTRICITY,1120,26-Jul-17,111259,11.53,BRITISH GAS,BRI040
EFDC,YB110,SUPERVISION/MANAGEMENT SPECIAL,ELECTRICITY,1120,26-Jul-17,111259,13.43,BRITISH GAS,BRI040
EFDC,YB110,SUPERVISION/MANAGEMENT SPECIAL,ELECTRICITY,1120,26-Jul-17,111259,15.11,BRITISH GAS,BRI040
EFDC,YB110,SUPERVISION/MANAGEMENT SPECIAL,ELECTRICITY,1120,26-Jul-17,111259,14.7,BRITISH GAS,BRI040
EFDC,YB110,SUPERVISION/MANAGEMENT SPECIAL,ELECTRICITY,1120,26-Jul-17,111259,11.02,BRITISH GAS,BRI040
EFDC,YB110,SUPERVISION/MANAGEMENT SPECIAL,ELECTRICITY,1120,26-Jul-17,111259,19.72,BRITISH GAS,BRI040
EFDC,YB110,SUPERVISION/MANAGEMENT SPECIAL,ELECTRICITY,1120,26-Jul-17,111259,10.88,BRITISH GAS,BRI040
EFDC,YB110,SUPERVISION/MANAGEMENT SPECIAL,ELECTRICITY,1120,26-Jul-17,111259,38.02,BRITISH GAS,BRI040
EFDC,YB110,SUPERVISION/MANAGEMENT SPECIAL,ELECTRICITY,1120,26-Jul-17,111259,10.88,BRITISH GAS,BRI040
EFDC,YB110,SUPERVISION/MANAGEMENT SPECIAL,ELECTRICITY,1120,26-Jul-17,111259,17.15,BRITISH GAS,BRI040
EFDC,YB110,SUPERVISION/MANAGEMENT SPECIAL,ELECTRICITY,1120,26-Jul-17,111259,14.85,BRITISH GAS,BRI040
EFDC,YB110,SUPERVISION/MANAGEMENT SPECIAL,ELECTRICITY,1120,26-Jul-17,111259,11.58,BRITISH GAS,BRI040
EFDC,YB110,SUPERVISION/MANAGEMENT SPECIAL,ELECTRICITY,1120,26-Jul-17,111259,12.53,BRITISH GAS,BRI040
EFDC,YB110,SUPERVISION/MANAGEMENT SPECIAL,ELECTRICITY,1120,26-Jul-17,111259,10.04,BRITISH GAS,BRI040
EFDC,YB110,SUPERVISION/MANAGEMENT SPECIAL,ELECTRICITY,1120,26-Jul-17,111259,9.62,BRITISH GAS,BRI040
EFDC,YB110,SUPERVISION/MANAGEMENT SPECIAL,ELECTRICITY,1120,26-Jul-17,111259,12.55,BRITISH GAS,BRI040
EFDC,YB110,SUPERVISION/MANAGEMENT SPECIAL,ELECTRICITY,1120,26-Jul-17,111259,29.36,BRITISH GAS,BRI040
EFDC,YB110,SUPERVISION/MANAGEMENT SPECIAL,ELECTRICITY,1120,26-Jul-17,111259,15.06,BRITISH GAS,BRI040
EFDC,YB110,SUPERVISION/MANAGEMENT SPECIAL,ELECTRICITY,1120,26-Jul-17,111259,26.11,BRITISH GAS,BRI040
EFDC,YB110,SUPERVISION/MANAGEMENT SPECIAL,ELECTRICITY,1120,26-Jul-17,111259,15.64,BRITISH GAS,BRI040
EFDC,YB110,SUPERVISION/MANAGEMENT SPECIAL,ELECTRICITY,1120,26-Jul-17,111259,11.91,BRITISH GAS,BRI040
EFDC,YB110,SUPERVISION/MANAGEMENT SPECIAL,ELECTRICITY,1120,26-Jul-17,111259,11.27,BRITISH GAS,BRI040
EFDC,YB110,SUPERVISION/MANAGEMENT SPECIAL,ELECTRICITY,1120,26-Jul-17,111259,11.33,BRITISH GAS,BRI040
EFDC,YB110,SUPERVISION/MANAGEMENT SPECIAL,ELECTRICITY,1120,26-Jul-17,111259,9.01,BRITISH GAS,BRI040
EFDC,YB110,SUPERVISION/MANAGEMENT SPECIAL,ELECTRICITY,1120,26-Jul-17,111259,18.16,BRITISH GAS,BRI040
EFDC,YB110,SUPERVISION/MANAGEMENT SPECIAL,ELECTRICITY,1120,26-Jul-17,111259,41.3,BRITISH GAS,BRI040
EFDC,YB110,SUPERVISION/MANAGEMENT SPECIAL,ELECTRICITY,1120,26-Jul-17,111259,30.5,BRITISH GAS,BRI040
EFDC,YB110,SUPERVISION/MANAGEMENT SPECIAL,ELECTRICITY,1120,26-Jul-17,111259,11.98,BRITISH GAS,BRI040
EFDC,YB110,SUPERVISION/MANAGEMENT SPECIAL,ELECTRICITY,1120,26-Jul-17,111259,14.13,BRITISH GAS,BRI040
EFDC,YB110,SUPERVISION/MANAGEMENT SPECIAL,ELECTRICITY,1120,26-Jul-17,111259,15.37,BRITISH GAS,BRI040
EFDC,YB110,SUPERVISION/MANAGEMENT SPECIAL,ELECTRICITY,1120,26-Jul-17,111259,9.87,BRITISH GAS,BRI040
EFDC,YB110,SUPERVISION/MANAGEMENT SPECIAL,ELECTRICITY,1120,26-Jul-17,111259,13.81,BRITISH GAS,BRI040
EFDC,YB110,SUPERVISION/MANAGEMENT SPECIAL,ELECTRICITY,1120,26-Jul-17,111259,13.81,BRITISH GAS,BRI040
EFDC,YB110,SUPERVISION/MANAGEMENT SPECIAL,ELECTRICITY,1120,26-Jul-17,111259,20.02,BRITISH GAS,BRI040
EFDC,YB110,SUPERVISION/MANAGEMENT SPECIAL,ELECTRICITY,1120,26-Jul-17,111259,11.75,BRITISH GAS,BRI040
EFDC,YB110,SUPERVISION/MANAGEMENT SPECIAL,ELECTRICITY,1120,26-Jul-17,111259,39.25,BRITISH GAS,BRI040
EFDC,YB110,SUPERVISION/MANAGEMENT SPECIAL,ELECTRICITY,1120,26-Jul-17,111259,27.04,BRITISH GAS,BRI040
EFDC,YB110,SUPERVISION/MANAGEMENT SPECIAL,ELECTRICITY,1120,26-Jul-17,111259,14.66,BRITISH GAS,BRI040
EFDC,YB110,SUPERVISION/MANAGEMENT SPECIAL,ELECTRICITY,1120,26-Jul-17,111259,15.96,BRITISH GAS,BRI040
EFDC,YB110,SUPERVISION/MANAGEMENT SPECIAL,ELECTRICITY,1120,26-Jul-17,111259,24.45,BRITISH GAS,BRI040
EFDC,YB110,SUPERVISION/MANAGEMENT SPECIAL,ELECTRICITY,1120,26-Jul-17,111259,85.39,BRITISH GAS,BRI040
EFDC,YB110,SUPERVISION/MANAGEMENT SPECIAL,ELECTRICITY,1120,26-Jul-17,111259,18.82,BRITISH GAS,BRI040
EFDC,YB110,SUPERVISION/MANAGEMENT SPECIAL,ELECTRICITY,1120,26-Jul-17,111259,22.39,BRITISH GAS,BRI040
EFDC,YB110,SUPERVISION/MANAGEMENT SPECIAL,ELECTRICITY,1120,26-Jul-17,111259,13.75,BRITISH GAS,BRI040
EFDC,YB110,SUPERVISION/MANAGEMENT SPECIAL,ELECTRICITY,1120,26-Jul-17,111259,15.33,BRITISH GAS,BRI040
EFDC,YB110,SUPERVISION/MANAGEMENT SPECIAL,ELECTRICITY,1120,26-Jul-17,111259,17.98,BRITISH GAS,BRI040
EFDC,YB110,SUPERVISION/MANAGEMENT SPECIAL,ELECTRICITY,1120,26-Jul-17,111259,19.71,BRITISH GAS,BRI040
EFDC,YB110,SUPERVISION/MANAGEMENT SPECIAL,ELECTRICITY,1120,26-Jul-17,111259,11.61,BRITISH GAS,BRI040
EFDC,YB110,SUPERVISION/MANAGEMENT SPECIAL,ELECTRICITY,1120,26-Jul-17,111259,12.59,BRITISH GAS,BRI040
EFDC,YB110,SUPERVISION/MANAGEMENT SPECIAL,ELECTRICITY,1120,26-Jul-17,111259,12.48,BRITISH GAS,BRI040
EFDC,YB110,SUPERVISION/MANAGEMENT SPECIAL,ELECTRICITY,1120,26-Jul-17,111259,11.19,BRITISH GAS,BRI040
EFDC,YB110,SUPERVISION/MANAGEMENT SPECIAL,ELECTRICITY,1120,26-Jul-17,111259,12.93,BRITISH GAS,BRI040
EFDC,YB110,SUPERVISION/MANAGEMENT SPECIAL,ELECTRICITY,1120,26-Jul-17,111259,20.42,BRITISH GAS,BRI040
EFDC,YB110,SUPERVISION/MANAGEMENT SPECIAL,ELECTRICITY,1120,26-Jul-17,111259,11.61,BRITISH GAS,BRI040
EFDC,YB110,SUPERVISION/MANAGEMENT SPECIAL,ELECTRICITY,1120,26-Jul-17,111259,58.03,BRITISH GAS,BRI040
EFDC,YB110,SUPERVISION/MANAGEMENT SPECIAL,ELECTRICITY,1120,26-Jul-17,111259,16.6,BRITISH GAS,BRI040
EFDC,YB110,SUPERVISION/MANAGEMENT SPECIAL,ELECTRICITY,1120,26-Jul-17,111259,11.68,BRITISH GAS,BRI040
EFDC,YB110,SUPERVISION/MANAGEMENT SPECIAL,ELECTRICITY,1120,26-Jul-17,111259,12.14,BRITISH GAS,BRI040
EFDC,YB110,SUPERVISION/MANAGEMENT SPECIAL,ELECTRICITY,1120,26-Jul-17,111259,12.95,BRITISH GAS,BRI040
EFDC,YB110,SUPERVISION/MANAGEMENT SPECIAL,ELECTRICITY,1120,26-Jul-17,111259,36.93,BRITISH GAS,BRI040
EFDC,YB110,SUPERVISION/MANAGEMENT SPECIAL,ELECTRICITY,1120,26-Jul-17,111259,-100.8,BRITISH GAS,BRI040
EFDC,YB110,SUPERVISION/MANAGEMENT SPECIAL,ELECTRICITY,1120,26-Jul-17,111259,15.3,BRITISH GAS,BRI040
EFDC,YB110,SUPERVISION/MANAGEMENT SPECIAL,ELECTRICITY,1120,26-Jul-17,111259,-13.54,BRITISH GAS,BRI040
EFDC,YB110,SUPERVISION/MANAGEMENT SPECIAL,ELECTRICITY,1120,26-Jul-17,111259,17.35,BRITISH GAS,BRI040
EFDC,YB110,SUPERVISION/MANAGEMENT SPECIAL,ELECTRICITY,1120,26-Jul-17,111259,13.92,BRITISH GAS,BRI040
EFDC,YB110,SUPERVISION/MANAGEMENT SPECIAL,ELECTRICITY,1120,26-Jul-17,111259,13.82,BRITISH GAS,BRI040
EFDC,YB110,SUPERVISION/MANAGEMENT SPECIAL,ELECTRICITY,1120,26-Jul-17,111259,11.54,BRITISH GAS,BRI040
EFDC,YB110,SUPERVISION/MANAGEMENT SPECIAL,ELECTRICITY,1120,26-Jul-17,111259,534.17,BRITISH GAS,BRI040
EFDC,YB110,SUPERVISION/MANAGEMENT SPECIAL,ELECTRICITY,1120,26-Jul-17,111259,14.1,BRITISH GAS,BRI040
EFDC,YB110,SUPERVISION/MANAGEMENT SPECIAL,ELECTRICITY,1120,26-Jul-17,111259,33.53,BRITISH GAS,BRI040
EFDC,YB110,SUPERVISION/MANAGEMENT SPECIAL,ELECTRICITY,1120,26-Jul-17,111259,13.68,BRITISH GAS,BRI040
EFDC,YB110,SUPERVISION/MANAGEMENT SPECIAL,ELECTRICITY,1120,26-Jul-17,111259,-11742.43,BRITISH GAS,BRI040
EFDC,YB110,SUPERVISION/MANAGEMENT SPECIAL,ELECTRICITY,1120,26-Jul-17,111259,8.52,BRITISH GAS,BRI040
EFDC,YB110,SUPERVISION/MANAGEMENT SPECIAL,ELECTRICITY,1120,26-Jul-17,111259,18.46,BRITISH GAS,BRI040
EFDC,YB110,SUPERVISION/MANAGEMENT SPECIAL,ELECTRICITY,1120,26-Jul-17,111259,10.56,BRITISH GAS,BRI040
EFDC,YB110,SUPERVISION/MANAGEMENT SPECIAL,ELECTRICITY,1120,26-Jul-17,111259,12.12,BRITISH GAS,BRI040
EFDC,YB110,SUPERVISION/MANAGEMENT SPECIAL,ELECTRICITY,1120,26-Jul-17,111259,13.43,BRITISH GAS,BRI040
EFDC,YB110,SUPERVISION/MANAGEMENT SPECIAL,ELECTRICITY,1120,26-Jul-17,111259,12.43,BRITISH GAS,BRI040
EFDC,YB110,SUPERVISION/MANAGEMENT SPECIAL,ELECTRICITY,1120,26-Jul-17,111259,12.12,BRITISH GAS,BRI040
EFDC,YB110,SUPERVISION/MANAGEMENT SPECIAL,ELECTRICITY,1120,26-Jul-17,111259,24.69,BRITISH GAS,BRI040
EFDC,YB110,SUPERVISION/MANAGEMENT SPECIAL,ELECTRICITY,1120,26-Jul-17,111259,21.86,BRITISH GAS,BRI040
EFDC,YB110,SUPERVISION/MANAGEMENT SPECIAL,ELECTRICITY,1120,26-Jul-17,111259,9.01,BRITISH GAS,BRI040
EFDC,YB110,SUPERVISION/MANAGEMENT SPECIAL,ELECTRICITY,1120,26-Jul-17,111259,8.52,BRITISH GAS,BRI040
EFDC,YB110,SUPERVISION/MANAGEMENT SPECIAL,ELECTRICITY,1120,26-Jul-17,111259,27.68,BRITISH GAS,BRI040
EFDC,YB110,SUPERVISION/MANAGEMENT SPECIAL,ELECTRICITY,1120,26-Jul-17,111259,30.07,BRITISH GAS,BRI040
EFDC,YB110,SUPERVISION/MANAGEMENT SPECIAL,ELECTRICITY,1120,26-Jul-17,111259,10.85,BRITISH GAS,BRI040
EFDC,YB110,SUPERVISION/MANAGEMENT SPECIAL,ELECTRICITY,1120,26-Jul-17,111259,10.63,BRITISH GAS,BRI040
EFDC,YB110,SUPERVISION/MANAGEMENT SPECIAL,ELECTRICITY,1120,26-Jul-17,111259,11.26,BRITISH GAS,BRI040
EFDC,YB110,SUPERVISION/MANAGEMENT SPECIAL,ELECTRICITY,1120,26-Jul-17,111259,43.27,BRITISH GAS,BRI040
EFDC,YB110,SUPERVISION/MANAGEMENT SPECIAL,ELECTRICITY,1120,26-Jul-17,111259,8.52,BRITISH GAS,BRI040
EFDC,YB110,SUPERVISION/MANAGEMENT SPECIAL,ELECTRICITY,1120,26-Jul-17,111259,8.52,BRITISH GAS,BRI040
EFDC,YB110,SUPERVISION/MANAGEMENT SPECIAL,ELECTRICITY,1120,26-Jul-17,111259,8.77,BRITISH GAS,BRI040
EFDC,YB110,SUPERVISION/MANAGEMENT SPECIAL,ELECTRICITY,1120,26-Jul-17,111259,8.52,BRITISH GAS,BRI040
EFDC,YB110,SUPERVISION/MANAGEMENT SPECIAL,ELECTRICITY,1120,26-Jul-17,111259,14.85,BRITISH GAS,BRI040
EFDC,YB110,SUPERVISION/MANAGEMENT SPECIAL,ELECTRICITY,1120,26-Jul-17,111259,19.02,BRITISH GAS,BRI040
EFDC,YB110,SUPERVISION/MANAGEMENT SPECIAL,ELECTRICITY,1120,26-Jul-17,111259,8.52,BRITISH GAS,BRI040
EFDC,YB110,SUPERVISION/MANAGEMENT SPECIAL,ELECTRICITY,1120,26-Jul-17,111259,8.52,BRITISH GAS,BRI040
EFDC,YB110,SUPERVISION/MANAGEMENT SPECIAL,ELECTRICITY,1120,26-Jul-17,111259,7.06,BRITISH GAS,BRI040
EFDC,YB110,SUPERVISION/MANAGEMENT SPECIAL,ELECTRICITY,1120,26-Jul-17,111259,21.51,BRITISH GAS,BRI040
EFDC,YB110,SUPERVISION/MANAGEMENT SPECIAL,ELECTRICITY,1120,26-Jul-17,111259,21.02,BRITISH GAS,BRI040
EFDC,YB110,SUPERVISION/MANAGEMENT SPECIAL,ELECTRICITY,1120,26-Jul-17,111259,12.44,BRITISH GAS,BRI040
EFDC,YB110,SUPERVISION/MANAGEMENT SPECIAL,ELECTRICITY,1120,26-Jul-17,111259,12.36,BRITISH GAS,BRI040
EFDC,YB110,SUPERVISION/MANAGEMENT SPECIAL,ELECTRICITY,1120,26-Jul-17,111259,11.48,BRITISH GAS,BRI040
EFDC,YB110,SUPERVISION/MANAGEMENT SPECIAL,ELECTRICITY,1120,26-Jul-17,111259,14.34,BRITISH GAS,BRI040
EFDC,YB110,SUPERVISION/MANAGEMENT SPECIAL,ELECTRICITY,1120,26-Jul-17,111259,22.62,BRITISH GAS,BRI040
EFDC,YB110,SUPERVISION/MANAGEMENT SPECIAL,ELECTRICITY,1120,26-Jul-17,111259,13.68,BRITISH GAS,BRI040
EFDC,YB110,SUPERVISION/MANAGEMENT SPECIAL,ELECTRICITY,1120,26-Jul-17,111259,10.6,BRITISH GAS,BRI040
EFDC,YB110,SUPERVISION/MANAGEMENT SPECIAL,ELECTRICITY,1120,26-Jul-17,111259,41.89,BRITISH GAS,BRI040
EFDC,YB110,SUPERVISION/MANAGEMENT SPECIAL,ELECTRICITY,1120,26-Jul-17,111259,8.52,BRITISH GAS,BRI040
EFDC,YB110,SUPERVISION/MANAGEMENT SPECIAL,ELECTRICITY,1120,26-Jul-17,111259,8.52,BRITISH GAS,BRI040
EFDC,YB110,SUPERVISION/MANAGEMENT SPECIAL,ELECTRICITY,1120,26-Jul-17,111259,70.27,BRITISH GAS,BRI040
EFDC,YB110,SUPERVISION/MANAGEMENT SPECIAL,ELECTRICITY,1120,26-Jul-17,111259,17.1,BRITISH GAS,BRI040
EFDC,YB110,SUPERVISION/MANAGEMENT SPECIAL,ELECTRICITY,1120,26-Jul-17,111259,11.15,BRITISH GAS,BRI040
EFDC,YB110,SUPERVISION/MANAGEMENT SPECIAL,ELECTRICITY,1120,26-Jul-17,111259,20.61,BRITISH GAS,BRI040
EFDC,YB110,SUPERVISION/MANAGEMENT SPECIAL,ELECTRICITY,1120,26-Jul-17,111259,28.28,BRITISH GAS,BRI040
EFDC,YB110,SUPERVISION/MANAGEMENT SPECIAL,ELECTRICITY,1120,26-Jul-17,111259,8.52,BRITISH GAS,BRI040
EFDC,YB110,SUPERVISION/MANAGEMENT SPECIAL,ELECTRICITY,1120,26-Jul-17,111259,20.86,BRITISH GAS,BRI040
EFDC,YB110,SUPERVISION/MANAGEMENT SPECIAL,ELECTRICITY,1120,26-Jul-17,111259,15.48,BRITISH GAS,BRI040
EFDC,YB110,SUPERVISION/MANAGEMENT SPECIAL,ELECTRICITY,1120,26-Jul-17,111259,28.93,BRITISH GAS,BRI040
EFDC,YB110,SUPERVISION/MANAGEMENT SPECIAL,ELECTRICITY,1120,26-Jul-17,111259,13.61,BRITISH GAS,BRI040
EFDC,YB110,SUPERVISION/MANAGEMENT SPECIAL,ELECTRICITY,1120,26-Jul-17,111259,15.48,BRITISH GAS,BRI040
EFDC,YB110,SUPERVISION/MANAGEMENT SPECIAL,ELECTRICITY,1120,26-Jul-17,111259,8.52,BRITISH GAS,BRI040
EFDC,YB110,SUPERVISION/MANAGEMENT SPECIAL,ELECTRICITY,1120,26-Jul-17,111259,13.82,BRITISH GAS,BRI040
EFDC,YB110,SUPERVISION/MANAGEMENT SPECIAL,ELECTRICITY,1120,26-Jul-17,111259,8.52,BRITISH GAS,BRI040
EFDC,YB110,SUPERVISION/MANAGEMENT SPECIAL,ELECTRICITY,1120,26-Jul-17,111259,8.52,BRITISH GAS,BRI040
EFDC,YB110,SUPERVISION/MANAGEMENT SPECIAL,ELECTRICITY,1120,26-Jul-17,111259,31.9,BRITISH GAS,BRI040
EFDC,YB110,SUPERVISION/MANAGEMENT SPECIAL,ELECTRICITY,1120,26-Jul-17,111259,19.41,BRITISH GAS,BRI040
EFDC,YB110,SUPERVISION/MANAGEMENT SPECIAL,ELECTRICITY,1120,26-Jul-17,111259,24.45,BRITISH GAS,BRI040
EFDC,YB110,SUPERVISION/MANAGEMENT SPECIAL,ELECTRICITY,1120,26-Jul-17,111259,15.58,BRITISH GAS,BRI040
EFDC,YB110,SUPERVISION/MANAGEMENT SPECIAL,ELECTRICITY,1120,26-Jul-17,111259,15,BRITISH GAS,BRI040
EFDC,YB110,SUPERVISION/MANAGEMENT SPECIAL,ELECTRICITY,1120,26-Jul-17,111259,25.67,BRITISH GAS,BRI040
EFDC,YB110,SUPERVISION/MANAGEMENT SPECIAL,ELECTRICITY,1120,26-Jul-17,111259,92.84,BRITISH GAS,BRI040
EFDC,YB110,SUPERVISION/MANAGEMENT SPECIAL,ELECTRICITY,1120,26-Jul-17,111259,45.09,BRITISH GAS,BRI040
EFDC,YB110,SUPERVISION/MANAGEMENT SPECIAL,ELECTRICITY,1120,26-Jul-17,111259,14.09,BRITISH GAS,BRI040
EFDC,YB110,SUPERVISION/MANAGEMENT SPECIAL,ELECTRICITY,1120,26-Jul-17,111259,16.31,BRITISH GAS,BRI040
EFDC,YB110,SUPERVISION/MANAGEMENT SPECIAL,ELECTRICITY,1120,26-Jul-17,111259,15.13,BRITISH GAS,BRI040
EFDC,YB110,SUPERVISION/MANAGEMENT SPECIAL,ELECTRICITY,1120,26-Jul-17,111259,14.64,BRITISH GAS,BRI040
EFDC,YB110,SUPERVISION/MANAGEMENT SPECIAL,ELECTRICITY,1120,26-Jul-17,111259,13.17,BRITISH GAS,BRI040
EFDC,YB110,SUPERVISION/MANAGEMENT SPECIAL,ELECTRICITY,1120,26-Jul-17,111259,12.88,BRITISH GAS,BRI040
EFDC,YB110,SUPERVISION/MANAGEMENT SPECIAL,ELECTRICITY,1120,26-Jul-17,111259,15.32,BRITISH GAS,BRI040
EFDC,YB110,SUPERVISION/MANAGEMENT SPECIAL,ELECTRICITY,1120,26-Jul-17,111259,35.33,BRITISH GAS,BRI040
EFDC,YB110,SUPERVISION/MANAGEMENT SPECIAL,ELECTRICITY,1120,26-Jul-17,111259,12.14,BRITISH GAS,BRI040
EFDC,YB110,SUPERVISION/MANAGEMENT SPECIAL,ELECTRICITY,1120,26-Jul-17,111259,12.64,BRITISH GAS,BRI040
EFDC,YB110,SUPERVISION/MANAGEMENT SPECIAL,ELECTRICITY,1120,26-Jul-17,111259,12.43,BRITISH GAS,BRI040
EFDC,YB110,SUPERVISION/MANAGEMENT SPECIAL,ELECTRICITY,1120,26-Jul-17,111259,13.88,BRITISH GAS,BRI040
EFDC,YB110,SUPERVISION/MANAGEMENT SPECIAL,ELECTRICITY,1120,26-Jul-17,111259,10.39,BRITISH GAS,BRI040
EFDC,YB110,SUPERVISION/MANAGEMENT SPECIAL,ELECTRICITY,1120,26-Jul-17,111259,12.29,BRITISH GAS,BRI040
EFDC,YB110,SUPERVISION/MANAGEMENT SPECIAL,ELECTRICITY,1120,26-Jul-17,111259,13.55,BRITISH GAS,BRI040
EFDC,YB110,SUPERVISION/MANAGEMENT SPECIAL,ELECTRICITY,1120,26-Jul-17,111259,17.96,BRITISH GAS,BRI040
EFDC,YB110,SUPERVISION/MANAGEMENT SPECIAL,ELECTRICITY,1120,26-Jul-17,111259,24.53,BRITISH GAS,BRI040
EFDC,YB110,SUPERVISION/MANAGEMENT SPECIAL,ELECTRICITY,1120,26-Jul-17,111259,20.07,BRITISH GAS,BRI040
EFDC,YB110,SUPERVISION/MANAGEMENT SPECIAL,ELECTRICITY,1120,26-Jul-17,111259,504.63,BRITISH GAS,BRI040
EFDC,YB110,SUPERVISION/MANAGEMENT SPECIAL,ELECTRICITY,1120,26-Jul-17,111259,38.79,BRITISH GAS,BRI040
EFDC,YB110,SUPERVISION/MANAGEMENT SPECIAL,ELECTRICITY,1120,26-Jul-17,111259,25.06,BRITISH GAS,BRI040
EFDC,YB110,SUPERVISION/MANAGEMENT SPECIAL,ELECTRICITY,1120,26-Jul-17,111259,295.15,BRITISH GAS,BRI040
EFDC,YB110,SUPERVISION/MANAGEMENT SPECIAL,ELECTRICITY,1120,26-Jul-17,111259,21.68,BRITISH GAS,BRI040
EFDC,YB110,SUPERVISION/MANAGEMENT SPECIAL,ELECTRICITY,1120,26-Jul-17,111259,14.15,BRITISH GAS,BRI040
EFDC,YB110,SUPERVISION/MANAGEMENT SPECIAL,ELECTRICITY,1120,26-Jul-17,111259,12.8,BRITISH GAS,BRI040
EFDC,YB110,SUPERVISION/MANAGEMENT SPECIAL,ELECTRICITY,1120,26-Jul-17,111259,23.08,BRITISH GAS,BRI040
EFDC,YB110,SUPERVISION/MANAGEMENT SPECIAL,ELECTRICITY,1120,26-Jul-17,111259,8.52,BRITISH GAS,BRI040
EFDC,YB110,SUPERVISION/MANAGEMENT SPECIAL,ELECTRICITY,1120,26-Jul-17,111259,14.04,BRITISH GAS,BRI040
EFDC,YB110,SUPERVISION/MANAGEMENT SPECIAL,ELECTRICITY,1120,26-Jul-17,111259,12.25,BRITISH GAS,BRI040
EFDC,YB110,SUPERVISION/MANAGEMENT SPECIAL,ELECTRICITY,1120,26-Jul-17,111259,7.28,BRITISH GAS,BRI040
EFDC,YB140,SUPERVISION/MANAGEMENT SPECIAL,ELECTRICITY,1120,26-Jul-17,111259,22.05,BRITISH GAS,BRI040
EFDC,YB140,SUPERVISION/MANAGEMENT SPECIAL,ELECTRICITY,1120,26-Jul-17,111259,20.09,BRITISH GAS,BRI040
EFDC,YB140,SUPERVISION/MANAGEMENT SPECIAL,ELECTRICITY,1120,26-Jul-17,111259,11.77,BRITISH GAS,BRI040
EFDC,YB140,SUPERVISION/MANAGEMENT SPECIAL,ELECTRICITY,1120,26-Jul-17,111259,22.54,BRITISH GAS,BRI040
EFDC,YB140,SUPERVISION/MANAGEMENT SPECIAL,ELECTRICITY,1120,26-Jul-17,111259,17.23,BRITISH GAS,BRI040
EFDC,YB140,SUPERVISION/MANAGEMENT SPECIAL,ELECTRICITY,1120,26-Jul-17,111259,13.48,BRITISH GAS,BRI040
EFDC,YB140,SUPERVISION/MANAGEMENT SPECIAL,ELECTRICITY,1120,26-Jul-17,111259,11.42,BRITISH GAS,BRI040
EFDC,YB140,SUPERVISION/MANAGEMENT SPECIAL,ELECTRICITY,1120,26-Jul-17,111259,19.07,BRITISH GAS,BRI040
EFDC,YB140,SUPERVISION/MANAGEMENT SPECIAL,ELECTRICITY,1120,26-Jul-17,111259,21.39,BRITISH GAS,BRI040
EFDC,YB140,SUPERVISION/MANAGEMENT SPECIAL,ELECTRICITY,1120,26-Jul-17,111259,21.02,BRITISH GAS,BRI040
EFDC,YB140,SUPERVISION/MANAGEMENT SPECIAL,ELECTRICITY,1120,26-Jul-17,111259,29.18,BRITISH GAS,BRI040
EFDC,YB140,SUPERVISION/MANAGEMENT SPECIAL,ELECTRICITY,1120,26-Jul-17,111259,19.3,BRITISH GAS,BRI040
EFDC,YB140,SUPERVISION/MANAGEMENT SPECIAL,ELECTRICITY,1120,26-Jul-17,111259,16.43,BRITISH GAS,BRI040
EFDC,YB140,SUPERVISION/MANAGEMENT SPECIAL,ELECTRICITY,1120,26-Jul-17,111259,35.72,BRITISH GAS,BRI040
EFDC,YB140,SUPERVISION/MANAGEMENT SPECIAL,ELECTRICITY,1120,26-Jul-17,111259,19.43,BRITISH GAS,BRI040
EFDC,YB300,SUPERVISION/MANAGEMENT SPECIAL,ELECTRICITY,1120,26-Jul-17,111259,27.58,BRITISH GAS,BRI040
EFDC,EH112,LAND DRAINAGE/SEWERAGE,OTHER MAINTENANCE,1050,26-Jul-17,111259,137.2,BRITISH GAS,BRI040
EFDC,YB200,SUPERVISION/MANAGEMENT SPECIAL,ELECTRICITY,1120,26-Jul-17,111259,11.22,BRITISH GAS,BRI040
EFDC,YB110,SUPERVISION/MANAGEMENT SPECIAL,ELECTRICITY,1120,26-Jul-17,111259,12.36,BRITISH GAS,BRI040
EFDC,YB500,SUPERVISION/MANAGEMENT SPECIAL,ELECTRICITY,1120,26-Jul-17,111259,10.51,BRITISH GAS,BRI040
EFDC,YB500,SUPERVISION/MANAGEMENT SPECIAL,ELECTRICITY,1120,26-Jul-17,111259,29.74,BRITISH GAS,BRI040
EFDC,YB500,SUPERVISION/MANAGEMENT SPECIAL,ELECTRICITY,1120,26-Jul-17,111259,10.59,BRITISH GAS,BRI040
EFDC,YB500,SUPERVISION/MANAGEMENT SPECIAL,ELECTRICITY,1120,26-Jul-17,111259,13.53,BRITISH GAS,BRI040
EFDC,YB500,SUPERVISION/MANAGEMENT SPECIAL,ELECTRICITY,1120,26-Jul-17,111259,16.9,BRITISH GAS,BRI040
EFDC,YB500,SUPERVISION/MANAGEMENT SPECIAL,ELECTRICITY,1120,26-Jul-17,111259,18.38,BRITISH GAS,BRI040
EFDC,YB500,SUPERVISION/MANAGEMENT SPECIAL,ELECTRICITY,1120,26-Jul-17,111259,17.65,BRITISH GAS,BRI040
EFDC,YB500,SUPERVISION/MANAGEMENT SPECIAL,ELECTRICITY,1120,26-Jul-17,111259,12.27,BRITISH GAS,BRI040
EFDC,YB500,SUPERVISION/MANAGEMENT SPECIAL,ELECTRICITY,1120,26-Jul-17,111259,7.55,BRITISH GAS,BRI040
EFDC,YB500,SUPERVISION/MANAGEMENT SPECIAL,ELECTRICITY,1120,26-Jul-17,111259,35.49,BRITISH GAS,BRI040
EFDC,YB500,SUPERVISION/MANAGEMENT SPECIAL,ELECTRICITY,1120,26-Jul-17,111259,174.43,BRITISH GAS,BRI040
EFDC,YB500,SUPERVISION/MANAGEMENT SPECIAL,ELECTRICITY,1120,26-Jul-17,111259,7.97,BRITISH GAS,BRI040
EFDC,YB500,SUPERVISION/MANAGEMENT SPECIAL,ELECTRICITY,1120,26-Jul-17,111259,9.76,BRITISH GAS,BRI040
EFDC,YB520,SUPERVISION/MANAGEMENT SPECIAL,ELECTRICITY,1120,26-Jul-17,111259,57.35,BRITISH GAS,BRI040
EFDC,YB520,SUPERVISION/MANAGEMENT SPECIAL,ELECTRICITY,1120,26-Jul-17,111259,150.83,BRITISH GAS,BRI040
EFDC,YB520,SUPERVISION/MANAGEMENT SPECIAL,ELECTRICITY,1120,26-Jul-17,111259,231.26,BRITISH GAS,BRI040
EFDC,UO130,LAND & PROPERTY,ELECTRICITY,1120,26-Jul-17,111259,19.71,BRITISH GAS,BRI040
EFDC,23130,ACCOMMODATION,ELECTRICITY,1120,26-Jul-17,111259,63.11,BRITISH GAS,BRI040
EFDC,RS301,NORTH WEALD CENTRE,ELECTRICITY,1120,26-Jul-17,111259,11.8,BRITISH GAS,BRI040
EFDC,RS302,NORTH WEALD CENTRE,ELECTRICITY,1120,26-Jul-17,111259,3.51,BRITISH GAS,BRI040
EFDC,TI190,LAND & PROPERTY,ELECTRICITY,1120,26-Jul-17,111259,319.97,BRITISH GAS,BRI040
EFDC,UO130,LAND & PROPERTY,ELECTRICITY,1120,26-Jul-17,111259,39.18,BRITISH GAS,BRI040
EFDC,FD100,LAND DRAINAGE/SEWERAGE,ELECTRICITY,1120,26-Jul-17,111259,-1831.21,BRITISH GAS,BRI040
EFDC,UO130,LAND & PROPERTY,ELECTRICITY,1120,26-Jul-17,111259,54.88,BRITISH GAS,BRI040
EFDC,UO130,LAND & PROPERTY,ELECTRICITY,1120,26-Jul-17,111259,13.17,BRITISH GAS,BRI040
EFDC,YB500,SUPERVISION/MANAGEMENT SPECIAL,ELECTRICITY,1120,26-Jul-17,111259,11.5,BRITISH GAS,BRI040
EFDC,UO130,LAND & PROPERTY,ELECTRICITY,1120,26-Jul-17,111259,2.87,BRITISH GAS,BRI040
EFDC,YB110,SUPERVISION/MANAGEMENT SPECIAL,ELECTRICITY,1120,26-Jul-17,111259,17.42,BRITISH GAS,BRI040
EFDC,35300,ENVIRONMENTAL OTHER,ELECTRICITY,1120,26-Jul-17,111259,146.11,BRITISH GAS,BRI040
EFDC,CH110,"MUSEUM, HERITAGE & CULTURE",ELECTRICITY,1120,26-Jul-17,111259,389.84,BRITISH GAS,BRI040
EFDC,EH160,OTHER ACTIVITIES,ELECTRICITY,1120,26-Jul-17,111259,27.87,BRITISH GAS,BRI040
EFDC,EH160,OTHER ACTIVITIES,ELECTRICITY,1120,26-Jul-17,111259,9.5,BRITISH GAS,BRI040
EFDC,EH160,OTHER ACTIVITIES,ELECTRICITY,1120,26-Jul-17,111259,29.59,BRITISH GAS,BRI040
EFDC,EH160,OTHER ACTIVITIES,ELECTRICITY,1120,26-Jul-17,111259,66.78,BRITISH GAS,BRI040
EFDC,FD100,LAND DRAINAGE/SEWERAGE,ELECTRICITY,1120,26-Jul-17,111259,10.56,BRITISH GAS,BRI040
EFDC,FD100,LAND DRAINAGE/SEWERAGE,ELECTRICITY,1120,26-Jul-17,111259,7.06,BRITISH GAS,BRI040
EFDC,FD100,LAND DRAINAGE/SEWERAGE,ELECTRICITY,1120,26-Jul-17,111259,-24.82,BRITISH GAS,BRI040
EFDC,EH160,OTHER ACTIVITIES,ELECTRICITY,1120,26-Jul-17,111259,23.71,BRITISH GAS,BRI040
EFDC,YB500,SUPERVISION/MANAGEMENT SPECIAL,ELECTRICITY,1120,26-Jul-17,111259,7.51,BRITISH GAS,BRI040
EFDC,YB350,SUPERVISION/MANAGEMENT SPECIAL,ELECTRICITY,1120,26-Jul-17,111259,260.57,BRITISH GAS,BRI040
EFDC,YB620,SUPERVISION/MANAGEMENT SPECIAL,ELECTRICITY,1120,26-Jul-17,111259,1716.43,BRITISH GAS,BRI040
EFDC,YB500,SUPERVISION/MANAGEMENT SPECIAL,ELECTRICITY,1120,26-Jul-17,111259,21.01,BRITISH GAS,BRI040
EFDC,YB500,SUPERVISION/MANAGEMENT SPECIAL,ELECTRICITY,1120,26-Jul-17,111259,44.47,BRITISH GAS,BRI040
EFDC,YB500,SUPERVISION/MANAGEMENT SPECIAL,ELECTRICITY,1120,26-Jul-17,111259,32.24,BRITISH GAS,BRI040
EFDC,YB500,SUPERVISION/MANAGEMENT SPECIAL,ELECTRICITY,1120,26-Jul-17,111259,12.02,BRITISH GAS,BRI040
EFDC,YB500,SUPERVISION/MANAGEMENT SPECIAL,ELECTRICITY,1120,26-Jul-17,111259,288.45,BRITISH GAS,BRI040
EFDC,YB500,SUPERVISION/MANAGEMENT SPECIAL,ELECTRICITY,1120,26-Jul-17,111259,419.6,BRITISH GAS,BRI040
EFDC,YB500,SUPERVISION/MANAGEMENT SPECIAL,ELECTRICITY,1120,26-Jul-17,111259,8.77,BRITISH GAS,BRI040
EFDC,YB500,SUPERVISION/MANAGEMENT SPECIAL,ELECTRICITY,1120,26-Jul-17,111259,572.42,BRITISH GAS,BRI040
EFDC,YB500,SUPERVISION/MANAGEMENT SPECIAL,ELECTRICITY,1120,26-Jul-17,111259,542.16,BRITISH GAS,BRI040
EFDC,YB500,SUPERVISION/MANAGEMENT SPECIAL,ELECTRICITY,1120,26-Jul-17,111259,-623.51,BRITISH GAS,BRI040
EFDC,YB500,SUPERVISION/MANAGEMENT SPECIAL,ELECTRICITY,1120,26-Jul-17,111259,553.7,BRITISH GAS,BRI040
EFDC,YB500,SUPERVISION/MANAGEMENT SPECIAL,ELECTRICITY,1120,26-Jul-17,111259,137.02,BRITISH GAS,BRI040
EFDC,YB500,SUPERVISION/MANAGEMENT SPECIAL,ELECTRICITY,1120,26-Jul-17,111259,193.32,BRITISH GAS,BRI040
EFDC,YB500,SUPERVISION/MANAGEMENT SPECIAL,ELECTRICITY,1120,26-Jul-17,111259,263.04,BRITISH GAS,BRI040
EFDC,YB500,SUPERVISION/MANAGEMENT SPECIAL,ELECTRICITY,1120,26-Jul-17,111259,13.01,BRITISH GAS,BRI040
EFDC,YB500,SUPERVISION/MANAGEMENT SPECIAL,ELECTRICITY,1120,26-Jul-17,111259,231.25,BRITISH GAS,BRI040
EFDC,23140,ACCOMMODATION,ELECTRICITY,1120,26-Jul-17,111259,166.94,BRITISH GAS,BRI040
EFDC,23140,ACCOMMODATION,ELECTRICITY,1120,26-Jul-17,111259,36.87,BRITISH GAS,BRI040
EFDC,23140,ACCOMMODATION,ELECTRICITY,1120,26-Jul-17,111259,150.81,BRITISH GAS,BRI040
EFDC,23140,ACCOMMODATION,ELECTRICITY,1120,26-Jul-17,111259,261.16,BRITISH GAS,BRI040
EFDC,23140,ACCOMMODATION,ELECTRICITY,1120,26-Jul-17,111259,107.26,BRITISH GAS,BRI040
EFDC,23140,ACCOMMODATION,ELECTRICITY,1120,26-Jul-17,111259,420.52,BRITISH GAS,BRI040
EFDC,23140,ACCOMMODATION,ELECTRICITY,1120,26-Jul-17,111259,406.86,BRITISH GAS,BRI040
EFDC,23140,ACCOMMODATION,ELECTRICITY,1120,26-Jul-17,111259,-395.03,BRITISH GAS,BRI040
EFDC,23140,ACCOMMODATION,ELECTRICITY,1120,26-Jul-17,111259,-381.3,BRITISH GAS,BRI040
EFDC,23140,ACCOMMODATION,ELECTRICITY,1120,26-Jul-17,111259,-372.42,BRITISH GAS,BRI040
EFDC,27150,"COMMUNITY, HEALTH & WELLBEING",ELECTRICITY,1120,26-Jul-17,111259,608.87,BRITISH GAS,BRI040
EFDC,23140,ACCOMMODATION,ELECTRICITY,1120,26-Jul-17,111259,-406.86,BRITISH GAS,BRI040
EFDC,27110,ACCOMMODATION,ELECTRICITY,1120,26-Jul-17,111259,86.55,BRITISH GAS,BRI040
EFDC,27110,ACCOMMODATION,ELECTRICITY,1120,26-Jul-17,111259,63.6,BRITISH GAS,BRI040
EFDC,27110,ACCOMMODATION,ELECTRICITY,1120,26-Jul-17,111259,194.69,BRITISH GAS,BRI040
EFDC,23140,ACCOMMODATION,ELECTRICITY,1120,26-Jul-17,111259,-362.52,BRITISH GAS,BRI040
EFDC,YB110,SUPERVISION/MANAGEMENT SPECIAL,ELECTRICITY,1120,26-Jul-17,111259,12.33,BRITISH GAS,BRI040
EFDC,YB110,SUPERVISION/MANAGEMENT SPECIAL,ELECTRICITY,1120,26-Jul-17,111259,-277.3,BRITISH GAS,BRI040
EFDC,YB110,SUPERVISION/MANAGEMENT SPECIAL,ELECTRICITY,1120,26-Jul-17,111259,13.57,BRITISH GAS,BRI040
EFDC,YB110,SUPERVISION/MANAGEMENT SPECIAL,ELECTRICITY,1120,26-Jul-17,111259,85.12,BRITISH GAS,BRI040
EFDC,YB110,SUPERVISION/MANAGEMENT SPECIAL,ELECTRICITY,1120,26-Jul-17,111259,13.05,BRITISH GAS,BRI040
EFDC,YB110,SUPERVISION/MANAGEMENT SPECIAL,ELECTRICITY,1120,26-Jul-17,111259,27.9,BRITISH GAS,BRI040
EFDC,YB110,SUPERVISION/MANAGEMENT SPECIAL,ELECTRICITY,1120,26-Jul-17,111259,79.61,BRITISH GAS,BRI040
EFDC,YB110,SUPERVISION/MANAGEMENT SPECIAL,ELECTRICITY,1120,26-Jul-17,111259,14.92,BRITISH GAS,BRI040
EFDC,YB110,SUPERVISION/MANAGEMENT SPECIAL,ELECTRICITY,1120,26-Jul-17,111259,71.1,BRITISH GAS,BRI040
EFDC,YB110,SUPERVISION/MANAGEMENT SPECIAL,ELECTRICITY,1120,26-Jul-17,111259,74.53,BRITISH GAS,BRI040
EFDC,YB110,SUPERVISION/MANAGEMENT SPECIAL,ELECTRICITY,1120,26-Jul-17,111259,9.87,BRITISH GAS,BRI040
EFDC,YB110,SUPERVISION/MANAGEMENT SPECIAL,ELECTRICITY,1120,26-Jul-17,111259,9.77,BRITISH GAS,BRI040
EFDC,YB110,SUPERVISION/MANAGEMENT SPECIAL,ELECTRICITY,1120,26-Jul-17,111259,12.05,BRITISH GAS,BRI040
EFDC,YB110,SUPERVISION/MANAGEMENT SPECIAL,ELECTRICITY,1120,26-Jul-17,111259,14.3,BRITISH GAS,BRI040
EFDC,YB110,SUPERVISION/MANAGEMENT SPECIAL,ELECTRICITY,1120,26-Jul-17,111259,19.42,BRITISH GAS,BRI040
EFDC,YB110,SUPERVISION/MANAGEMENT SPECIAL,ELECTRICITY,1120,26-Jul-17,111259,16.56,BRITISH GAS,BRI040
EFDC,YB110,SUPERVISION/MANAGEMENT SPECIAL,ELECTRICITY,1120,26-Jul-17,111259,16.21,BRITISH GAS,BRI040
EFDC,YB110,SUPERVISION/MANAGEMENT SPECIAL,ELECTRICITY,1120,26-Jul-17,111259,11.51,BRITISH GAS,BRI040
EFDC,YB110,SUPERVISION/MANAGEMENT SPECIAL,ELECTRICITY,1120,26-Jul-17,111259,11.02,BRITISH GAS,BRI040
EFDC,YB110,SUPERVISION/MANAGEMENT SPECIAL,ELECTRICITY,1120,26-Jul-17,111259,14,BRITISH GAS,BRI040
EFDC,YB110,SUPERVISION/MANAGEMENT SPECIAL,ELECTRICITY,1120,26-Jul-17,111259,20.88,BRITISH GAS,BRI040
EFDC,YB110,SUPERVISION/MANAGEMENT SPECIAL,ELECTRICITY,1120,26-Jul-17,111259,14.02,BRITISH GAS,BRI040
EFDC,YB110,SUPERVISION/MANAGEMENT SPECIAL,ELECTRICITY,1120,26-Jul-17,111259,13.37,BRITISH GAS,BRI040
EFDC,YB110,SUPERVISION/MANAGEMENT SPECIAL,ELECTRICITY,1120,26-Jul-17,111259,13.92,BRITISH GAS,BRI040
EFDC,YB110,SUPERVISION/MANAGEMENT SPECIAL,ELECTRICITY,1120,26-Jul-17,111259,11.71,BRITISH GAS,BRI040
EFDC,YB110,SUPERVISION/MANAGEMENT SPECIAL,ELECTRICITY,1120,26-Jul-17,111259,20.93,BRITISH GAS,BRI040
EFDC,YB110,SUPERVISION/MANAGEMENT SPECIAL,ELECTRICITY,1120,26-Jul-17,111259,13.16,BRITISH GAS,BRI040
EFDC,YB110,SUPERVISION/MANAGEMENT SPECIAL,ELECTRICITY,1120,26-Jul-17,111259,12.72,BRITISH GAS,BRI040
EFDC,YB110,SUPERVISION/MANAGEMENT SPECIAL,ELECTRICITY,1120,26-Jul-17,111259,16.1,BRITISH GAS,BRI040
EFDC,YB110,SUPERVISION/MANAGEMENT SPECIAL,ELECTRICITY,1120,26-Jul-17,111259,98.63,BRITISH GAS,BRI040
EFDC,YB110,SUPERVISION/MANAGEMENT SPECIAL,ELECTRICITY,1120,26-Jul-17,111259,16.31,BRITISH GAS,BRI040
EFDC,YB110,SUPERVISION/MANAGEMENT SPECIAL,ELECTRICITY,1120,26-Jul-17,111259,12.97,BRITISH GAS,BRI040
EFDC,YB110,SUPERVISION/MANAGEMENT SPECIAL,ELECTRICITY,1120,26-Jul-17,111259,38.3,BRITISH GAS,BRI040
EFDC,YB110,SUPERVISION/MANAGEMENT SPECIAL,ELECTRICITY,1120,26-Jul-17,111259,16.86,BRITISH GAS,BRI040
EFDC,YB110,SUPERVISION/MANAGEMENT SPECIAL,ELECTRICITY,1120,26-Jul-17,111259,15.48,BRITISH GAS,BRI040
EFDC,YB110,SUPERVISION/MANAGEMENT SPECIAL,ELECTRICITY,1120,26-Jul-17,111259,-42.64,BRITISH GAS,BRI040
EFDC,YB110,SUPERVISION/MANAGEMENT SPECIAL,ELECTRICITY,1120,26-Jul-17,111259,14.18,BRITISH GAS,BRI040
EFDC,YB110,SUPERVISION/MANAGEMENT SPECIAL,ELECTRICITY,1120,26-Jul-17,111259,7.55,BRITISH GAS,BRI040
EFDC,YB110,SUPERVISION/MANAGEMENT SPECIAL,ELECTRICITY,1120,26-Jul-17,111259,10.91,BRITISH GAS,BRI040
EFDC,YB110,SUPERVISION/MANAGEMENT SPECIAL,ELECTRICITY,1120,26-Jul-17,111259,-7.63,BRITISH GAS,BRI040
EFDC,YB110,SUPERVISION/MANAGEMENT SPECIAL,ELECTRICITY,1120,26-Jul-17,111259,7.28,BRITISH GAS,BRI040
EFDC,YB110,SUPERVISION/MANAGEMENT SPECIAL,ELECTRICITY,1120,26-Jul-17,111259,14.23,BRITISH GAS,BRI040
EFDC,YB110,SUPERVISION/MANAGEMENT SPECIAL,ELECTRICITY,1120,26-Jul-17,111259,13.69,BRITISH GAS,BRI040
EFDC,YB110,SUPERVISION/MANAGEMENT SPECIAL,ELECTRICITY,1120,26-Jul-17,111259,7.06,BRITISH GAS,BRI040
EFDC,YB110,SUPERVISION/MANAGEMENT SPECIAL,ELECTRICITY,1120,26-Jul-17,111259,15.94,BRITISH GAS,BRI040
EFDC,YB110,SUPERVISION/MANAGEMENT SPECIAL,ELECTRICITY,1120,26-Jul-17,111259,32.11,BRITISH GAS,BRI040
EFDC,YB110,SUPERVISION/MANAGEMENT SPECIAL,ELECTRICITY,1120,26-Jul-17,111259,13.39,BRITISH GAS,BRI040
EFDC,YB110,SUPERVISION/MANAGEMENT SPECIAL,ELECTRICITY,1120,26-Jul-17,111259,13.68,BRITISH GAS,BRI040
EFDC,YB110,SUPERVISION/MANAGEMENT SPECIAL,ELECTRICITY,1120,26-Jul-17,111259,12.75,BRITISH GAS,BRI040
EFDC,YB110,SUPERVISION/MANAGEMENT SPECIAL,ELECTRICITY,1120,26-Jul-17,111259,14.61,BRITISH GAS,BRI040
EFDC,YB110,SUPERVISION/MANAGEMENT SPECIAL,ELECTRICITY,1120,26-Jul-17,111259,75.91,BRITISH GAS,BRI040
EFDC,YB110,SUPERVISION/MANAGEMENT SPECIAL,ELECTRICITY,1120,26-Jul-17,111259,46.07,BRITISH GAS,BRI040
EFDC,YB110,SUPERVISION/MANAGEMENT SPECIAL,ELECTRICITY,1120,26-Jul-17,111259,-6.67,BRITISH GAS,BRI040
EFDC,YB110,SUPERVISION/MANAGEMENT SPECIAL,ELECTRICITY,1120,26-Jul-17,111259,7.07,BRITISH GAS,BRI040
EFDC,YB110,SUPERVISION/MANAGEMENT SPECIAL,ELECTRICITY,1120,26-Jul-17,111259,18.98,BRITISH GAS,BRI040
EFDC,YB110,SUPERVISION/MANAGEMENT SPECIAL,ELECTRICITY,1120,26-Jul-17,111259,12.05,BRITISH GAS,BRI040
EFDC,YB110,SUPERVISION/MANAGEMENT SPECIAL,ELECTRICITY,1120,26-Jul-17,111259,22.4,BRITISH GAS,BRI040
EFDC,YB110,SUPERVISION/MANAGEMENT SPECIAL,ELECTRICITY,1120,26-Jul-17,111259,15.36,BRITISH GAS,BRI040
EFDC,YB110,SUPERVISION/MANAGEMENT SPECIAL,ELECTRICITY,1120,26-Jul-17,111259,14.19,BRITISH GAS,BRI040
EFDC,YB110,SUPERVISION/MANAGEMENT SPECIAL,ELECTRICITY,1120,26-Jul-17,111259,18.19,BRITISH GAS,BRI040
EFDC,YB110,SUPERVISION/MANAGEMENT SPECIAL,ELECTRICITY,1120,26-Jul-17,111259,6.16,BRITISH GAS,BRI040
EFDC,YB110,SUPERVISION/MANAGEMENT SPECIAL,ELECTRICITY,1120,26-Jul-17,111259,13.26,BRITISH GAS,BRI040
EFDC,YB110,SUPERVISION/MANAGEMENT SPECIAL,ELECTRICITY,1120,26-Jul-17,111259,14.09,BRITISH GAS,BRI040
EFDC,YB110,SUPERVISION/MANAGEMENT SPECIAL,ELECTRICITY,1120,26-Jul-17,111259,14.4,BRITISH GAS,BRI040
EFDC,YB110,SUPERVISION/MANAGEMENT SPECIAL,ELECTRICITY,1120,26-Jul-17,111259,15.86,BRITISH GAS,BRI040
EFDC,YB110,SUPERVISION/MANAGEMENT SPECIAL,ELECTRICITY,1120,26-Jul-17,111259,12.95,BRITISH GAS,BRI040
EFDC,YB110,SUPERVISION/MANAGEMENT SPECIAL,ELECTRICITY,1120,26-Jul-17,111259,11.39,BRITISH GAS,BRI040
EFDC,YB110,SUPERVISION/MANAGEMENT SPECIAL,ELECTRICITY,1120,26-Jul-17,111259,15.51,BRITISH GAS,BRI040
EFDC,YB110,SUPERVISION/MANAGEMENT SPECIAL,ELECTRICITY,1120,26-Jul-17,111259,11.2,BRITISH GAS,BRI040
EFDC,YB110,SUPERVISION/MANAGEMENT SPECIAL,ELECTRICITY,1120,26-Jul-17,111259,15.36,BRITISH GAS,BRI040
EFDC,YB110,SUPERVISION/MANAGEMENT SPECIAL,ELECTRICITY,1120,26-Jul-17,111259,13.05,BRITISH GAS,BRI040
EFDC,YB110,SUPERVISION/MANAGEMENT SPECIAL,ELECTRICITY,1120,26-Jul-17,111259,-205.98,BRITISH GAS,BRI040
EFDC,YB110,SUPERVISION/MANAGEMENT SPECIAL,ELECTRICITY,1120,26-Jul-17,111259,242.48,BRITISH GAS,BRI040
EFDC,YB110,SUPERVISION/MANAGEMENT SPECIAL,ELECTRICITY,1120,26-Jul-17,111259,17.06,BRITISH GAS,BRI040
EFDC,YB110,SUPERVISION/MANAGEMENT SPECIAL,ELECTRICITY,1120,26-Jul-17,111259,11.98,BRITISH GAS,BRI040
EFDC,YB110,SUPERVISION/MANAGEMENT SPECIAL,ELECTRICITY,1120,26-Jul-17,111259,37.56,BRITISH GAS,BRI040
EFDC,YB110,SUPERVISION/MANAGEMENT SPECIAL,ELECTRICITY,1120,26-Jul-17,111259,25.28,BRITISH GAS,BRI040
EFDC,YB110,SUPERVISION/MANAGEMENT SPECIAL,ELECTRICITY,1120,26-Jul-17,111259,12.4,BRITISH GAS,BRI040
EFDC,YB110,SUPERVISION/MANAGEMENT SPECIAL,ELECTRICITY,1120,26-Jul-17,111259,12.33,BRITISH GAS,BRI040
EFDC,YB110,SUPERVISION/MANAGEMENT SPECIAL,ELECTRICITY,1120,26-Jul-17,111259,12.67,BRITISH GAS,BRI040
EFDC,YB110,SUPERVISION/MANAGEMENT SPECIAL,ELECTRICITY,1120,26-Jul-17,111259,14.3,BRITISH GAS,BRI040
EFDC,YB110,SUPERVISION/MANAGEMENT SPECIAL,ELECTRICITY,1120,26-Jul-17,111259,10.93,BRITISH GAS,BRI040
EFDC,YB110,SUPERVISION/MANAGEMENT SPECIAL,ELECTRICITY,1120,26-Jul-17,111259,34.89,BRITISH GAS,BRI040
EFDC,YB110,SUPERVISION/MANAGEMENT SPECIAL,ELECTRICITY,1120,26-Jul-17,111259,13.86,BRITISH GAS,BRI040
EFDC,YB110,SUPERVISION/MANAGEMENT SPECIAL,ELECTRICITY,1120,26-Jul-17,111259,13.29,BRITISH GAS,BRI040
EFDC,YB110,SUPERVISION/MANAGEMENT SPECIAL,ELECTRICITY,1120,26-Jul-17,111259,13.76,BRITISH GAS,BRI040
EFDC,YB110,SUPERVISION/MANAGEMENT SPECIAL,ELECTRICITY,1120,26-Jul-17,111259,10.15,BRITISH GAS,BRI040
EFDC,YB110,SUPERVISION/MANAGEMENT SPECIAL,ELECTRICITY,1120,26-Jul-17,111259,12.62,BRITISH GAS,BRI040
EFDC,YB110,SUPERVISION/MANAGEMENT SPECIAL,ELECTRICITY,1120,26-Jul-17,111259,11.89,BRITISH GAS,BRI040
EFDC,YB110,SUPERVISION/MANAGEMENT SPECIAL,ELECTRICITY,1120,26-Jul-17,111259,10.43,BRITISH GAS,BRI040
EFDC,YB110,SUPERVISION/MANAGEMENT SPECIAL,ELECTRICITY,1120,26-Jul-17,111259,12.82,BRITISH GAS,BRI040
EFDC,YB110,SUPERVISION/MANAGEMENT SPECIAL,ELECTRICITY,1120,26-Jul-17,111259,12.82,BRITISH GAS,BRI040
EFDC,YB110,SUPERVISION/MANAGEMENT SPECIAL,ELECTRICITY,1120,26-Jul-17,111259,13.88,BRITISH GAS,BRI040
EFDC,YB110,SUPERVISION/MANAGEMENT SPECIAL,ELECTRICITY,1120,26-Jul-17,111259,16.78,BRITISH GAS,BRI040
EFDC,YB110,SUPERVISION/MANAGEMENT SPECIAL,ELECTRICITY,1120,26-Jul-17,111259,11.15,BRITISH GAS,BRI040
EFDC,YB110,SUPERVISION/MANAGEMENT SPECIAL,ELECTRICITY,1120,26-Jul-17,111259,18.69,BRITISH GAS,BRI040
EFDC,YB110,SUPERVISION/MANAGEMENT SPECIAL,ELECTRICITY,1120,26-Jul-17,111259,13.99,BRITISH GAS,BRI040
EFDC,YB110,SUPERVISION/MANAGEMENT SPECIAL,ELECTRICITY,1120,26-Jul-17,111259,12.33,BRITISH GAS,BRI040
EFDC,YB110,SUPERVISION/MANAGEMENT SPECIAL,ELECTRICITY,1120,26-Jul-17,111259,7.79,BRITISH GAS,BRI040
EFDC,YB110,SUPERVISION/MANAGEMENT SPECIAL,ELECTRICITY,1120,26-Jul-17,111259,14.79,BRITISH GAS,BRI040
EFDC,YB110,SUPERVISION/MANAGEMENT SPECIAL,ELECTRICITY,1120,26-Jul-17,111259,15.13,BRITISH GAS,BRI040
EFDC,YB110,SUPERVISION/MANAGEMENT SPECIAL,ELECTRICITY,1120,26-Jul-17,111259,14.19,BRITISH GAS,BRI040
EFDC,YB110,SUPERVISION/MANAGEMENT SPECIAL,ELECTRICITY,1120,26-Jul-17,111259,13.89,BRITISH GAS,BRI040
EFDC,YB110,SUPERVISION/MANAGEMENT SPECIAL,ELECTRICITY,1120,26-Jul-17,111259,14.08,BRITISH GAS,BRI040
EFDC,YB110,SUPERVISION/MANAGEMENT SPECIAL,ELECTRICITY,1120,26-Jul-17,111259,15.4,BRITISH GAS,BRI040
EFDC,YB110,SUPERVISION/MANAGEMENT SPECIAL,ELECTRICITY,1120,26-Jul-17,111259,21.65,BRITISH GAS,BRI040
EFDC,YB110,SUPERVISION/MANAGEMENT SPECIAL,ELECTRICITY,1120,26-Jul-17,111259,13.78,BRITISH GAS,BRI040
EFDC,YB110,SUPERVISION/MANAGEMENT SPECIAL,ELECTRICITY,1120,26-Jul-17,111259,14.49,BRITISH GAS,BRI040
EFDC,YB110,SUPERVISION/MANAGEMENT SPECIAL,ELECTRICITY,1120,26-Jul-17,111259,11.37,BRITISH GAS,BRI040
EFDC,YB110,SUPERVISION/MANAGEMENT SPECIAL,ELECTRICITY,1120,26-Jul-17,111259,10.62,BRITISH GAS,BRI040
EFDC,YB110,SUPERVISION/MANAGEMENT SPECIAL,ELECTRICITY,1120,26-Jul-17,111259,12.14,BRITISH GAS,BRI040
EFDC,YB110,SUPERVISION/MANAGEMENT SPECIAL,ELECTRICITY,1120,26-Jul-17,111259,18.07,BRITISH GAS,BRI040
EFDC,YB110,SUPERVISION/MANAGEMENT SPECIAL,ELECTRICITY,1120,26-Jul-17,111259,19.07,BRITISH GAS,BRI040
EFDC,YB110,SUPERVISION/MANAGEMENT SPECIAL,ELECTRICITY,1120,26-Jul-17,111259,14.07,BRITISH GAS,BRI040
EFDC,YB110,SUPERVISION/MANAGEMENT SPECIAL,ELECTRICITY,1120,26-Jul-17,111259,11.28,BRITISH GAS,BRI040
EFDC,YB110,SUPERVISION/MANAGEMENT SPECIAL,ELECTRICITY,1120,26-Jul-17,111259,12.57,BRITISH GAS,BRI040
EFDC,YB110,SUPERVISION/MANAGEMENT SPECIAL,ELECTRICITY,1120,26-Jul-17,111259,11.02,BRITISH GAS,BRI040
EFDC,YB110,SUPERVISION/MANAGEMENT SPECIAL,ELECTRICITY,1120,26-Jul-17,111259,-38.64,BRITISH GAS,BRI040
EFDC,YB110,SUPERVISION/MANAGEMENT SPECIAL,ELECTRICITY,1120,26-Jul-17,111259,18.42,BRITISH GAS,BRI040
EFDC,YB110,SUPERVISION/MANAGEMENT SPECIAL,ELECTRICITY,1120,26-Jul-17,111259,14.85,BRITISH GAS,BRI040
EFDC,YB110,SUPERVISION/MANAGEMENT SPECIAL,ELECTRICITY,1120,26-Jul-17,111259,16.31,BRITISH GAS,BRI040
EFDC,YB110,SUPERVISION/MANAGEMENT SPECIAL,ELECTRICITY,1120,26-Jul-17,111259,10.81,BRITISH GAS,BRI040
EFDC,YB110,SUPERVISION/MANAGEMENT SPECIAL,ELECTRICITY,1120,26-Jul-17,111259,14.44,BRITISH GAS,BRI040
EFDC,YB110,SUPERVISION/MANAGEMENT SPECIAL,ELECTRICITY,1120,26-Jul-17,111259,12.04,BRITISH GAS,BRI040
EFDC,YB110,SUPERVISION/MANAGEMENT SPECIAL,ELECTRICITY,1120,26-Jul-17,111259,13.49,BRITISH GAS,BRI040
EFDC,YB110,SUPERVISION/MANAGEMENT SPECIAL,ELECTRICITY,1120,26-Jul-17,111259,24.87,BRITISH GAS,BRI040
EFDC,YB110,SUPERVISION/MANAGEMENT SPECIAL,ELECTRICITY,1120,26-Jul-17,111259,99.96,BRITISH GAS,BRI040
EFDC,YB110,SUPERVISION/MANAGEMENT SPECIAL,ELECTRICITY,1120,26-Jul-17,111259,36.81,BRITISH GAS,BRI040
EFDC,YB110,SUPERVISION/MANAGEMENT SPECIAL,ELECTRICITY,1120,26-Jul-17,111259,38.57,BRITISH GAS,BRI040
EFDC,YB110,SUPERVISION/MANAGEMENT SPECIAL,ELECTRICITY,1120,26-Jul-17,111259,14.76,BRITISH GAS,BRI040
EFDC,YB110,SUPERVISION/MANAGEMENT SPECIAL,ELECTRICITY,1120,26-Jul-17,111259,10.41,BRITISH GAS,BRI040
EFDC,YB110,SUPERVISION/MANAGEMENT SPECIAL,ELECTRICITY,1120,26-Jul-17,111259,11.75,BRITISH GAS,BRI040
EFDC,YB110,SUPERVISION/MANAGEMENT SPECIAL,ELECTRICITY,1120,26-Jul-17,111259,16.17,BRITISH GAS,BRI040
EFDC,YB110,SUPERVISION/MANAGEMENT SPECIAL,ELECTRICITY,1120,26-Jul-17,111259,9.49,BRITISH GAS,BRI040
EFDC,YB110,SUPERVISION/MANAGEMENT SPECIAL,ELECTRICITY,1120,26-Jul-17,111259,12.88,BRITISH GAS,BRI040
EFDC,YB110,SUPERVISION/MANAGEMENT SPECIAL,ELECTRICITY,1120,26-Jul-17,111259,14.44,BRITISH GAS,BRI040
EFDC,YB110,SUPERVISION/MANAGEMENT SPECIAL,ELECTRICITY,1120,26-Jul-17,111259,14.95,BRITISH GAS,BRI040
EFDC,YB110,SUPERVISION/MANAGEMENT SPECIAL,ELECTRICITY,1120,26-Jul-17,111259,51.58,BRITISH GAS,BRI040
EFDC,YB110,SUPERVISION/MANAGEMENT SPECIAL,ELECTRICITY,1120,26-Jul-17,111259,12.63,BRITISH GAS,BRI040
EFDC,YB110,SUPERVISION/MANAGEMENT SPECIAL,ELECTRICITY,1120,26-Jul-17,111259,14.93,BRITISH GAS,BRI040
EFDC,YB110,SUPERVISION/MANAGEMENT SPECIAL,ELECTRICITY,1120,26-Jul-17,111259,11.68,BRITISH GAS,BRI040
EFDC,YB110,SUPERVISION/MANAGEMENT SPECIAL,ELECTRICITY,1120,26-Jul-17,111259,13.13,BRITISH GAS,BRI040
EFDC,YB110,SUPERVISION/MANAGEMENT SPECIAL,ELECTRICITY,1120,26-Jul-17,111259,23.73,BRITISH GAS,BRI040
EFDC,YB110,SUPERVISION/MANAGEMENT SPECIAL,ELECTRICITY,1120,26-Jul-17,111259,32.48,BRITISH GAS,BRI040
EFDC,YB110,SUPERVISION/MANAGEMENT SPECIAL,ELECTRICITY,1120,26-Jul-17,111259,10.21,BRITISH GAS,BRI040
EFDC,YB110,SUPERVISION/MANAGEMENT SPECIAL,ELECTRICITY,1120,26-Jul-17,111259,10.48,BRITISH GAS,BRI040
EFDC,YB110,SUPERVISION/MANAGEMENT SPECIAL,ELECTRICITY,1120,26-Jul-17,111259,14.76,BRITISH GAS,BRI040
EFDC,YB110,SUPERVISION/MANAGEMENT SPECIAL,ELECTRICITY,1120,26-Jul-17,111259,12.25,BRITISH GAS,BRI040
EFDC,YB110,SUPERVISION/MANAGEMENT SPECIAL,ELECTRICITY,1120,26-Jul-17,111259,13.29,BRITISH GAS,BRI040
EFDC,YB110,SUPERVISION/MANAGEMENT SPECIAL,ELECTRICITY,1120,26-Jul-17,111259,14.69,BRITISH GAS,BRI040
EFDC,YB110,SUPERVISION/MANAGEMENT SPECIAL,ELECTRICITY,1120,26-Jul-17,111259,12.01,BRITISH GAS,BRI040
EFDC,YB110,SUPERVISION/MANAGEMENT SPECIAL,ELECTRICITY,1120,26-Jul-17,111259,12.05,BRITISH GAS,BRI040
EFDC,YB110,SUPERVISION/MANAGEMENT SPECIAL,ELECTRICITY,1120,26-Jul-17,111259,12.36,BRITISH GAS,BRI040
EFDC,YB110,SUPERVISION/MANAGEMENT SPECIAL,ELECTRICITY,1120,26-Jul-17,111259,10.7,BRITISH GAS,BRI040
EFDC,YB110,SUPERVISION/MANAGEMENT SPECIAL,ELECTRICITY,1120,26-Jul-17,111259,12.36,BRITISH GAS,BRI040
EFDC,YB110,SUPERVISION/MANAGEMENT SPECIAL,ELECTRICITY,1120,26-Jul-17,111259,13.69,BRITISH GAS,BRI040
EFDC,YB110,SUPERVISION/MANAGEMENT SPECIAL,ELECTRICITY,1120,26-Jul-17,111259,13.45,BRITISH GAS,BRI040
EFDC,YB110,SUPERVISION/MANAGEMENT SPECIAL,ELECTRICITY,1120,26-Jul-17,111259,14.29,BRITISH GAS,BRI040
EFDC,YB110,SUPERVISION/MANAGEMENT SPECIAL,ELECTRICITY,1120,26-Jul-17,111259,14.48,BRITISH GAS,BRI040
EFDC,YB110,SUPERVISION/MANAGEMENT SPECIAL,ELECTRICITY,1120,26-Jul-17,111259,10.33,BRITISH GAS,BRI040
EFDC,YB110,SUPERVISION/MANAGEMENT SPECIAL,ELECTRICITY,1120,26-Jul-17,111259,16.69,BRITISH GAS,BRI040
EFDC,YB110,SUPERVISION/MANAGEMENT SPECIAL,ELECTRICITY,1120,26-Jul-17,111259,11.72,BRITISH GAS,BRI040
EFDC,YB110,SUPERVISION/MANAGEMENT SPECIAL,ELECTRICITY,1120,26-Jul-17,111259,15.36,BRITISH GAS,BRI040
EFDC,YB110,SUPERVISION/MANAGEMENT SPECIAL,ELECTRICITY,1120,26-Jul-17,111259,10.18,BRITISH GAS,BRI040
EFDC,YB110,SUPERVISION/MANAGEMENT SPECIAL,ELECTRICITY,1120,26-Jul-17,111259,11.97,BRITISH GAS,BRI040
EFDC,YB110,SUPERVISION/MANAGEMENT SPECIAL,ELECTRICITY,1120,26-Jul-17,111259,12.81,BRITISH GAS,BRI040
EFDC,YB110,SUPERVISION/MANAGEMENT SPECIAL,ELECTRICITY,1120,26-Jul-17,111259,38.4,BRITISH GAS,BRI040
EFDC,YB110,SUPERVISION/MANAGEMENT SPECIAL,ELECTRICITY,1120,26-Jul-17,111259,12.64,BRITISH GAS,BRI040
EFDC,YB110,SUPERVISION/MANAGEMENT SPECIAL,ELECTRICITY,1120,26-Jul-17,111259,94.51,BRITISH GAS,BRI040
EFDC,YB110,SUPERVISION/MANAGEMENT SPECIAL,ELECTRICITY,1120,26-Jul-17,111259,22.54,BRITISH GAS,BRI040
EFDC,YB110,SUPERVISION/MANAGEMENT SPECIAL,ELECTRICITY,1120,26-Jul-17,111259,15.01,BRITISH GAS,BRI040
EFDC,YB110,SUPERVISION/MANAGEMENT SPECIAL,ELECTRICITY,1120,26-Jul-17,111259,12.56,BRITISH GAS,BRI040
EFDC,YB110,SUPERVISION/MANAGEMENT SPECIAL,ELECTRICITY,1120,26-Jul-17,111259,67.39,BRITISH GAS,BRI040
EFDC,YB110,SUPERVISION/MANAGEMENT SPECIAL,ELECTRICITY,1120,26-Jul-17,111259,10.05,BRITISH GAS,BRI040
EFDC,YB110,SUPERVISION/MANAGEMENT SPECIAL,ELECTRICITY,1120,26-Jul-17,111259,24.49,BRITISH GAS,BRI040
EFDC,YB110,SUPERVISION/MANAGEMENT SPECIAL,ELECTRICITY,1120,26-Jul-17,111259,15.51,BRITISH GAS,BRI040
EFDC,YB110,SUPERVISION/MANAGEMENT SPECIAL,ELECTRICITY,1120,26-Jul-17,111259,12.86,BRITISH GAS,BRI040
EFDC,YB110,SUPERVISION/MANAGEMENT SPECIAL,ELECTRICITY,1120,26-Jul-17,111259,21.39,BRITISH GAS,BRI040
EFDC,YB110,SUPERVISION/MANAGEMENT SPECIAL,ELECTRICITY,1120,26-Jul-17,111259,6,BRITISH GAS,BRI040
EFDC,YB110,SUPERVISION/MANAGEMENT SPECIAL,ELECTRICITY,1120,26-Jul-17,111259,17.87,BRITISH GAS,BRI040
EFDC,YB110,SUPERVISION/MANAGEMENT SPECIAL,ELECTRICITY,1120,26-Jul-17,111259,51.52,BRITISH GAS,BRI040
EFDC,YB110,SUPERVISION/MANAGEMENT SPECIAL,ELECTRICITY,1120,26-Jul-17,111259,12.28,BRITISH GAS,BRI040
EFDC,YB110,SUPERVISION/MANAGEMENT SPECIAL,ELECTRICITY,1120,26-Jul-17,111259,10.88,BRITISH GAS,BRI040
EFDC,YB110,SUPERVISION/MANAGEMENT SPECIAL,ELECTRICITY,1120,26-Jul-17,111259,10.98,BRITISH GAS,BRI040
EFDC,YB110,SUPERVISION/MANAGEMENT SPECIAL,ELECTRICITY,1120,26-Jul-17,111259,13.29,BRITISH GAS,BRI040
EFDC,YB110,SUPERVISION/MANAGEMENT SPECIAL,ELECTRICITY,1120,26-Jul-17,111259,13.08,BRITISH GAS,BRI040
EFDC,YB110,SUPERVISION/MANAGEMENT SPECIAL,ELECTRICITY,1120,26-Jul-17,111259,11.54,BRITISH GAS,BRI040
EFDC,YB110,SUPERVISION/MANAGEMENT SPECIAL,ELECTRICITY,1120,26-Jul-17,111259,12.74,BRITISH GAS,BRI040
EFDC,YB110,SUPERVISION/MANAGEMENT SPECIAL,ELECTRICITY,1120,26-Jul-17,111259,11.01,BRITISH GAS,BRI040
EFDC,YB110,SUPERVISION/MANAGEMENT SPECIAL,ELECTRICITY,1120,26-Jul-17,111259,16.39,BRITISH GAS,BRI040
EFDC,YB110,SUPERVISION/MANAGEMENT SPECIAL,ELECTRICITY,1120,26-Jul-17,111259,11.07,BRITISH GAS,BRI040
EFDC,YB110,SUPERVISION/MANAGEMENT SPECIAL,ELECTRICITY,1120,26-Jul-17,111259,10.2,BRITISH GAS,BRI040
EFDC,YB110,SUPERVISION/MANAGEMENT SPECIAL,ELECTRICITY,1120,26-Jul-17,111259,11.22,BRITISH GAS,BRI040
EFDC,YB110,SUPERVISION/MANAGEMENT SPECIAL,ELECTRICITY,1120,26-Jul-17,111259,12.96,BRITISH GAS,BRI040
EFDC,YB110,SUPERVISION/MANAGEMENT SPECIAL,ELECTRICITY,1120,26-Jul-17,111259,15.91,BRITISH GAS,BRI040
EFDC,YB110,SUPERVISION/MANAGEMENT SPECIAL,ELECTRICITY,1120,26-Jul-17,111259,20.58,BRITISH GAS,BRI040
EFDC,YB110,SUPERVISION/MANAGEMENT SPECIAL,ELECTRICITY,1120,26-Jul-17,111259,11.01,BRITISH GAS,BRI040
EFDC,YB110,SUPERVISION/MANAGEMENT SPECIAL,ELECTRICITY,1120,26-Jul-17,111259,9.89,BRITISH GAS,BRI040
EFDC,YB110,SUPERVISION/MANAGEMENT SPECIAL,ELECTRICITY,1120,26-Jul-17,111259,11.47,BRITISH GAS,BRI040
EFDC,YB110,SUPERVISION/MANAGEMENT SPECIAL,ELECTRICITY,1120,26-Jul-17,111259,13.96,BRITISH GAS,BRI040
EFDC,YB110,SUPERVISION/MANAGEMENT SPECIAL,ELECTRICITY,1120,26-Jul-17,111259,14.05,BRITISH GAS,BRI040
EFDC,YB110,SUPERVISION/MANAGEMENT SPECIAL,ELECTRICITY,1120,26-Jul-17,111259,11.73,BRITISH GAS,BRI040
EFDC,YB110,SUPERVISION/MANAGEMENT SPECIAL,ELECTRICITY,1120,26-Jul-17,111259,11.69,BRITISH GAS,BRI040
EFDC,YB110,SUPERVISION/MANAGEMENT SPECIAL,ELECTRICITY,1120,26-Jul-17,111259,13.87,BRITISH GAS,BRI040
EFDC,YB110,SUPERVISION/MANAGEMENT SPECIAL,ELECTRICITY,1120,26-Jul-17,111259,195.76,BRITISH GAS,BRI040
EFDC,YB110,SUPERVISION/MANAGEMENT SPECIAL,ELECTRICITY,1120,26-Jul-17,111259,15.46,BRITISH GAS,BRI040
EFDC,YB110,SUPERVISION/MANAGEMENT SPECIAL,ELECTRICITY,1120,26-Jul-17,111259,17.3,BRITISH GAS,BRI040
EFDC,YB110,SUPERVISION/MANAGEMENT SPECIAL,ELECTRICITY,1120,26-Jul-17,111259,12.89,BRITISH GAS,BRI040
EFDC,YB110,SUPERVISION/MANAGEMENT SPECIAL,ELECTRICITY,1120,26-Jul-17,111259,8.76,BRITISH GAS,BRI040
EFDC,32200,OTHER SUPPORT SERVICES (HR),EQUIPMENT - HIRED,3020,26-Jul-17,110742,1865.98,CANON (UK) LTD,CAN004
EFDC,34110,COMMUNITIES SUPPORT SERVICES,FURNITURE - NEW,3040,26-Jul-17,111235,587.98,CCS MEDIA LTD,CCS002
EFDC,35013,ENVIRONMENTAL OTHER,EQUIPMENT - NEW,3010,26-Jul-17,111357,587.98,CCS MEDIA LTD,CCS002
EFDC,EH160,OTHER ACTIVITIES,CLEANING,1630,26-Jul-17,111885,840,CORDELL SERVICES,COR002
EFDC,CH110,"MUSEUM, HERITAGE & CULTURE",CRB POLICE CHECK COSTS,0381,26-Jul-17,110741,308,DISCLOSURE & BARRING SERVICE,CRB002
EFDC,36200,OTHER ACTIVITIES,CRB POLICE CHECK COSTS,0381,26-Jul-17,110741,132,DISCLOSURE & BARRING SERVICE,CRB002
EFDC,EH150,REGULATORY SERVICES,CRB POLICE CHECK COSTS,0381,26-Jul-17,110741,220,DISCLOSURE & BARRING SERVICE,CRB002
EFDC,EI131,FORWARD PLANNING & ECONOMIC,CRB POLICE CHECK COSTS,0381,26-Jul-17,110741,44,DISCLOSURE & BARRING SERVICE,CRB002
EFDC,RS400,"COMMUNITY, HEALTH & WELLBEING",CRB POLICE CHECK COSTS,0381,26-Jul-17,110741,44,DISCLOSURE & BARRING SERVICE,CRB002
EFDC,EL100,ELECTIONS,OTHER MISCELLANEOUS EXPENSES,3850,26-Jul-17,111899,6000,DISTRICT RETURNING OFFICERS ACCOUNT,DIS001
EFDC,YB620,SUPERVISION/MANAGEMENT SPECIAL,EQUIPMENT - NEW,3010,26-Jul-17,110743,531,DULUX DECORATOR CENTRES,DUL001
EFDC,35300,ENVIRONMENTAL OTHER,VEHICLE HIRE,2620,26-Jul-17,110647,2200,ERNEST DOE & SONS LTD,ERN001
EFDC,35300,ENVIRONMENTAL OTHER,VEHICLE HIRE,2620,26-Jul-17,110662,2135.07,ERNEST DOE & SONS LTD,ERN001
EFDC,26200,OTHER SUPPORT SERVICES (HR),FIXED PLANT MAINTENANCE,1020,26-Jul-17,111886,672.52,ESSEX LIFT SERVICES LTD,ESS032
EFDC,CAPCM,COMMUNITIES CAPITAL,WORKS,A040,26-Jul-17,111911,31085.84,EXTERIOR PLAS,EXT001
EFDC,78001,OTHER ACTIVITIES,MATERIALS,3080,26-Jul-17,110295,606.3,FAYERS PLUMBING & BUILDING SUPPLIES,FAY001
EFDC,78001,OTHER ACTIVITIES,MATERIALS,3080,26-Jul-17,110293,672.21,FAYERS PLUMBING & BUILDING SUPPLIES,FAY001
EFDC,BAL01,EFDC BALANCE SHEET,ON STREET CAR PARKING,Z910,26-Jul-17,111437,-4103.06,FORTISMERE ASSOCIATES LTD,FOR016
EFDC,PP111,FORWARD PLANNING & ECONOMIC,PROFESSIONAL FEES,3420,26-Jul-17,110425,7320,FORTISMERE ASSOCIATES LTD,FOR016
EFDC,PP111,FORWARD PLANNING & ECONOMIC,PROFESSIONAL FEES,3420,26-Jul-17,110426,13998,FORTISMERE ASSOCIATES LTD,FOR016
EFDC,PP111,FORWARD PLANNING & ECONOMIC,PROFESSIONAL FEES,3420,26-Jul-17,111437,10400,FORTISMERE ASSOCIATES LTD,FOR016
EFDC,78001,OTHER ACTIVITIES,MATERIALS,3080,26-Jul-17,110375,928.2,GBN SERVICES LTD,GBN002
EFDC,78001,OTHER ACTIVITIES,MATERIALS,3080,26-Jul-17,110659,725.4,GBN SERVICES LTD,GBN002
EFDC,CAPCM,COMMUNITIES CAPITAL,WORKS,A040,26-Jul-17,110463,1105,RICHARD F GILL & ASSOCIATES,GIL005
EFDC,HI125,HIGHWAYS,OTHER MAINTENANCE,1050,26-Jul-17,110332,564,GLASDON U K LTD,GLA002
EFDC,32220,OTHER SUPPORT SERVICES (HR),AGENCY STAFF,0120,26-Jul-17,111364,1303.55,HAYS SPECIALIST RECRUITMENT LTD,HAY011
EFDC,32220,OTHER SUPPORT SERVICES (HR),AGENCY STAFF,0120,26-Jul-17,110689,506.1,HAYS SPECIALIST RECRUITMENT LTD,HAY011
EFDC,32220,OTHER SUPPORT SERVICES (HR),AGENCY STAFF,0120,26-Jul-17,110688,1078.92,HAYS SPECIALIST RECRUITMENT LTD,HAY011
EFDC,32220,OTHER SUPPORT SERVICES (HR),AGENCY STAFF,0120,26-Jul-17,110687,1548.08,HAYS SPECIALIST RECRUITMENT LTD,HAY011
EFDC,32220,OTHER SUPPORT SERVICES (HR),AGENCY STAFF,0120,26-Jul-17,110690,1303.55,HAYS SPECIALIST RECRUITMENT LTD,HAY011
EFDC,32180,OTHER SUPPORT SERVICES (HR),AGENCY STAFF,0120,26-Jul-17,111057,809.63,HAYS SPECIALIST RECRUITMENT LTD,HAY011
EFDC,32180,OTHER SUPPORT SERVICES (HR),OTHER TRAVEL EXPENSES,2850,26-Jul-17,111057,24.48,HAYS SPECIALIST RECRUITMENT LTD,HAY011
EFDC,32200,OTHER SUPPORT SERVICES (HR),EQUIPMENT - MAINTENANCE,3030,26-Jul-17,111048,1181.99,INTEC PRINTING SOLUTIONS LTD,INT020
EFDC,RM100,RESPONSIVE & VOID REPAIRS,BUILDING MAINTENANCE,1010,26-Jul-17,111031,950,ABBEY MAINTENANCE LTD,ABB009
EFDC,36650,OTHER ACTIVITIES,AGENCY STAFF,0120,26-Jul-17,110770,896.92,ADECCO UK LTD,ADE002
EFDC,YB620,SUPERVISION/MANAGEMENT SPECIAL,WATER CHARGES,1410,26-Jul-17,111893,534.76,AFFINITY FOR BUSINESS LTD,AFF001
EFDC,UO120,LAND & PROPERTY,CONSULTANTS FEES,3490,26-Jul-17,110756,1863.6,MITIE SECURITY LTD,MIT004
EFDC,EL100,ELECTIONS,BOOKS & PUBLICATIONS,3350,26-Jul-17,110773,798,LEXISNEXIS,LEX003
EFDC,CAPCM,COMMUNITIES CAPITAL,VOIDS WORKS,A045,26-Jul-17,110459,2581.33,MEARS LTD,MEA002
EFDC,RM200,RESPONSIVE & VOID REPAIRS,BUILDING MAINTENANCE,1010,26-Jul-17,110459,2149.88,MEARS LTD,MEA002
EFDC,CAPCM,COMMUNITIES CAPITAL,VOIDS WORKS,A045,26-Jul-17,110459,2745.89,MEARS LTD,MEA002
EFDC,32191,OTHER SUPPORT SERVICES (HR),PROFESSIONAL FEES,3420,26-Jul-17,110801,3033.99,MEARS LTD,MEA002
EFDC,CAPCM,COMMUNITIES CAPITAL,VOIDS WORKS,A045,26-Jul-17,110459,3369.27,MEARS LTD,MEA002
EFDC,78001,OTHER ACTIVITIES,PROFESSIONAL FEES,3420,26-Jul-17,110800,9542,MEARS LTD,MEA002
EFDC,RM400,PLANNED & CYCLICAL MAINTENANCE,BUILDING MAINTENANCE,1010,26-Jul-17,111399,629.81,MULTI ALARM SYSTEMS GB LTD,MUL001
EFDC,DC120,PLANNING REGULATORY SERVICES,PUBLICITY,3360,26-Jul-17,110387,654.5,NEWSQUEST MEDIA GROUP,NEW002
EFDC,36200,OTHER ACTIVITIES,FURNITURE - NEW,3040,26-Jul-17,111276,516.82,PARAGON OFFICE SUPPLIES LTD,PAR002
EFDC,26200,OTHER SUPPORT SERVICES (HR),FIXED PLANT MAINTENANCE,1020,26-Jul-17,111888,885,PERT AIR CONDITIONING LTD,PER001
EFDC,35300,ENVIRONMENTAL OTHER,PROFESSIONAL FEES,3420,26-Jul-17,110349,495,G A & D PERRY BUILDING CONTRACTORS,PER005
EFDC,35300,ENVIRONMENTAL OTHER,PROFESSIONAL FEES,3420,26-Jul-17,110349,35,G A & D PERRY BUILDING CONTRACTORS,PER005
EFDC,YB400,SUPERVISION/MANAGEMENT SPECIAL,GROUNDS MAINTENANCE,1040,26-Jul-17,110352,240,G A & D PERRY BUILDING CONTRACTORS,PER005
EFDC,YB400,SUPERVISION/MANAGEMENT SPECIAL,GROUNDS MAINTENANCE,1040,26-Jul-17,110352,335,G A & D PERRY BUILDING CONTRACTORS,PER005
EFDC,35013,ENVIRONMENTAL OTHER,AGENCY STAFF,0120,26-Jul-17,111401,901.74,REED SPECIALIST RECRUITMENT LTD,REE002
EFDC,35300,ENVIRONMENTAL OTHER,FUEL,2330,26-Jul-17,110775,3066.46,SHELL U.K. OIL PRODUCTS LIMITED,SHE007
EFDC,35300,ENVIRONMENTAL OTHER,FUEL,2330,26-Jul-17,109902,3703.44,SHELL U.K. OIL PRODUCTS LIMITED,SHE007
EFDC,RS301,NORTH WEALD CENTRE,FIXED PLANT MAINTENANCE,1020,26-Jul-17,111180,1200,C.Q SURFACING,SUR008
EFDC,RS301,NORTH WEALD CENTRE,FIXED PLANT MAINTENANCE,1020,26-Jul-17,111180,3920,C.Q SURFACING,SUR008
EFDC,YB400,SUPERVISION/MANAGEMENT SPECIAL,TREE  MAINTENANCE,1070,26-Jul-17,111278,845,TIM MOYA TREE SERVICES LTD,TIM004
EFDC,YA100,SUPERVISION/MANAGEMENT GENERAL,CONSULTANTS FEES,3490,26-Jul-17,110281,6525,VALUATION OFFICE AGENCY,VAL002
EFDC,EH112,LAND DRAINAGE/SEWERAGE,OTHER MAINTENANCE,1050,26-Jul-17,111374,2281.18,VEOLIA ES (UK) LTD,VER004
EFDC,YA100,SUPERVISION/MANAGEMENT GENERAL,PROFESSIONAL FEES,3420,26-Jul-17,111214,2843.75,VINE HR LTD,VIN003
EFDC,26200,OTHER SUPPORT SERVICES (HR),FIXED PLANT MAINTENANCE,1020,26-Jul-17,111876,688.83,ALLIED MECHANICAL SERVICES LTD,ALL002
EFDC,26200,OTHER SUPPORT SERVICES (HR),FIXED PLANT MAINTENANCE,1020,26-Jul-17,110405,591.28,ALLIED MECHANICAL SERVICES LTD,ALL002
EFDC,CAPCM,COMMUNITIES CAPITAL,WORKS,A040,26-Jul-17,111914,4234.36,GRACELANDS COMPLETE MAINTENANCE SERVICES LTD,GRA007
EFDC,CAPCM,COMMUNITIES CAPITAL,WORKS,A040,26-Jul-17,111829,603.92,GRACELANDS COMPLETE MAINTENANCE SERVICES LTD,GRA007
EFDC,CAPCM,COMMUNITIES CAPITAL,WORKS,A040,26-Jul-17,111279,6979.3,GRACELANDS COMPLETE MAINTENANCE SERVICES LTD,GRA007
EFDC,RM200,RESPONSIVE & VOID REPAIRS,BUILDING MAINTENANCE,1010,26-Jul-17,110657,619.63,GRACELANDS COMPLETE MAINTENANCE SERVICES LTD,GRA007
EFDC,RM200,RESPONSIVE & VOID REPAIRS,BUILDING MAINTENANCE,1010,26-Jul-17,111227,567.15,GRACELANDS COMPLETE MAINTENANCE SERVICES LTD,GRA007
EFDC,CAPCM,COMMUNITIES CAPITAL,WORKS,A040,26-Jul-17,111903,59793.82,GRACELANDS COMPLETE MAINTENANCE SERVICES LTD,GRA007
EFDC,CAPCM,COMMUNITIES CAPITAL,WORKS,A040,26-Jul-17,111902,18129.75,GRACELANDS COMPLETE MAINTENANCE SERVICES LTD,GRA007
EFDC,CAPCM,COMMUNITIES CAPITAL,WORKS,A040,26-Jul-17,111903,2400,GRACELANDS COMPLETE MAINTENANCE SERVICES LTD,GRA007
EFDC,CAPCM,COMMUNITIES CAPITAL,WORKS,A040,26-Jul-17,111903,2391.04,GRACELANDS COMPLETE MAINTENANCE SERVICES LTD,GRA007
EFDC,RM400,PLANNED & CYCLICAL MAINTENANCE,BUILDING MAINTENANCE,1010,26-Jul-17,109740,722.25,OMEGA RED GROUP LTD,OME001
EFDC,RM400,PLANNED & CYCLICAL MAINTENANCE,BUILDING MAINTENANCE,1010,26-Jul-17,111890,1069.65,PURDY CONTRACTS LTD,PUR002
EFDC,RM400,PLANNED & CYCLICAL MAINTENANCE,BUILDING MAINTENANCE,1010,26-Jul-17,111890,1078.17,PURDY CONTRACTS LTD,PUR002
EFDC,RM400,PLANNED & CYCLICAL MAINTENANCE,BUILDING MAINTENANCE,1010,26-Jul-17,111889,1259,PURDY CONTRACTS LTD,PUR002
EFDC,RM400,PLANNED & CYCLICAL MAINTENANCE,BUILDING MAINTENANCE,1010,26-Jul-17,111891,3622.5,PURDY CONTRACTS LTD,PUR002
EFDC,RM400,PLANNED & CYCLICAL MAINTENANCE,BUILDING MAINTENANCE,1010,26-Jul-17,111890,664.88,PURDY CONTRACTS LTD,PUR002
EFDC,CAPCM,COMMUNITIES CAPITAL,WORKS,A040,26-Jul-17,110998,99.21,M & J SERVICES LTD,SER009
EFDC,78001,OTHER ACTIVITIES,MATERIALS,3080,26-Jul-17,110998,2987.58,M & J SERVICES LTD,SER009
EFDC,35300,ENVIRONMENTAL OTHER,AGENCY STAFF,0120,26-Jul-17,110834,1334.66,BERRY RECRUITMENT LTD,BER001
EFDC,35300,ENVIRONMENTAL OTHER,AGENCY STAFF,0120,26-Jul-17,111358,1508.22,BERRY RECRUITMENT LTD,BER001
EFDC,35300,ENVIRONMENTAL OTHER,AGENCY STAFF,0120,26-Jul-17,110457,2549.56,BERRY RECRUITMENT LTD,BER001
EFDC,78001,OTHER ACTIVITIES,MATERIALS,3080,26-Jul-17,110370,557.1,CRANBROOK ELECTRICS,CRA001
EFDC,33080,OTHER ACTIVITIES,ANNUAL SUPPORT /  LICENSES,3872,26-Jul-17,110863,77250,ESRI (UK) LTD,ESR001
EFDC,CY100,SAFER COMMUNITIES,CONTRIBUTIONS,3740,26-Jul-17,111757,1170,ANGIE PEARSON,PEA001
EFDC,35300,ENVIRONMENTAL OTHER,AGENCY STAFF,0120,26-Jul-17,110746,533.4,SEWELL STAFFING LTD,SEW001
EFDC,RM300,PLANNED & CYCLICAL MAINTENANCE,BUILDING MAINTENANCE,1010,26-Jul-17,111040,9985.6,DDS (INTERNATIONAL) LTD,DDS001
EFDC,SC100,WASTE MANAGEMENT,HIGHWAYS CONTRACTORS,4310,26-Jul-17,111429,11075.33,EASTERN WASTE DISPOSAL LTD,EAS002
EFDC,CAPNB,NEIGHBOURHOODS CAPITAL,LEGAL FEES,F140,26-Jul-17,111454,6,SHARPE PRITCHARD LLP,SHA004
EFDC,CAPNB,NEIGHBOURHOODS CAPITAL,LEGAL FEES,F140,26-Jul-17,111454,1400.85,SHARPE PRITCHARD LLP,SHA004
EFDC,34110,COMMUNITIES SUPPORT SERVICES,PRINTING - EXTERNAL,3390,26-Jul-17,111359,3064,MFP,MFP001
EFDC,ED100,FORWARD PLANNING & ECONOMIC,OTHER MISCELLANEOUS EXPENSES,3850,26-Jul-17,111901,2216.3,EPPING TOWN CENTRE PARTNERSHIP,EPP012
EFDC,25300,INTERNAL INSURANCE FUND,OTHER MISCELLANEOUS EXPENSES,3850,26-Jul-17,111363,6647.2,MUNICIPAL MUTUAL INSURANCE LTD,MUN001
EFDC,DC120,PLANNING REGULATORY SERVICES,PROFESSIONAL FEES,3420,26-Jul-17,110722,4250,KIFT CONSULTING LTD,KIF001
EFDC,CAPCM,COMMUNITIES CAPITAL,WORKS,A040,26-Jul-17,111910,2416.98,ARAN SERVICES LTD,ARA001
EFDC,CAPCM,COMMUNITIES CAPITAL,WORKS,A040,26-Jul-17,109314,850,WOODS BUILDING SERVICES LTD,WOO001
EFDC,CAPCM,COMMUNITIES CAPITAL,VOIDS WORKS,A045,26-Jul-17,110385,842,WOODS BUILDING SERVICES LTD,WOO001
EFDC,23110,ACCOMMODATION,SECURITY,1650,26-Jul-17,111264,600,T.S.S. (TOTAL SECURITY SERVICES) LTD,TSS001
EFDC,27050,ACCOMMODATION,SECURITY,1650,26-Jul-17,111263,4597.15,T.S.S. (TOTAL SECURITY SERVICES) LTD,TSS001
EFDC,23140,ACCOMMODATION,REFUSE REMOVAL,1640,26-Jul-17,111895,42.72,BIFFA MUNICIPAL LTD,BIF001
EFDC,37100,PLANNING OTHER,REFUSE REMOVAL,1640,26-Jul-17,111895,25.23,BIFFA MUNICIPAL LTD,BIF001
EFDC,27150,"COMMUNITY, HEALTH & WELLBEING",REFUSE REMOVAL,1640,26-Jul-17,111895,21.36,BIFFA MUNICIPAL LTD,BIF001
EFDC,WC100,WASTE MANAGEMENT,EQUIPMENT - MAINTENANCE,3030,26-Jul-17,111895,19,BIFFA MUNICIPAL LTD,BIF001
EFDC,WC100,WASTE MANAGEMENT,EQUIPMENT - NEW,3010,26-Jul-17,111895,4284.03,BIFFA MUNICIPAL LTD,BIF001
EFDC,YB400,SUPERVISION/MANAGEMENT SPECIAL,EQUIPMENT - NEW,3010,26-Jul-17,111895,33.23,BIFFA MUNICIPAL LTD,BIF001
EFDC,YB400,SUPERVISION/MANAGEMENT SPECIAL,REFUSE REMOVAL,1640,26-Jul-17,111895,1958.06,BIFFA MUNICIPAL LTD,BIF001
EFDC,YB500,SUPERVISION/MANAGEMENT SPECIAL,REFUSE REMOVAL,1640,26-Jul-17,111895,21.36,BIFFA MUNICIPAL LTD,BIF001
EFDC,YB620,SUPERVISION/MANAGEMENT SPECIAL,REFUSE REMOVAL,1640,26-Jul-17,111895,21.36,BIFFA MUNICIPAL LTD,BIF001
EFDC,27050,ACCOMMODATION,REFUSE REMOVAL,1640,26-Jul-17,111895,854.4,BIFFA MUNICIPAL LTD,BIF001
EFDC,27110,ACCOMMODATION,REFUSE REMOVAL,1640,26-Jul-17,111895,21.36,BIFFA MUNICIPAL LTD,BIF001
EFDC,23110,ACCOMMODATION,REFUSE REMOVAL,1640,26-Jul-17,111895,10.68,BIFFA MUNICIPAL LTD,BIF001
EFDC,OS100,PARKS & GROUNDS,GROUNDS MAINTENANCE,1040,26-Jul-17,111895,109.13,BIFFA MUNICIPAL LTD,BIF001
EFDC,RS301,NORTH WEALD CENTRE,RENTS,9410,26-Jul-17,111895,-600,BIFFA MUNICIPAL LTD,BIF001
EFDC,WC100,WASTE MANAGEMENT,CLEANSING CONTRACTORS,4320,26-Jul-17,111895,19,BIFFA MUNICIPAL LTD,BIF001
EFDC,WC100,WASTE MANAGEMENT,CLEANSING CONTRACTORS,4320,26-Jul-17,111895,5921.34,BIFFA MUNICIPAL LTD,BIF001
EFDC,SC100,WASTE MANAGEMENT,CLEANSING CONTRACTORS,4320,26-Jul-17,111895,309.41,BIFFA MUNICIPAL LTD,BIF001
EFDC,PS100,CAR PARKING,CLEANSING CONTRACTORS,4320,26-Jul-17,111895,-284.17,BIFFA MUNICIPAL LTD,BIF001
EFDC,26200,OTHER SUPPORT SERVICES (HR),BUILDING MAINTENANCE,1010,26-Jul-17,111895,24.5,BIFFA MUNICIPAL LTD,BIF001
EFDC,YB400,SUPERVISION/MANAGEMENT SPECIAL,GROUNDS MAINTENANCE,1040,26-Jul-17,111895,118.42,BIFFA MUNICIPAL LTD,BIF001
EFDC,EL100,ELECTIONS,OTHER MISCELLANEOUS EXPENSES,3850,26-Jul-17,111895,50.45,BIFFA MUNICIPAL LTD,BIF001
EFDC,WC300,WASTE MANAGEMENT,CLEANSING CONTRACTORS,4320,26-Jul-17,111895,322,BIFFA MUNICIPAL LTD,BIF001
EFDC,WC200,WASTE MANAGEMENT,CLEANSING CONTRACTORS,4320,26-Jul-17,111895,6339.2,BIFFA MUNICIPAL LTD,BIF001
EFDC,WC200,WASTE MANAGEMENT,CLEANSING CONTRACTORS,4320,26-Jul-17,111895,-17103.44,BIFFA MUNICIPAL LTD,BIF001
EFDC,WC102,WASTE MANAGEMENT,CLEANSING CONTRACTORS,4320,26-Jul-17,111895,1020.12,BIFFA MUNICIPAL LTD,BIF001
EFDC,WC102,WASTE MANAGEMENT,CLEANSING CONTRACTORS,4320,26-Jul-17,111895,19,BIFFA MUNICIPAL LTD,BIF001
EFDC,WC200,WASTE MANAGEMENT,CLEANSING CONTRACTORS,4320,26-Jul-17,111895,-200,BIFFA MUNICIPAL LTD,BIF001
EFDC,PP111,FORWARD PLANNING & ECONOMIC,PROFESSIONAL FEES,3420,26-Jul-17,111354,623,AECOM,AEC002
EFDC,UO120,LAND & PROPERTY,AGENCY STAFF,0120,26-Jul-17,108693,1195.04,CAPSTONE PROPERTY RECRUITMENT LTD,CAP001
EFDC,32220,OTHER SUPPORT SERVICES (HR),AGENCY STAFF,0120,26-Jul-17,111508,4312.7,CAPSTONE PROPERTY RECRUITMENT LTD,CAP001
EFDC,32220,OTHER SUPPORT SERVICES (HR),AGENCY STAFF,0120,26-Jul-17,111509,2033.13,CAPSTONE PROPERTY RECRUITMENT LTD,CAP001
EFDC,UO120,LAND & PROPERTY,AGENCY STAFF,0120,26-Jul-17,111738,1195.04,CAPSTONE PROPERTY RECRUITMENT LTD,CAP001
EFDC,CAPNB,NEIGHBOURHOODS CAPITAL,CONSULTANCY FEES,E200,26-Jul-17,111909,5475,RIDGE AND PARTNERS LLP,RID002
EFDC,CAPRS,RESOURCES CAPITAL,WORKS,B040,26-Jul-17,109949,830,RDM ENVIRONMENTAL SOLUTIONS LLP,RDM001
EFDC,PP111,FORWARD PLANNING & ECONOMIC,PROFESSIONAL FEES,3420,26-Jul-17,111253,45782.25,OVE ARUP & PARTNERS LTD,OVE002
EFDC,GD100,VOLUNTARY SECTOR SUPPORT,GRANTS TO VOLUNTARY ORGS,3710,26-Jul-17,111913,5000,WALTHAM ABBEY YOUTH 2000,WAL015
EFDC,37600,PLANNING OTHER,AGENCY STAFF,0120,26-Jul-17,110476,1312.5,VIVID RESOURCING LTD,VIV002
EFDC,33080,OTHER ACTIVITIES,ANNUAL SUPPORT /  LICENSES,3872,26-Jul-17,111187,2516,CHERWELL SOFTWARE LTD,CHE009
EFDC,PS100,CAR PARKING,PARKING CONTRACTOR,4350,26-Jul-17,111452,5091.24,NSL LIMITED,NSL001
EFDC,PS100,CAR PARKING,PARKING CONTRACTOR,4350,26-Jul-17,110749,14944.44,NSL LIMITED,NSL001
EFDC,PS100,CAR PARKING,PARKING CONTRACTOR,4350,26-Jul-17,110748,15139.06,NSL LIMITED,NSL001
EFDC,PS100,CAR PARKING,PARKING CONTRACTOR,4350,26-Jul-17,110747,14944.44,NSL LIMITED,NSL001
EFDC,CAPNB,NEIGHBOURHOODS CAPITAL,EQUIPMENT ACQUISITION,C330,26-Jul-17,111452,8473.43,NSL LIMITED,NSL001
EFDC,CAPNB,NEIGHBOURHOODS CAPITAL,EQUIPMENT ACQUISITION,C330,26-Jul-17,111452,9700.07,NSL LIMITED,NSL001
EFDC,BAL01,EFDC BALANCE SHEET,NDR REFUNDS,Z623,31-Jul-17,21764,915.24,LLOYDS CHEMIST RETAIL LTD,4568P
EFDC,GD100,VOLUNTARY SECTOR SUPPORT,GRANTS TO VOLUNTARY ORGS,3710,01-Aug-17,25269,1429.53,HANBURY PETANQUE CLUB,4598P
EFDC,BAL01,EFDC BALANCE SHEET,HOUSING RENT REFUNDS,Z613,01-Aug-17,25274,955,MRS M JARVIS,5800P
EFDC,GD100,VOLUNTARY SECTOR SUPPORT,GRANTS TO VOLUNTARY ORGS,3710,01-Aug-17,25270,1115,HASTINGWOOD VILLAGE HALL,6481P
EFDC,32060,OTHER SUPPORT SERVICES (HR),CONSULTANTS FEES,3490,02-Aug-17,111779,1800,MR GILES ATKINSON,ATK004
EFDC,33080,OTHER ACTIVITIES,FIXED NETWORK LINE COSTS,3520,02-Aug-17,112241,2848.5,BRITISH TELECOMMUNICATIONS PLC,BRI002
EFDC,78001,OTHER ACTIVITIES,MATERIALS,3080,02-Aug-17,111351,516.48,T BREWER & CO LTD,BRE009
EFDC,33055,OTHER ACTIVITIES,AGENCY STAFF,0120,02-Aug-17,111799,762.5,EDEN BROWN LTD,EDE001
EFDC,33080,OTHER ACTIVITIES,ANNUAL SUPPORT /  LICENSES,3872,02-Aug-17,110668,3000,DOCUMENT OUTPUT SOLUTIONS UK LIMITED,DOC006
EFDC,26200,OTHER SUPPORT SERVICES (HR),BUILDING MAINTENANCE,1010,02-Aug-17,112239,81.67,ESSEX LIFT SERVICES LTD,ESS032
EFDC,26200,OTHER SUPPORT SERVICES (HR),BUILDING MAINTENANCE,1010,02-Aug-17,112239,81.67,ESSEX LIFT SERVICES LTD,ESS032
EFDC,26200,OTHER SUPPORT SERVICES (HR),BUILDING MAINTENANCE,1010,02-Aug-17,112239,81.67,ESSEX LIFT SERVICES LTD,ESS032
EFDC,26200,OTHER SUPPORT SERVICES (HR),FIXED PLANT MAINTENANCE,1020,02-Aug-17,112239,306.67,ESSEX LIFT SERVICES LTD,ESS032
EFDC,RM400,PLANNED & CYCLICAL MAINTENANCE,BUILDING MAINTENANCE,1010,02-Aug-17,112239,1499.99,ESSEX LIFT SERVICES LTD,ESS032
EFDC,RM300,PLANNED & CYCLICAL MAINTENANCE,BUILDING MAINTENANCE,1010,02-Aug-17,112293,833.95,EXTERIOR PLAS,EXT001
EFDC,78001,OTHER ACTIVITIES,MATERIALS,3080,02-Aug-17,111335,1127,FAYERS PLUMBING & BUILDING SUPPLIES,FAY001
EFDC,CAPCM,COMMUNITIES CAPITAL,WORKS,A040,02-Aug-17,112245,525,FIELDWHITE SERVICES LTD,FIE003
EFDC,CAPCM,COMMUNITIES CAPITAL,WORKS,A040,02-Aug-17,112245,24680.08,FIELDWHITE SERVICES LTD,FIE003
EFDC,CAPCM,COMMUNITIES CAPITAL,WORKS,A040,02-Aug-17,112245,5343,FIELDWHITE SERVICES LTD,FIE003
EFDC,RM300,PLANNED & CYCLICAL MAINTENANCE,BUILDING MAINTENANCE,1010,02-Aug-17,112245,790,FIELDWHITE SERVICES LTD,FIE003
EFDC,RM300,PLANNED & CYCLICAL MAINTENANCE,BUILDING MAINTENANCE,1010,02-Aug-17,112248,607.7,FLOWLINE (BUILDERS) LTD,FLO003
EFDC,78001,OTHER ACTIVITIES,MATERIALS,3080,02-Aug-17,111062,847.6,GBN SERVICES LTD,GBN002
EFDC,YB400,SUPERVISION/MANAGEMENT SPECIAL,TREE  MAINTENANCE,1070,02-Aug-17,111737,2992.49,GRISTWOOD & TOMS LTD,GRI001
EFDC,OS101,PARKS & GROUNDS,TREE  MAINTENANCE,1070,02-Aug-17,111737,482.39,GRISTWOOD & TOMS LTD,GRI001
EFDC,HI122,HIGHWAYS,TREE  MAINTENANCE,1070,02-Aug-17,111737,2235.68,GRISTWOOD & TOMS LTD,GRI001
EFDC,32220,OTHER SUPPORT SERVICES (HR),AGENCY STAFF,0120,02-Aug-17,111188,1544.48,HAYS SPECIALIST RECRUITMENT LTD,HAY011
EFDC,32220,OTHER SUPPORT SERVICES (HR),AGENCY STAFF,0120,02-Aug-17,111193,1306.02,HAYS SPECIALIST RECRUITMENT LTD,HAY011
EFDC,32220,OTHER SUPPORT SERVICES (HR),AGENCY STAFF,0120,02-Aug-17,111361,1211.58,HAYS SPECIALIST RECRUITMENT LTD,HAY011
EFDC,32220,OTHER SUPPORT SERVICES (HR),AGENCY STAFF,0120,02-Aug-17,111189,506.1,HAYS SPECIALIST RECRUITMENT LTD,HAY011
EFDC,RM100,RESPONSIVE & VOID REPAIRS,BUILDING MAINTENANCE,1010,02-Aug-17,111492,590,ABBEY MAINTENANCE LTD,ABB009
EFDC,36650,OTHER ACTIVITIES,AGENCY STAFF,0120,02-Aug-17,111426,910.11,ADECCO UK LTD,ADE002
EFDC,32060,OTHER SUPPORT SERVICES (HR),BOOKS & PUBLICATIONS,3350,02-Aug-17,111830,381.1,LEXISNEXIS,LEX003
EFDC,32060,OTHER SUPPORT SERVICES (HR),BOOKS & PUBLICATIONS,3350,02-Aug-17,111830,365.9,LEXISNEXIS,LEX003
EFDC,RE100,ELECTIONS,OTHER MISCELLANEOUS EXPENSES,3850,02-Aug-17,112254,2366.97,NEOPOST FINANCE LTD,NEO002
EFDC,YB120,SUPERVISION/MANAGEMENT SPECIAL,FUEL,2330,02-Aug-17,111220,275.03,SHELL U.K. OIL PRODUCTS LIMITED,SHE007
EFDC,EH155,ENVIRONMENTAL HEALTH,FUEL,2330,02-Aug-17,110753,74.64,SHELL U.K. OIL PRODUCTS LIMITED,SHE007
EFDC,78001,OTHER ACTIVITIES,FUEL,2330,02-Aug-17,111220,1280.35,SHELL U.K. OIL PRODUCTS LIMITED,SHE007
EFDC,78001,OTHER ACTIVITIES,FUEL,2330,02-Aug-17,110753,1155.05,SHELL U.K. OIL PRODUCTS LIMITED,SHE007
EFDC,RS301,NORTH WEALD CENTRE,FIXED PLANT MAINTENANCE,1020,02-Aug-17,111726,2580,C.Q SURFACING,SUR008
EFDC,RS301,NORTH WEALD CENTRE,FIXED PLANT MAINTENANCE,1020,02-Aug-17,111726,1000,C.Q SURFACING,SUR008
EFDC,78001,OTHER ACTIVITIES,MATERIALS,3080,02-Aug-17,111306,712,VALLEY HILL BUILDERS MERCHANTS,VAL001
EFDC,32115,OTHER SUPPORT SERVICES (HR),CONSULTANTS FEES,3490,02-Aug-17,111325,975,VINE HR LTD,VIN003
EFDC,32030,OTHER SUPPORT SERVICES (HR),TRAINING EXPENSES,0310,02-Aug-17,111324,1692.64,VINE HR LTD,VIN003
EFDC,32030,OTHER SUPPORT SERVICES (HR),TRAINING EXPENSES,0310,02-Aug-17,111871,1196,VINE HR LTD,VIN003
EFDC,32030,OTHER SUPPORT SERVICES (HR),TRAINING EXPENSES,0310,02-Aug-17,111869,850,VINE HR LTD,VIN003
EFDC,42520,GOVERNANCE SUPPORT SERVICES,TRAINING EXPENSES,0310,02-Aug-17,111869,150,VINE HR LTD,VIN003
EFDC,32115,OTHER SUPPORT SERVICES (HR),CONSULTANTS FEES,3490,02-Aug-17,111872,975,VINE HR LTD,VIN003
EFDC,CAPCM,COMMUNITIES CAPITAL,WORKS,A040,02-Aug-17,112263,1559.87,VSN ENTERPRISES LTD,VSN001
EFDC,CAPCM,COMMUNITIES CAPITAL,WORKS,A040,02-Aug-17,112263,1850,VSN ENTERPRISES LTD,VSN001
EFDC,CAPCM,COMMUNITIES CAPITAL,WORKS,A040,02-Aug-17,112265,4030.6,STEVE WOTTON,WOT001
EFDC,CAPCM,COMMUNITIES CAPITAL,WORKS,A040,02-Aug-17,112250,47039.33,GRACELANDS COMPLETE MAINTENANCE SERVICES LTD,GRA007
EFDC,CAPCM,COMMUNITIES CAPITAL,WORKS,A040,02-Aug-17,112251,16901.37,GRACELANDS COMPLETE MAINTENANCE SERVICES LTD,GRA007
EFDC,FD100,LAND DRAINAGE/SEWERAGE,HIGHWAYS CONTRACTORS,4310,02-Aug-17,110856,1862,HUGH PEARL (LAND DRAINAGE) LTD,HUG001
EFDC,YB150,SUPERVISION/MANAGEMENT SPECIAL,GROUNDS MAINTENANCE,1040,02-Aug-17,110454,710.24,HUGH PEARL (LAND DRAINAGE) LTD,HUG001
EFDC,YB150,SUPERVISION/MANAGEMENT SPECIAL,GROUNDS MAINTENANCE,1040,02-Aug-17,110853,4137.34,HUGH PEARL (LAND DRAINAGE) LTD,HUG001
EFDC,FD100,LAND DRAINAGE/SEWERAGE,CLEANSING CONTRACTORS,4320,02-Aug-17,110852,1048.48,HUGH PEARL (LAND DRAINAGE) LTD,HUG001
EFDC,FD100,LAND DRAINAGE/SEWERAGE,HIGHWAYS CONTRACTORS,4310,02-Aug-17,110854,861.48,HUGH PEARL (LAND DRAINAGE) LTD,HUG001
EFDC,CAPCM,COMMUNITIES CAPITAL,WORKS,A040,02-Aug-17,112259,38063.65,PURDY CONTRACTS LTD,PUR002
EFDC,CAPCM,COMMUNITIES CAPITAL,WORKS,A040,02-Aug-17,112258,45387.2,PURDY CONTRACTS LTD,PUR002
EFDC,RM100,RESPONSIVE & VOID REPAIRS,BUILDING MAINTENANCE,1010,02-Aug-17,111833,1266.96,M & J SERVICES LTD,SER009
EFDC,35300,ENVIRONMENTAL OTHER,AGENCY STAFF,0120,02-Aug-17,111818,1011.44,BERRY RECRUITMENT LTD,BER001
EFDC,78001,OTHER ACTIVITIES,MATERIALS,3080,02-Aug-17,111346,557.3,CRANBROOK ELECTRICS,CRA001
EFDC,78001,OTHER ACTIVITIES,MATERIALS,3080,02-Aug-17,111348,1322.5,CRANBROOK ELECTRICS,CRA001
EFDC,33080,OTHER ACTIVITIES,FIXED NETWORK LINE COSTS,3520,02-Aug-17,110776,5061.08,SOLAR COMMUNICATION LIMITED,SOL002
EFDC,35300,ENVIRONMENTAL OTHER,AGENCY STAFF,0120,02-Aug-17,111317,552.45,SEWELL STAFFING LTD,SEW001
EFDC,CH110,"MUSEUM, HERITAGE & CULTURE",REMOVAL EXPENSES,3830,02-Aug-17,112260,324.06,R & D SCHOFIELD LTD,R&D001
EFDC,CH110,"MUSEUM, HERITAGE & CULTURE",REMOVAL EXPENSES,3830,02-Aug-17,112260,4016,R & D SCHOFIELD LTD,R&D001
EFDC,CAPNB,NEIGHBOURHOODS CAPITAL,MANAGEMENT CONSULTANT WYG,L131,02-Aug-17,112117,2400,WYG ENVIRONMENT PLANNING TRANSPORT LTD,WYG001
EFDC,CAPCM,COMMUNITIES CAPITAL,WORKS,A040,02-Aug-17,110682,550,WOODS BUILDING SERVICES LTD,WOO001
EFDC,CAPCM,COMMUNITIES CAPITAL,VOIDS WORKS,A045,02-Aug-17,110737,530,WOODS BUILDING SERVICES LTD,WOO001
EFDC,26200,OTHER SUPPORT SERVICES (HR),BUILDING MAINTENANCE,1010,02-Aug-17,110992,550.88,SMART MERCHANTS LTD,SMA002
EFDC,CH110,"MUSEUM, HERITAGE & CULTURE",RENTS / HIRE OF HALL,1210,02-Aug-17,112173,1100,GRANGEWOOD INVESTMENTS LTD,GRA006
EFDC,35009,ENVIRONMENTAL OTHER,ELECTRICITY,1120,02-Aug-17,111750,12.03,EDF ENERGY,EDF001
EFDC,PS100,CAR PARKING,ELECTRICITY,1120,02-Aug-17,111750,6.43,EDF ENERGY,EDF001
EFDC,27050,ACCOMMODATION,ELECTRICITY,1120,02-Aug-17,111758,6773.33,EDF ENERGY,EDF001
EFDC,YB110,SUPERVISION/MANAGEMENT SPECIAL,ELECTRICITY,1120,02-Aug-17,111750,18.65,EDF ENERGY,EDF001
EFDC,PS100,CAR PARKING,ELECTRICITY,1120,02-Aug-17,111750,-168.02,EDF ENERGY,EDF001
EFDC,PS100,CAR PARKING,ELECTRICITY,1120,02-Aug-17,111750,158.2,EDF ENERGY,EDF001
EFDC,PS100,CAR PARKING,ELECTRICITY,1120,02-Aug-17,111750,79.14,EDF ENERGY,EDF001
EFDC,YB110,SUPERVISION/MANAGEMENT SPECIAL,ELECTRICITY,1120,02-Aug-17,111750,13.08,EDF ENERGY,EDF001
EFDC,35009,ENVIRONMENTAL OTHER,ELECTRICITY,1120,02-Aug-17,111750,11.36,EDF ENERGY,EDF001
EFDC,YB110,SUPERVISION/MANAGEMENT SPECIAL,ELECTRICITY,1120,02-Aug-17,111750,5.93,EDF ENERGY,EDF001
EFDC,YB200,SUPERVISION/MANAGEMENT SPECIAL,ELECTRICITY,1120,02-Aug-17,111750,31.25,EDF ENERGY,EDF001
EFDC,PS100,CAR PARKING,ELECTRICITY,1120,02-Aug-17,111750,9.39,EDF ENERGY,EDF001
EFDC,YB110,SUPERVISION/MANAGEMENT SPECIAL,ELECTRICITY,1120,02-Aug-17,111750,12.4,EDF ENERGY,EDF001
EFDC,YB200,SUPERVISION/MANAGEMENT SPECIAL,ELECTRICITY,1120,02-Aug-17,111750,17.37,EDF ENERGY,EDF001
EFDC,27050,ACCOMMODATION,ELECTRICITY,1120,02-Aug-17,111761,7016.9,EDF ENERGY,EDF001
EFDC,PS100,CAR PARKING,ELECTRICITY,1120,02-Aug-17,111750,230.85,EDF ENERGY,EDF001
EFDC,PS100,CAR PARKING,ELECTRICITY,1120,02-Aug-17,111750,3.26,EDF ENERGY,EDF001
EFDC,PS100,CAR PARKING,ELECTRICITY,1120,02-Aug-17,111750,-7.52,EDF ENERGY,EDF001
EFDC,YB110,SUPERVISION/MANAGEMENT SPECIAL,ELECTRICITY,1120,02-Aug-17,111750,12.26,EDF ENERGY,EDF001
EFDC,YB110,SUPERVISION/MANAGEMENT SPECIAL,ELECTRICITY,1120,02-Aug-17,111750,41.87,EDF ENERGY,EDF001
EFDC,YB200,SUPERVISION/MANAGEMENT SPECIAL,ELECTRICITY,1120,02-Aug-17,111750,8.67,EDF ENERGY,EDF001
EFDC,YB110,SUPERVISION/MANAGEMENT SPECIAL,ELECTRICITY,1120,02-Aug-17,111750,129.79,EDF ENERGY,EDF001
EFDC,YB110,SUPERVISION/MANAGEMENT SPECIAL,ELECTRICITY,1120,02-Aug-17,111750,202.19,EDF ENERGY,EDF001
EFDC,FD100,LAND DRAINAGE/SEWERAGE,ELECTRICITY,1120,02-Aug-17,111750,8.1,EDF ENERGY,EDF001
EFDC,YB500,SUPERVISION/MANAGEMENT SPECIAL,ELECTRICITY,1120,02-Aug-17,111750,29.86,EDF ENERGY,EDF001
EFDC,PS100,CAR PARKING,ELECTRICITY,1120,02-Aug-17,111750,7.27,EDF ENERGY,EDF001
EFDC,YB110,SUPERVISION/MANAGEMENT SPECIAL,ELECTRICITY,1120,02-Aug-17,111750,16.86,EDF ENERGY,EDF001
EFDC,YB110,SUPERVISION/MANAGEMENT SPECIAL,ELECTRICITY,1120,02-Aug-17,111750,14.52,EDF ENERGY,EDF001
EFDC,YB110,SUPERVISION/MANAGEMENT SPECIAL,ELECTRICITY,1120,02-Aug-17,111750,19.19,EDF ENERGY,EDF001
EFDC,FD100,LAND DRAINAGE/SEWERAGE,ELECTRICITY,1120,02-Aug-17,111750,16.14,EDF ENERGY,EDF001
EFDC,PS100,CAR PARKING,ELECTRICITY,1120,02-Aug-17,111750,-387.65,EDF ENERGY,EDF001
EFDC,YB110,SUPERVISION/MANAGEMENT SPECIAL,ELECTRICITY,1120,02-Aug-17,111750,83.82,EDF ENERGY,EDF001
EFDC,PS100,CAR PARKING,ELECTRICITY,1120,02-Aug-17,111750,-2.25,EDF ENERGY,EDF001
EFDC,YB110,SUPERVISION/MANAGEMENT SPECIAL,ELECTRICITY,1120,02-Aug-17,111750,120.68,EDF ENERGY,EDF001
EFDC,PS100,CAR PARKING,ELECTRICITY,1120,02-Aug-17,111750,-143.4,EDF ENERGY,EDF001
EFDC,PS100,CAR PARKING,ELECTRICITY,1120,02-Aug-17,111750,-10.83,EDF ENERGY,EDF001
EFDC,YB110,SUPERVISION/MANAGEMENT SPECIAL,ELECTRICITY,1120,02-Aug-17,111750,65.61,EDF ENERGY,EDF001
EFDC,YB110,SUPERVISION/MANAGEMENT SPECIAL,ELECTRICITY,1120,02-Aug-17,111750,190.14,EDF ENERGY,EDF001
EFDC,YB110,SUPERVISION/MANAGEMENT SPECIAL,ELECTRICITY,1120,02-Aug-17,111750,131.3,EDF ENERGY,EDF001
EFDC,PS100,CAR PARKING,ELECTRICITY,1120,02-Aug-17,111750,2.25,EDF ENERGY,EDF001
EFDC,PS100,CAR PARKING,ELECTRICITY,1120,02-Aug-17,111750,53.55,EDF ENERGY,EDF001
EFDC,PS100,CAR PARKING,ELECTRICITY,1120,02-Aug-17,111750,145.67,EDF ENERGY,EDF001
EFDC,PS100,CAR PARKING,ELECTRICITY,1120,02-Aug-17,111750,11.7,EDF ENERGY,EDF001
EFDC,PS100,CAR PARKING,ELECTRICITY,1120,02-Aug-17,111750,223.05,EDF ENERGY,EDF001
EFDC,PS100,CAR PARKING,ELECTRICITY,1120,02-Aug-17,111750,2.4,EDF ENERGY,EDF001
EFDC,PS100,CAR PARKING,ELECTRICITY,1120,02-Aug-17,111750,45.64,EDF ENERGY,EDF001
EFDC,PS100,CAR PARKING,ELECTRICITY,1120,02-Aug-17,111750,7.64,EDF ENERGY,EDF001
EFDC,PS100,CAR PARKING,ELECTRICITY,1120,02-Aug-17,111750,92.69,EDF ENERGY,EDF001
EFDC,PS100,CAR PARKING,ELECTRICITY,1120,02-Aug-17,111750,62.38,EDF ENERGY,EDF001
EFDC,PS100,CAR PARKING,ELECTRICITY,1120,02-Aug-17,111750,113.07,EDF ENERGY,EDF001
EFDC,PS100,CAR PARKING,ELECTRICITY,1120,02-Aug-17,111750,4.41,EDF ENERGY,EDF001
EFDC,PS100,CAR PARKING,ELECTRICITY,1120,02-Aug-17,111750,84.03,EDF ENERGY,EDF001
EFDC,RS302,NORTH WEALD CENTRE,ELECTRICITY,1120,02-Aug-17,111759,3042.01,EDF ENERGY,EDF001
EFDC,PS100,CAR PARKING,ELECTRICITY,1120,02-Aug-17,111750,7.18,EDF ENERGY,EDF001
EFDC,PS100,CAR PARKING,ELECTRICITY,1120,02-Aug-17,111750,38.08,EDF ENERGY,EDF001
EFDC,PS100,CAR PARKING,ELECTRICITY,1120,02-Aug-17,111750,138.84,EDF ENERGY,EDF001
EFDC,PS100,CAR PARKING,ELECTRICITY,1120,02-Aug-17,111750,5.81,EDF ENERGY,EDF001
EFDC,PS100,CAR PARKING,ELECTRICITY,1120,02-Aug-17,111750,1.51,EDF ENERGY,EDF001
EFDC,PS100,CAR PARKING,ELECTRICITY,1120,02-Aug-17,111750,450.17,EDF ENERGY,EDF001
EFDC,PS100,CAR PARKING,ELECTRICITY,1120,02-Aug-17,111750,16.39,EDF ENERGY,EDF001
EFDC,RS302,NORTH WEALD CENTRE,ELECTRICITY,1120,02-Aug-17,111760,3846.02,EDF ENERGY,EDF001
EFDC,PS100,CAR PARKING,ELECTRICITY,1120,02-Aug-17,111750,457.93,EDF ENERGY,EDF001
EFDC,PS100,CAR PARKING,ELECTRICITY,1120,02-Aug-17,111750,85.46,EDF ENERGY,EDF001
EFDC,PS100,CAR PARKING,ELECTRICITY,1120,02-Aug-17,111750,457.55,EDF ENERGY,EDF001
EFDC,PS100,CAR PARKING,ELECTRICITY,1120,02-Aug-17,111750,85.33,EDF ENERGY,EDF001
EFDC,PS100,CAR PARKING,ELECTRICITY,1120,02-Aug-17,111750,38.16,EDF ENERGY,EDF001
EFDC,PS100,CAR PARKING,ELECTRICITY,1120,02-Aug-17,111750,46.95,EDF ENERGY,EDF001
EFDC,YB500,SUPERVISION/MANAGEMENT SPECIAL,ELECTRICITY,1120,02-Aug-17,111750,21.29,EDF ENERGY,EDF001
EFDC,PS100,CAR PARKING,ELECTRICITY,1120,02-Aug-17,111750,9.93,EDF ENERGY,EDF001
EFDC,PS100,CAR PARKING,ELECTRICITY,1120,02-Aug-17,111750,5.82,EDF ENERGY,EDF001
EFDC,UO120,LAND & PROPERTY,CONSULTANTS FEES,3490,02-Aug-17,112292,6000,CROSBY LAND LTD,CRO003
EFDC,32220,OTHER SUPPORT SERVICES (HR),AGENCY STAFF,0120,02-Aug-17,110811,4189.48,CAPSTONE PROPERTY RECRUITMENT LTD,CAP001
EFDC,RS410,"COMMUNITY, HEALTH & WELLBEING",ACTIVITIES,3372,02-Aug-17,111806,1665,HIGH BEECH RIDING SCHOOL,HIG002
EFDC,23110,ACCOMMODATION,CLEANING,1630,02-Aug-17,111692,62.12,ATLAS CONTRACTORS LTD,ATL001
EFDC,23130,ACCOMMODATION,CLEANING,1630,02-Aug-17,111692,227.84,ATLAS CONTRACTORS LTD,ATL001
EFDC,27060,ACCOMMODATION,CLEANING,1630,02-Aug-17,111692,414.58,ATLAS CONTRACTORS LTD,ATL001
EFDC,23140,ACCOMMODATION,CLEANING,1630,02-Aug-17,111692,450.34,ATLAS CONTRACTORS LTD,ATL001
EFDC,CH110,"MUSEUM, HERITAGE & CULTURE",CLEANING,1630,02-Aug-17,111692,517.79,ATLAS CONTRACTORS LTD,ATL001
EFDC,23110,ACCOMMODATION,CLEANING,1630,02-Aug-17,111692,1327.17,ATLAS CONTRACTORS LTD,ATL001
EFDC,27050,ACCOMMODATION,CLEANING,1630,02-Aug-17,111692,7874.2,ATLAS CONTRACTORS LTD,ATL001
EFDC,CAPNB,NEIGHBOURHOODS CAPITAL,WORKS,L040,02-Aug-17,112264,383115.27,WALKER CONSTRUCTION (UK) LTD,WAL009
EFDC,78001,OTHER ACTIVITIES,MATERIALS,3080,02-Aug-17,111001,577.48,REDEC INDUSTRIAL LTD,RED005
EFDC,CAPCM,COMMUNITIES CAPITAL,WORKS,E040,02-Aug-17,112252,117898.75,LINDEN HOMES EASTERN (2500),LIN002
EFDC,BAL01,EFDC BALANCE SHEET,PLACES FOR PEOPLE LOAN,Z058,02-Aug-17,112257,56000,PLACES FOR PEOPLE LEISURE MANAGEMENT LTD,PLA005
EFDC,CAPCM,COMMUNITIES CAPITAL,WORKS,E040,02-Aug-17,112261,4500.85,STORM BUILDING LTD,STO007
EFDC,YD100,"RENTS, RATES TAXES & INSURANCE",WATER CHARGES,1410,02-Aug-17,112242,1060.27,CASTLE WATER LTD,CAS001
EFDC,PH100,PRIVATE SECTOR HOUSING,GRANTS GENERAL,3720,08-Aug-17,25354,5380,VSN ENTERPRISES,VSN002
EFDC,BAL01,EFDC BALANCE SHEET,HOME ASST GRANT CHARGE ON PROP,Z055,08-Aug-17,25336,5408.4,MACKIE ROOFING LTD,MAC004
EFDC,PH100,PRIVATE SECTOR HOUSING,GRANTS GENERAL,3720,08-Aug-17,25315,4945,ACCESSIBLE SOLUTIONS LIMITED,ACC002
EFDC,BAL01,EFDC BALANCE SHEET,SUNDRY DEBTORS (OTHER),Z208,08-Aug-17,25334,900,MARTA GRIEVE,6549P
EFDC,BAL01,EFDC BALANCE SHEET,SUNDRY DEBTORS (OTHER),Z208,08-Aug-17,25321,600,CARIDON PROPERTY LIMITED,6866P
EFDC,BAL01,EFDC BALANCE SHEET,DEPOSITS - PAID,Z223,08-Aug-17,25321,600,CARIDON PROPERTY LIMITED,6866P
EFDC,BAL01,EFDC BALANCE SHEET,AIMS,Z211,08-Aug-17,25345,687.5,MR PRATHAPAN RAGHAVAN,6151P
EFDC,BAL01,EFDC BALANCE SHEET,HOUSING RENT REFUNDS,Z613,08-Aug-17,25103,956.42,MR P R & MRS D L BATSFORD,3096P
EFDC,33080,OTHER ACTIVITIES,FIXED NETWORK LINE COSTS,3520,09-Aug-17,112558,12143.56,BRITISH TELECOMMUNICATIONS PLC,BRI002
EFDC,33080,OTHER ACTIVITIES,FIXED NETWORK LINE COSTS,3520,09-Aug-17,112557,1118,BRITISH TELECOMMUNICATIONS PLC,BRI002
EFDC,33080,OTHER ACTIVITIES,FIXED NETWORK LINE COSTS,3520,09-Aug-17,112559,2081.5,BRITISH TELECOMMUNICATIONS PLC,BRI002
EFDC,RS403,"COMMUNITY, HEALTH & WELLBEING",MARKETING & EVENTS,3370,09-Aug-17,110864,638,BOWN ENTERPRISES LIMITED,BOW006
EFDC,RM100,RESPONSIVE & VOID REPAIRS,BUILDING MAINTENANCE,1010,09-Aug-17,112106,2428.44,OPENVIEW SECURITY SOLUTIONS LTD,CAR003
EFDC,RM100,RESPONSIVE & VOID REPAIRS,BUILDING MAINTENANCE,1010,09-Aug-17,112105,2428.44,OPENVIEW SECURITY SOLUTIONS LTD,CAR003
EFDC,RM100,RESPONSIVE & VOID REPAIRS,BUILDING MAINTENANCE,1010,09-Aug-17,111703,2428.44,OPENVIEW SECURITY SOLUTIONS LTD,CAR003
EFDC,CAPCM,COMMUNITIES CAPITAL,WORKS,A040,09-Aug-17,111673,6773.65,OPENVIEW SECURITY SOLUTIONS LTD,CAR003
EFDC,RM100,RESPONSIVE & VOID REPAIRS,BUILDING MAINTENANCE,1010,09-Aug-17,111700,2428.44,OPENVIEW SECURITY SOLUTIONS LTD,CAR003
EFDC,CAPNB,NEIGHBOURHOODS CAPITAL,WORKS - OTHER,E042,09-Aug-17,111332,4864,CLEAR CHANNEL UK LTD,CLE010
EFDC,CAPNB,NEIGHBOURHOODS CAPITAL,WORKS - UTILITIES,L041,09-Aug-17,111327,1400,CLEAR CHANNEL UK LTD,CLE010
EFDC,CAPRS,RESOURCES CAPITAL,CAPITAL SOFTWARE,K340,09-Aug-17,112325,5536.2,BYTES SOFTWARE SERVICES LTD,BYT001
EFDC,33055,OTHER ACTIVITIES,AGENCY STAFF,0120,09-Aug-17,112182,900,EDEN BROWN LTD,EDE001
EFDC,33055,OTHER ACTIVITIES,AGENCY STAFF,0120,09-Aug-17,112188,1431.25,EDEN BROWN LTD,EDE001
EFDC,34110,COMMUNITIES SUPPORT SERVICES,BANKING AND CASH COLLECTION,3440,09-Aug-17,112129,72.59,CONTRACT SECURITY SERVICES LTD,CON033
EFDC,33020,OTHER ACTIVITIES,BANKING AND CASH COLLECTION,3440,09-Aug-17,112129,362.92,CONTRACT SECURITY SERVICES LTD,CON033
EFDC,YB620,SUPERVISION/MANAGEMENT SPECIAL,BANKING AND CASH COLLECTION,3440,09-Aug-17,112129,72.58,CONTRACT SECURITY SERVICES LTD,CON033
EFDC,33020,OTHER ACTIVITIES,BANKING AND CASH COLLECTION,3440,09-Aug-17,112129,725.83,CONTRACT SECURITY SERVICES LTD,CON033
EFDC,TO100,LAND & PROPERTY,BANKING AND CASH COLLECTION,3440,09-Aug-17,112129,72.58,CONTRACT SECURITY SERVICES LTD,CON033
EFDC,EH160,OTHER ACTIVITIES,BANKING AND CASH COLLECTION,3440,09-Aug-17,112129,80.4,CONTRACT SECURITY SERVICES LTD,CON033
EFDC,CH110,"MUSEUM, HERITAGE & CULTURE",BANKING AND CASH COLLECTION,3440,09-Aug-17,112129,36.29,CONTRACT SECURITY SERVICES LTD,CON033
EFDC,27050,ACCOMMODATION,GAS,1110,09-Aug-17,110916,522.2,CORONA ENERGY RETAIL 4 LTD,COR015
EFDC,YB500,SUPERVISION/MANAGEMENT SPECIAL,GAS,1110,09-Aug-17,110964,651.2,CORONA ENERGY RETAIL 4 LTD,COR015
EFDC,YB500,SUPERVISION/MANAGEMENT SPECIAL,GAS,1110,09-Aug-17,110963,700.82,CORONA ENERGY RETAIL 4 LTD,COR015
EFDC,YB500,SUPERVISION/MANAGEMENT SPECIAL,GAS,1110,09-Aug-17,110976,640.1,CORONA ENERGY RETAIL 4 LTD,COR015
EFDC,YB500,SUPERVISION/MANAGEMENT SPECIAL,GAS,1110,09-Aug-17,110917,606.19,CORONA ENERGY RETAIL 4 LTD,COR015
EFDC,YB620,SUPERVISION/MANAGEMENT SPECIAL,GAS,1110,09-Aug-17,110915,605.55,CORONA ENERGY RETAIL 4 LTD,COR015
EFDC,YB350,SUPERVISION/MANAGEMENT SPECIAL,GAS,1110,09-Aug-17,110957,508.51,CORONA ENERGY RETAIL 4 LTD,COR015
EFDC,YB500,SUPERVISION/MANAGEMENT SPECIAL,GAS,1110,09-Aug-17,110977,551.91,CORONA ENERGY RETAIL 4 LTD,COR015
EFDC,UO130,LAND & PROPERTY,PREMISES,1030,09-Aug-17,112095,1250,DERRICK WADE WATERS,DER001
EFDC,RM100,RESPONSIVE & VOID REPAIRS,BUILDING MAINTENANCE,1010,09-Aug-17,112210,918.84,EXTERIOR PLAS,EXT001
EFDC,RM100,RESPONSIVE & VOID REPAIRS,BUILDING MAINTENANCE,1010,09-Aug-17,112216,1320.46,EXTERIOR PLAS,EXT001
EFDC,RM100,RESPONSIVE & VOID REPAIRS,BUILDING MAINTENANCE,1010,09-Aug-17,112211,2640.83,EXTERIOR PLAS,EXT001
EFDC,RM100,RESPONSIVE & VOID REPAIRS,BUILDING MAINTENANCE,1010,09-Aug-17,112214,1273.89,EXTERIOR PLAS,EXT001
EFDC,78001,OTHER ACTIVITIES,REFUSE REMOVAL,1640,09-Aug-17,111483,677.3,GBN SERVICES LTD,GBN002
EFDC,32220,OTHER SUPPORT SERVICES (HR),AGENCY STAFF,0120,09-Aug-17,112113,1312.54,HAYS SPECIALIST RECRUITMENT LTD,HAY011
EFDC,32220,OTHER SUPPORT SERVICES (HR),AGENCY STAFF,0120,09-Aug-17,111813,1551.23,HAYS SPECIALIST RECRUITMENT LTD,HAY011
EFDC,32220,OTHER SUPPORT SERVICES (HR),AGENCY STAFF,0120,09-Aug-17,111814,1118.88,HAYS SPECIALIST RECRUITMENT LTD,HAY011
EFDC,78001,OTHER ACTIVITIES,REFUSE REMOVAL,1640,09-Aug-17,111190,510,HEATHERLAND LTD T/A LUNNON PLANT & WASTE SERV,HEA001
EFDC,26200,OTHER SUPPORT SERVICES (HR),BUILDING MAINTENANCE,1010,09-Aug-17,112498,678,ABBEY MAINTENANCE LTD,ABB009
EFDC,36650,OTHER ACTIVITIES,AGENCY STAFF,0120,09-Aug-17,111423,923.3,ADECCO UK LTD,ADE002
EFDC,YB620,SUPERVISION/MANAGEMENT SPECIAL,WATER CHARGES,1410,09-Aug-17,112574,512.97,AFFINITY FOR BUSINESS LTD,AFF001
EFDC,RS301,NORTH WEALD CENTRE,MARKETING & EVENTS,3370,09-Aug-17,111832,1085,MCKENZIE ARNOLD GROUP LTD,MCK002
EFDC,DC120,PLANNING REGULATORY SERVICES,PUBLICITY,3360,09-Aug-17,112483,535.5,NEWSQUEST MEDIA GROUP,NEW002
EFDC,33080,OTHER ACTIVITIES,ANNUAL SUPPORT /  LICENSES,3872,09-Aug-17,111387,716.88,PHOENIX SOFTWARE LTD,PHO002
EFDC,35013,ENVIRONMENTAL OTHER,AGENCY STAFF,0120,09-Aug-17,112115,947.14,REED SPECIALIST RECRUITMENT LTD,REE002
EFDC,37100,PLANNING OTHER,POSTAGE,3510,09-Aug-17,112215,207,ROYAL MAIL GROUP PLC,ROY015
EFDC,36200,OTHER ACTIVITIES,POSTAGE,3510,09-Aug-17,111853,2440.01,ROYAL MAIL GROUP PLC,ROY015
EFDC,CH110,"MUSEUM, HERITAGE & CULTURE",POSTAGE,3510,09-Aug-17,112215,4.5,ROYAL MAIL GROUP PLC,ROY015
EFDC,EL100,ELECTIONS,POSTAGE,3510,09-Aug-17,112525,1144.25,ROYAL MAIL GROUP PLC,ROY015
EFDC,CH110,"MUSEUM, HERITAGE & CULTURE",POSTAGE,3510,09-Aug-17,111853,2.1,ROYAL MAIL GROUP PLC,ROY015
EFDC,36200,OTHER ACTIVITIES,POSTAGE,3510,09-Aug-17,112215,112.5,ROYAL MAIL GROUP PLC,ROY015
EFDC,35900,ENVIRONMENTAL OTHER,POSTAGE,3510,09-Aug-17,111853,483.9,ROYAL MAIL GROUP PLC,ROY015
EFDC,34110,COMMUNITIES SUPPORT SERVICES,POSTAGE,3510,09-Aug-17,112215,0.9,ROYAL MAIL GROUP PLC,ROY015
EFDC,34110,COMMUNITIES SUPPORT SERVICES,POSTAGE,3510,09-Aug-17,111853,3.6,ROYAL MAIL GROUP PLC,ROY015
EFDC,36200,OTHER ACTIVITIES,POSTAGE,3510,09-Aug-17,111853,139.8,ROYAL MAIL GROUP PLC,ROY015
EFDC,35900,ENVIRONMENTAL OTHER,POSTAGE,3510,09-Aug-17,112215,57,ROYAL MAIL GROUP PLC,ROY015
EFDC,33055,OTHER ACTIVITIES,POSTAGE,3510,09-Aug-17,112215,256.8,ROYAL MAIL GROUP PLC,ROY015
EFDC,33055,OTHER ACTIVITIES,POSTAGE,3510,09-Aug-17,111853,265.8,ROYAL MAIL GROUP PLC,ROY015
EFDC,33075,OTHER ACTIVITIES,POSTAGE,3510,09-Aug-17,112215,414.93,ROYAL MAIL GROUP PLC,ROY015
EFDC,33075,OTHER ACTIVITIES,POSTAGE,3510,09-Aug-17,111853,1021.8,ROYAL MAIL GROUP PLC,ROY015
EFDC,RE100,ELECTIONS,POSTAGE,3510,09-Aug-17,112215,34.5,ROYAL MAIL GROUP PLC,ROY015
EFDC,RE100,ELECTIONS,POSTAGE,3510,09-Aug-17,111853,33.3,ROYAL MAIL GROUP PLC,ROY015
EFDC,32030,OTHER SUPPORT SERVICES (HR),POSTAGE,3510,09-Aug-17,111853,19.5,ROYAL MAIL GROUP PLC,ROY015
EFDC,32030,OTHER SUPPORT SERVICES (HR),POSTAGE,3510,09-Aug-17,112215,314.7,ROYAL MAIL GROUP PLC,ROY015
EFDC,37100,PLANNING OTHER,POSTAGE,3510,09-Aug-17,111853,128.7,ROYAL MAIL GROUP PLC,ROY015
EFDC,RS301,NORTH WEALD CENTRE,FIXED PLANT MAINTENANCE,1020,09-Aug-17,111850,300,C.Q SURFACING,SUR008
EFDC,RS301,NORTH WEALD CENTRE,FIXED PLANT MAINTENANCE,1020,09-Aug-17,111850,580,C.Q SURFACING,SUR008
EFDC,36500,OTHER ACTIVITIES,RECRUITMENT EXPENSES,0320,09-Aug-17,111802,1090.94,TMP WORLDWIDE LTD,TMP001
EFDC,32200,OTHER SUPPORT SERVICES (HR),STOCK ISSUES,3070,09-Aug-17,112101,561,UNIBIND SYSTEMS LIMITED,UNI003
EFDC,26200,OTHER SUPPORT SERVICES (HR),FIXED PLANT MAINTENANCE,1020,09-Aug-17,111878,2715.49,ALLIED MECHANICAL SERVICES LTD,ALL002
EFDC,26200,OTHER SUPPORT SERVICES (HR),FIXED PLANT MAINTENANCE,1020,09-Aug-17,112551,4472.68,ALLIED MECHANICAL SERVICES LTD,ALL002
EFDC,PH130,PRIVATE SECTOR HOUSING,OTHER CONTRACTORS,4340,09-Aug-17,112089,2412.21,GRACELANDS COMPLETE MAINTENANCE SERVICES LTD,GRA007
EFDC,CAPCM,COMMUNITIES CAPITAL,VOIDS WORKS,A045,09-Aug-17,112143,27412.75,GRACELANDS COMPLETE MAINTENANCE SERVICES LTD,GRA007
EFDC,RM100,RESPONSIVE & VOID REPAIRS,BUILDING MAINTENANCE,1010,09-Aug-17,111844,784.39,GRACELANDS COMPLETE MAINTENANCE SERVICES LTD,GRA007
EFDC,RM100,RESPONSIVE & VOID REPAIRS,BUILDING MAINTENANCE,1010,09-Aug-17,111797,640,GRACELANDS COMPLETE MAINTENANCE SERVICES LTD,GRA007
EFDC,RM100,RESPONSIVE & VOID REPAIRS,BUILDING MAINTENANCE,1010,09-Aug-17,111800,560,GRACELANDS COMPLETE MAINTENANCE SERVICES LTD,GRA007
EFDC,CAPCM,COMMUNITIES CAPITAL,WORKS,A040,09-Aug-17,111862,1549.7,GRACELANDS COMPLETE MAINTENANCE SERVICES LTD,GRA007
EFDC,RM300,PLANNED & CYCLICAL MAINTENANCE,BUILDING MAINTENANCE,1010,09-Aug-17,112562,91926.41,GRACELANDS COMPLETE MAINTENANCE SERVICES LTD,GRA007
EFDC,CAPCM,COMMUNITIES CAPITAL,WORKS,A040,09-Aug-17,112561,2695.54,GRACELANDS COMPLETE MAINTENANCE SERVICES LTD,GRA007
EFDC,CAPCM,COMMUNITIES CAPITAL,VOIDS WORKS,A045,09-Aug-17,112276,14670.96,GRACELANDS COMPLETE MAINTENANCE SERVICES LTD,GRA007
EFDC,CAPCM,COMMUNITIES CAPITAL,WORKS,A040,09-Aug-17,112586,25925.46,GRACELANDS COMPLETE MAINTENANCE SERVICES LTD,GRA007
EFDC,CAPCM,COMMUNITIES CAPITAL,WORKS,A040,09-Aug-17,112087,576,GRACELANDS COMPLETE MAINTENANCE SERVICES LTD,GRA007
EFDC,CAPCM,COMMUNITIES CAPITAL,WORKS,A040,09-Aug-17,112585,60697.07,GRACELANDS COMPLETE MAINTENANCE SERVICES LTD,GRA007
EFDC,RM100,RESPONSIVE & VOID REPAIRS,BUILDING MAINTENANCE,1010,09-Aug-17,107995,2655.7,M & J SERVICES LTD,SER009
EFDC,33075,OTHER ACTIVITIES,AGENCY STAFF,0120,09-Aug-17,112499,786.33,MORGAN HUNT UK LTD,MOR001
EFDC,33075,OTHER ACTIVITIES,AGENCY STAFF,0120,09-Aug-17,112197,819.55,MORGAN HUNT UK LTD,MOR001
EFDC,RS301,NORTH WEALD CENTRE,EQUIPMENT - NEW,3010,09-Aug-17,112140,1039.95,IMPERATIVE TRAINING LTD,IMP002
EFDC,BAL01,EFDC BALANCE SHEET,SECTION 106 CREDITORS,Z620,09-Aug-17,112560,58826.64,GRANGE FARM CENTRE TRUST,GRA005
EFDC,UO130,LAND & PROPERTY,PREMISES,1030,09-Aug-17,108013,1500,CLARKE HILLYER LTD,CLA002
EFDC,RS301,NORTH WEALD CENTRE,EQUIPMENT - NEW,3010,09-Aug-17,111386,567.87,NORTH WEALD FIRE RESCUE,NOR001
EFDC,RS301,NORTH WEALD CENTRE,FIXED PLANT MAINTENANCE,1020,09-Aug-17,111208,2150,MAINTECH POWER SERVICES LTD,MAI003
EFDC,26200,OTHER SUPPORT SERVICES (HR),BUILDING MAINTENANCE,1010,09-Aug-17,112513,580,M J ANDERSON MAINTENANCE CONTRACTORS LTD,AND003
EFDC,26200,OTHER SUPPORT SERVICES (HR),BUILDING MAINTENANCE,1010,09-Aug-17,112513,163.58,M J ANDERSON MAINTENANCE CONTRACTORS LTD,AND003
EFDC,32220,OTHER SUPPORT SERVICES (HR),AGENCY STAFF,0120,09-Aug-17,112221,4251.09,CAPSTONE PROPERTY RECRUITMENT LTD,CAP001
EFDC,LA100,LAA POOLED FUNDS,LAA EXPENDITURE,Y100,09-Aug-17,112563,1200,MR JOHN GILBERT,GIL001
EFDC,25300,INTERNAL INSURANCE FUND,OTHER MISCELLANEOUS EXPENSES,3850,09-Aug-17,112571,10600,WILLIS LTD,WIL005
EFDC,GT100,FORWARD PLANNING & ECONOMIC,PROFESSIONAL FEES,3420,09-Aug-17,112151,8300.67,OVE ARUP & PARTNERS LTD,OVE002
EFDC,YB200,SUPERVISION/MANAGEMENT SPECIAL,REMOVAL EXPENSES,3830,09-Aug-17,112229,675,ROYDON MILL,ROY010
EFDC,YB200,SUPERVISION/MANAGEMENT SPECIAL,REMOVAL EXPENSES,3830,09-Aug-17,112230,906.67,ROYDON MILL,ROY010
EFDC,CAPCM,COMMUNITIES CAPITAL,WORKS,A040,09-Aug-17,112576,50647.78,ANGLIAN BUILDING PRODUCTS,ANG002
EFDC,35300,ENVIRONMENTAL OTHER,PROFESSIONAL FEES,3420,09-Aug-17,111441,2715,COMPLETE WEED CONTROL EAST ANGLIA,COM012
EFDC,RS301,NORTH WEALD CENTRE,MARKETING & EVENTS,3370,09-Aug-17,111854,1400,NORTH WEALD HERITAGE AVIATION LTD,NOR012
EFDC,RS301,NORTH WEALD CENTRE,PRINTING - EXTERNAL,3390,09-Aug-17,111854,1400,NORTH WEALD HERITAGE AVIATION LTD,NOR012
EFDC,RS301,NORTH WEALD CENTRE,ADVERTISING,3820,09-Aug-17,111854,1400,NORTH WEALD HERITAGE AVIATION LTD,NOR012
EFDC,RS400,"COMMUNITY, HEALTH & WELLBEING",ACTIVITIES,3372,09-Aug-17,111811,2720,TIER 1 ASSET MANAGEMENT LTD,TIE002
EFDC,BAL01,EFDC BALANCE SHEET,SALARIES - UNIONS,Z605,15-Aug-17,25430,1493.8,UNISON,UNI001
EFDC,32140,OTHER SUPPORT SERVICES (HR),COMMISSION,9320,15-Aug-17,25430,-37.35,UNISON,UNI001
EFDC,CAPNB,NEIGHBOURHOODS CAPITAL,WORKS - OTHER,E042,16-Aug-17,111331,1151.98,CLEAR CHANNEL UK LTD,CLE010
EFDC,UO110,OTHER ACTIVITIES,CONSULTANTS FEES,3490,16-Aug-17,112326,1750,DANIEL DOVAR,DOV001
EFDC,35300,ENVIRONMENTAL OTHER,VEHICLE HIRE,2620,16-Aug-17,112521,2680.4,ERNEST DOE & SONS LTD,ERN001
EFDC,35300,ENVIRONMENTAL OTHER,VEHICLE HIRE,2620,16-Aug-17,112517,2200,ERNEST DOE & SONS LTD,ERN001
EFDC,33080,OTHER ACTIVITIES,ANNUAL SUPPORT /  LICENSES,3872,16-Aug-17,111848,12600,FIRMSTEP,FIR009
EFDC,78001,OTHER ACTIVITIES,REFUSE REMOVAL,1640,16-Aug-17,112272,889.2,GBN SERVICES LTD,GBN002
EFDC,YB400,SUPERVISION/MANAGEMENT SPECIAL,TREE  MAINTENANCE,1070,16-Aug-17,111735,550,GRISTWOOD & TOMS LTD,GRI001
EFDC,CAPCM,COMMUNITIES CAPITAL,WORKS,A040,16-Aug-17,111736,900,GRISTWOOD & TOMS LTD,GRI001
EFDC,32220,OTHER SUPPORT SERVICES (HR),AGENCY STAFF,0120,16-Aug-17,112172,1311.21,HAYS SPECIALIST RECRUITMENT LTD,HAY011
EFDC,32220,OTHER SUPPORT SERVICES (HR),AGENCY STAFF,0120,16-Aug-17,112170,1118.88,HAYS SPECIALIST RECRUITMENT LTD,HAY011
EFDC,32220,OTHER SUPPORT SERVICES (HR),AGENCY STAFF,0120,16-Aug-17,112116,506.1,HAYS SPECIALIST RECRUITMENT LTD,HAY011
EFDC,32220,OTHER SUPPORT SERVICES (HR),AGENCY STAFF,0120,16-Aug-17,112169,772.24,HAYS SPECIALIST RECRUITMENT LTD,HAY011
EFDC,36650,OTHER ACTIVITIES,AGENCY STAFF,0120,16-Aug-17,112283,923.3,ADECCO UK LTD,ADE002
EFDC,YA300,SUPERVISION/MANAGEMENT GENERAL,BANKING AND CASH COLLECTION,3440,16-Aug-17,112833,582.94,ALLPAY.NET.LIMITED,ALL010
EFDC,32191,OTHER SUPPORT SERVICES (HR),PROFESSIONAL FEES,3420,16-Aug-17,112469,3033.99,MEARS LTD,MEA002
EFDC,78001,OTHER ACTIVITIES,PROFESSIONAL FEES,3420,16-Aug-17,112468,9542,MEARS LTD,MEA002
EFDC,RE100,ELECTIONS,OTHER MISCELLANEOUS EXPENSES,3850,16-Aug-17,112277,2366.97,NEOPOST FINANCE LTD,NEO002
EFDC,33080,OTHER ACTIVITIES,DOCUMENT ARCHIVING,3340,16-Aug-17,111482,2000,NORTHGATE PUBLIC SERVICES (UK) LTD,NOR018
EFDC,33080,OTHER ACTIVITIES,ANNUAL SUPPORT /  LICENSES,3872,16-Aug-17,111484,631.38,PHOENIX SOFTWARE LTD,PHO002
EFDC,78001,OTHER ACTIVITIES,MATERIALS,3080,16-Aug-17,110715,711.27,THE PREMIERE KITCHEN COMPANY,PRE014
EFDC,35013,ENVIRONMENTAL OTHER,AGENCY STAFF,0120,16-Aug-17,112446,930.81,REED SPECIALIST RECRUITMENT LTD,REE002
EFDC,32115,OTHER SUPPORT SERVICES (HR),CONSULTANTS FEES,3490,16-Aug-17,110904,990,VINE HR LTD,VIN003
EFDC,CAPCM,COMMUNITIES CAPITAL,WORKS,E040,16-Aug-17,112882,39790.56,VSN ENTERPRISES LTD,VSN001
EFDC,RM300,PLANNED & CYCLICAL MAINTENANCE,BUILDING MAINTENANCE,1010,16-Aug-17,112540,1199,WEDGE CIVIL ENGINEERING LTD,WED004
EFDC,RM300,PLANNED & CYCLICAL MAINTENANCE,BUILDING MAINTENANCE,1010,16-Aug-17,112541,1101,WEDGE CIVIL ENGINEERING LTD,WED004
EFDC,26200,OTHER SUPPORT SERVICES (HR),BUILDING MAINTENANCE,1010,16-Aug-17,111877,773.53,ALLIED MECHANICAL SERVICES LTD,ALL002
EFDC,26200,OTHER SUPPORT SERVICES (HR),BUILDING MAINTENANCE,1010,16-Aug-17,111881,2214.32,ALLIED MECHANICAL SERVICES LTD,ALL002
EFDC,UO130,LAND & PROPERTY,PREMISES,1030,16-Aug-17,112301,3852,EMERY ELECTRICAL LTD,EME001
EFDC,CAPCM,COMMUNITIES CAPITAL,VOIDS WORKS,A045,16-Aug-17,111796,5459.39,GRACELANDS COMPLETE MAINTENANCE SERVICES LTD,GRA007
EFDC,RM100,RESPONSIVE & VOID REPAIRS,BUILDING MAINTENANCE,1010,16-Aug-17,111228,1375.74,GRACELANDS COMPLETE MAINTENANCE SERVICES LTD,GRA007
EFDC,RM100,RESPONSIVE & VOID REPAIRS,BUILDING MAINTENANCE,1010,16-Aug-17,112204,960,GRACELANDS COMPLETE MAINTENANCE SERVICES LTD,GRA007
EFDC,RM100,RESPONSIVE & VOID REPAIRS,BUILDING MAINTENANCE,1010,16-Aug-17,111753,652.75,GRACELANDS COMPLETE MAINTENANCE SERVICES LTD,GRA007
EFDC,RM100,RESPONSIVE & VOID REPAIRS,BUILDING MAINTENANCE,1010,16-Aug-17,111834,1114.12,GRACELANDS COMPLETE MAINTENANCE SERVICES LTD,GRA007
EFDC,RM100,RESPONSIVE & VOID REPAIRS,BUILDING MAINTENANCE,1010,16-Aug-17,111842,938.47,GRACELANDS COMPLETE MAINTENANCE SERVICES LTD,GRA007
EFDC,RM100,RESPONSIVE & VOID REPAIRS,BUILDING MAINTENANCE,1010,16-Aug-17,112145,959.49,GRACELANDS COMPLETE MAINTENANCE SERVICES LTD,GRA007
EFDC,RM100,RESPONSIVE & VOID REPAIRS,BUILDING MAINTENANCE,1010,16-Aug-17,111836,1032.7,GRACELANDS COMPLETE MAINTENANCE SERVICES LTD,GRA007
EFDC,RM200,RESPONSIVE & VOID REPAIRS,BUILDING MAINTENANCE,1010,16-Aug-17,111228,158.86,GRACELANDS COMPLETE MAINTENANCE SERVICES LTD,GRA007
EFDC,RM200,RESPONSIVE & VOID REPAIRS,BUILDING MAINTENANCE,1010,16-Aug-17,111199,4453.79,GRACELANDS COMPLETE MAINTENANCE SERVICES LTD,GRA007
EFDC,RM100,RESPONSIVE & VOID REPAIRS,BUILDING MAINTENANCE,1010,16-Aug-17,111344,540.43,GRACELANDS COMPLETE MAINTENANCE SERVICES LTD,GRA007
EFDC,RM400,PLANNED & CYCLICAL MAINTENANCE,BUILDING MAINTENANCE,1010,16-Aug-17,112889,3733.33,PURDY CONTRACTS LTD,PUR002
EFDC,CAPCM,COMMUNITIES CAPITAL,WORKS,A040,16-Aug-17,112892,176613.29,M & J SERVICES LTD,SER009
EFDC,35300,ENVIRONMENTAL OTHER,AGENCY STAFF,0120,16-Aug-17,112297,1115.63,BERRY RECRUITMENT LTD,BER001
EFDC,78001,OTHER ACTIVITIES,MATERIALS,3080,16-Aug-17,111481,2982,CRANBROOK ELECTRICS,CRA001
EFDC,CAPCM,COMMUNITIES CAPITAL,WORKS,E040,16-Aug-17,112881,60921.93,TSG BUILDING SERVICES PLC,TSG001
EFDC,CAPCM,COMMUNITIES CAPITAL,WORKS,E040,16-Aug-17,112883,37473.29,TSG BUILDING SERVICES PLC,TSG001
EFDC,RS400,"COMMUNITY, HEALTH & WELLBEING",ACTIVITIES,3372,16-Aug-17,112440,835,EPPING FOREST MTB,EPP046
EFDC,RS410,"COMMUNITY, HEALTH & WELLBEING",ACTIVITIES,3372,16-Aug-17,111859,505.9,EMMA PAYTON,PAY001
EFDC,CAPRS,RESOURCES CAPITAL,EQUIPMENT ACQUISITION,C330,16-Aug-17,111868,3986,STONE COMPUTERS LTD,STO006
EFDC,42310,GOVERNANCE SUPPORT SERVICES,AGENCY STAFF,0120,16-Aug-17,111860,1397.5,THE OYSTER PARTNERSHIP LTD,OYS001
EFDC,RS301,NORTH WEALD CENTRE,OTHER MAINTENANCE,1050,16-Aug-17,112274,715,HAWKESFIRE,HAW001
EFDC,23110,ACCOMMODATION,ELECTRICITY,1120,16-Aug-17,112838,1033.04,EDF ENERGY,EDF001
EFDC,UO120,LAND & PROPERTY,AGENCY STAFF,0120,16-Aug-17,112507,1195.04,CAPSTONE PROPERTY RECRUITMENT LTD,CAP001
EFDC,UO120,LAND & PROPERTY,AGENCY STAFF,0120,16-Aug-17,112471,1195.04,CAPSTONE PROPERTY RECRUITMENT LTD,CAP001
EFDC,32220,OTHER SUPPORT SERVICES (HR),AGENCY STAFF,0120,16-Aug-17,112472,3696.6,CAPSTONE PROPERTY RECRUITMENT LTD,CAP001
EFDC,CAPNB,NEIGHBOURHOODS CAPITAL,QUANTITY SURVEYORS FEES,E170,16-Aug-17,112441,1500,RIDGE AND PARTNERS LLP,RID002
EFDC,RS301,NORTH WEALD CENTRE,OTHER MAINTENANCE,1050,16-Aug-17,112217,774.02,EAGLE AUTOMATION SYSTEMS LTD,EAG001
EFDC,CAPCM,COMMUNITIES CAPITAL,WORKS,E040,16-Aug-17,112884,331209.09,MULALLEY & CO LTD,MUL003
EFDC,32170,OTHER SUPPORT SERVICES (HR),TRAINING EXPENSES,0310,16-Aug-17,111690,1259.98,JAMES BUTTON & CO SOLICITORS,JAM002
EFDC,WC100,WASTE MANAGEMENT,PUBLICITY,3360,16-Aug-17,111440,570,KEEP BRITAIN TIDY,KEE003
EFDC,EH155,ENVIRONMENTAL HEALTH,EQUIPMENT - NEW,3010,16-Aug-17,111440,570.25,KEEP BRITAIN TIDY,KEE003
EFDC,PP111,FORWARD PLANNING & ECONOMIC,PROFESSIONAL FEES,3420,16-Aug-17,112473,42810.25,OVE ARUP & PARTNERS LTD,OVE002
EFDC,33080,OTHER ACTIVITIES,EQUIPMENT - HIRED,3020,16-Aug-17,112166,1363.29,XEROX FINANCE LTD,XER001
EFDC,33080,OTHER ACTIVITIES,EQUIPMENT - NEW,3010,16-Aug-17,111790,55,KINGSFIELD COMPUTER PRODUCTS LTD,KIN004
EFDC,YA140,SUPERVISION/MANAGEMENT GENERAL,EQUIPMENT - NEW,3010,16-Aug-17,111790,230.32,KINGSFIELD COMPUTER PRODUCTS LTD,KIN004
EFDC,33075,OTHER ACTIVITIES,EQUIPMENT - NEW,3010,16-Aug-17,111790,690.95,KINGSFIELD COMPUTER PRODUCTS LTD,KIN004
EFDC,33075,OTHER ACTIVITIES,EQUIPMENT - NEW,3010,16-Aug-17,111790,21.8,KINGSFIELD COMPUTER PRODUCTS LTD,KIN004
EFDC,42520,GOVERNANCE SUPPORT SERVICES,EQUIPMENT - NEW,3010,16-Aug-17,111790,31.99,KINGSFIELD COMPUTER PRODUCTS LTD,KIN004
EFDC,33080,OTHER ACTIVITIES,MATERIALS,3080,16-Aug-17,111790,51,KINGSFIELD COMPUTER PRODUCTS LTD,KIN004
EFDC,YA140,SUPERVISION/MANAGEMENT GENERAL,EQUIPMENT - NEW,3010,16-Aug-17,111790,8.72,KINGSFIELD COMPUTER PRODUCTS LTD,KIN004
EFDC,33080,OTHER ACTIVITIES,EQUIPMENT - NEW,3010,16-Aug-17,111714,1016.99,KINGSFIELD COMPUTER PRODUCTS LTD,KIN004
EFDC,33080,OTHER ACTIVITIES,EQUIPMENT - NEW,3010,16-Aug-17,111790,1036.4,KINGSFIELD COMPUTER PRODUCTS LTD,KIN004
EFDC,LT120,LOCAL TAXATION,EQUIPMENT - NEW,3010,16-Aug-17,111790,583.99,KINGSFIELD COMPUTER PRODUCTS LTD,KIN004
EFDC,PS100,CAR PARKING,BANKING AND CASH COLLECTION,3440,16-Aug-17,108459,636.89,CHIPSIDE LIMITED,CHI030
EFDC,CAPCM,COMMUNITIES CAPITAL,WORKS,E040,16-Aug-17,112894,32976.08,DENMARK AND WHITE LTD,DEN003
EFDC,78001,OTHER ACTIVITIES,MATERIALS,3080,16-Aug-17,111794,14250,INVENTOR-E LIMITED,INV001
EFDC,PH100,PRIVATE SECTOR HOUSING,GRANTS GENERAL,3720,22-Aug-17,25571,718.79,STANNAH LIFT SERVICES LTD,STA002
EFDC,PH100,PRIVATE SECTOR HOUSING,GRANTS GENERAL,3720,22-Aug-17,25572,2050,STANNAH LIFT SERVICES LTD,STA002
EFDC,PH100,PRIVATE SECTOR HOUSING,GRANTS GENERAL,3720,22-Aug-17,25570,5000,STANNAH LIFT SERVICES LTD,STA002
EFDC,RS301,NORTH WEALD CENTRE,FEES & CHARGES,9210,22-Aug-17,25557,750,MAITLAND RACING,653P
EFDC,RS301,NORTH WEALD CENTRE,FEES & CHARGES,9210,22-Aug-17,25544,750,DESIGNACTION LTD,4429P
EFDC,25300,INTERNAL INSURANCE FUND,OTHER MISCELLANEOUS EXPENSES,3850,22-Aug-17,25551,5749.6,IRWIN MITCHELL LLP,6642P
EFDC,32200,OTHER SUPPORT SERVICES (HR),EQUIPMENT - HIRED,3020,23-Aug-17,112482,1429.94,CANON (UK) LTD,CAN004
EFDC,28030,OTHER SUPPORT SERVICES (HR),MATERIALS,3080,23-Aug-17,112493,718.54,CARE VENDING SERVICES LTD,CAR017
EFDC,28030,OTHER SUPPORT SERVICES (HR),MATERIALS,3080,23-Aug-17,112493,-122.1,CARE VENDING SERVICES LTD,CAR017
EFDC,34110,COMMUNITIES SUPPORT SERVICES,FURNITURE - NEW,3040,23-Aug-17,113088,783.54,CCS MEDIA LTD,CCS002
EFDC,32120,OTHER SUPPORT SERVICES (HR),EMPLOYEES - OTHER PAYMENTS,0191,23-Aug-17,113303,175.75,COMPUTERSHARE VOUCHER SERVICES,BUS009
EFDC,BAL01,EFDC BALANCE SHEET,BUSY BEES,Z606,23-Aug-17,113303,2703.8,COMPUTERSHARE VOUCHER SERVICES,BUS009
EFDC,33055,OTHER ACTIVITIES,AGENCY STAFF,0120,23-Aug-17,112745,900,EDEN BROWN LTD,EDE001
EFDC,33055,OTHER ACTIVITIES,AGENCY STAFF,0120,23-Aug-17,112746,900,EDEN BROWN LTD,EDE001
EFDC,35300,ENVIRONMENTAL OTHER,FUEL,2330,23-Aug-17,112178,2492,CPL PETROLEUM,CPL001
EFDC,EH150,REGULATORY SERVICES,CRB POLICE CHECK COSTS,0381,23-Aug-17,112526,308,DISCLOSURE & BARRING SERVICE,CRB002
EFDC,RS400,"COMMUNITY, HEALTH & WELLBEING",CRB POLICE CHECK COSTS,0381,23-Aug-17,112526,220,DISCLOSURE & BARRING SERVICE,CRB002
EFDC,26200,OTHER SUPPORT SERVICES (HR),FIXED PLANT MAINTENANCE,1020,23-Aug-17,112184,850,CTL AUDIOVISUAL SERVICES LTD,CTL001
